Body,Name of  Body,Date,Transaction Number,Invoice Number,Amount,Supplier Name,Supplier ID,VAT Reg no,Expense Area,Expense Type,Expense Code,Creditor Type
18,Devon County Council,03/10/2012,CFADRES30069157,REDACTED UNDER DP ACT,1424,18 MARINE PARADE,265062,,People Services,Care Spot - Private (3rd),5701,B
18,Devon County Council,17/10/2012,CFADRES30069829,REDACTED UNDER DP ACT,1424,18 MARINE PARADE,265062,,People Services,Care Spot - Private (3rd),5701,B
18,Devon County Council,31/10/2012,CFADRES30070507,REDACTED UNDER DP ACT,1424,18 MARINE PARADE,265062,,People Services,Care Spot - Private (3rd),5701,B
18,Devon County Council,03/10/2012,CFADRES30068974,REDACTED UNDER DP ACT,8873.7,AARON COURT,173212,,People Services,Care Spot - Private (3rd),5701,B
18,Devon County Council,17/10/2012,CFADRES30069648,REDACTED UNDER DP ACT,6280.84,AARON COURT,173212,,People Services,Care Spot - Private (3rd),5701,B
18,Devon County Council,31/10/2012,CFADRES30070325,REDACTED UNDER DP ACT,6280.84,AARON COURT,173212,,People Services,Care Spot - Private (3rd),5701,B
18,Devon County Council,03/10/2012,CFADRES30069244,REDACTED UNDER DP ACT,7684.12,ABBEYFIELD - SHANDFORD,292973,231972268,People Services,Care Spot - Private (3rd),5701,B
18,Devon County Council,17/10/2012,CFADRES30069916,REDACTED UNDER DP ACT,7684.12,ABBEYFIELD - SHANDFORD,292973,231972268,People Services,Care Spot - Private (3rd),5701,B
18,Devon County Council,31/10/2012,CFADRES30070594,REDACTED UNDER DP ACT,7684.12,ABBEYFIELD - SHANDFORD,292973,231972268,People Services,Care Spot - Private (3rd),5701,B
18,Devon County Council,23/10/2012,FINSSCW30457905,12,1251.89,ABBEYFIELD - SHANDFORD,292973,231972268,People Services,Contributions to other agencies (3rd),5801,B
18,Devon County Council,03/10/2012,CFADRES30068634,REDACTED UNDER DP ACT,4288.48,ABBEYFIELD E DEV EXTRA CARE SOC,88511,,People Services,Care Spot - Private (3rd),5701,B
18,Devon County Council,17/10/2012,CFADRES30069310,REDACTED UNDER DP ACT,4288.48,ABBEYFIELD E DEV EXTRA CARE SOC,88511,,People Services,Care Spot - Private (3rd),5701,B
18,Devon County Council,31/10/2012,CFADRES30069984,REDACTED UNDER DP ACT,5385.05,ABBEYFIELD E DEV EXTRA CARE SOC,88511,,People Services,Care Spot - Private (3rd),5701,B
18,Devon County Council,03/10/2012,CFADRES30068903,REDACTED UNDER DP ACT,1543.8,ACTION ON HEARING LOSS,121442,,People Services,Care Spot - Private (3rd),5701,B
18,Devon County Council,17/10/2012,CFADRES30069577,REDACTED UNDER DP ACT,1543.8,ACTION ON HEARING LOSS,121442,,People Services,Care Spot - Private (3rd),5701,B
18,Devon County Council,31/10/2012,CFADRES30070251,REDACTED UNDER DP ACT,1691.89,ACTION ON HEARING LOSS,121442,,People Services,Care Spot - Private (3rd),5701,B
18,Devon County Council,03/10/2012,CFADRES30068714,REDACTED UNDER DP ACT,19839.76,ADELAIDE LODGE CARE HOME PRTNSHP,89773,,People Services,Care Spot - Private (3rd),5701,B
18,Devon County Council,17/10/2012,CFADRES30069391,REDACTED UNDER DP ACT,19839.76,ADELAIDE LODGE CARE HOME PRTNSHP,89773,,People Services,Care Spot - Private (3rd),5701,B
18,Devon County Council,31/10/2012,CFADRES30070065,REDACTED UNDER DP ACT,21736.92,ADELAIDE LODGE CARE HOME PRTNSHP,89773,,People Services,Care Spot - Private (3rd),5701,B
18,Devon County Council,03/10/2012,CFADRES30069185,REDACTED UNDER DP ACT,782,ADL CARE - T/A JUBILEE HOUSE,278152,,People Services,Care Spot - Private (3rd),5701,B
18,Devon County Council,17/10/2012,CFADRES30069857,REDACTED UNDER DP ACT,782,ADL CARE - T/A JUBILEE HOUSE,278152,,People Services,Care Spot - Private (3rd),5701,B
18,Devon County Council,31/10/2012,CFADRES30070535,REDACTED UNDER DP ACT,782,ADL CARE - T/A JUBILEE HOUSE,278152,,People Services,Care Spot - Private (3rd),5701,B
18,Devon County Council,15/10/2012,CFADDOM30044965,REDACTED UNDER DP ACT,523.6,ADVENT CARE TEAM LTD,168316,,People Services,Care Spot - Private (3rd),5701,B
18,Devon County Council,15/10/2012,CFADDOM30044969,REDACTED UNDER DP ACT,646.8,ADVENT CARE TEAM LTD,168316,,People Services,Care Spot - Private (3rd),5701,B
18,Devon County Council,15/10/2012,CFADDOM30044973,REDACTED UNDER DP ACT,646.8,ADVENT CARE TEAM LTD,168316,,People Services,Care Spot - Private (3rd),5701,B
18,Devon County Council,15/10/2012,CFADDOM30044976,REDACTED UNDER DP ACT,896.7,ADVENT CARE TEAM LTD,168316,,People Services,Care Spot - Private (3rd),5701,B
18,Devon County Council,15/10/2012,CFADDOM30044979,REDACTED UNDER DP ACT,527.45,ADVENT CARE TEAM LTD,168316,,People Services,Care Spot - Private (3rd),5701,B
18,Devon County Council,15/10/2012,CFADDOM30044982,REDACTED UNDER DP ACT,646.8,ADVENT CARE TEAM LTD,168316,,People Services,Care Spot - Private (3rd),5701,B
18,Devon County Council,15/10/2012,CFADDOM30044984,REDACTED UNDER DP ACT,512.4,ADVENT CARE TEAM LTD,168316,,People Services,Care Spot - Private (3rd),5701,B
18,Devon County Council,15/10/2012,CFADDOM30044990,REDACTED UNDER DP ACT,614.88,ADVENT CARE TEAM LTD,168316,,People Services,Care Spot - Private (3rd),5701,B
18,Devon County Council,15/10/2012,CFADDOM30044991,REDACTED UNDER DP ACT,862.4,ADVENT CARE TEAM LTD,168316,,People Services,Care Spot - Private (3rd),5701,B
18,Devon County Council,15/10/2012,CFADDOM30044995,REDACTED UNDER DP ACT,525,ADVENT CARE TEAM LTD,168316,,People Services,Care Spot - Private (3rd),5701,B
18,Devon County Council,15/10/2012,CFADDOM30044996,REDACTED UNDER DP ACT,596.25,ADVENT CARE TEAM LTD,168316,,People Services,Care Spot - Private (3rd),5701,B
18,Devon County Council,15/10/2012,CFADDOM30045004,REDACTED UNDER DP ACT,5574.96,ADVENT CARE TEAM LTD,168316,,People Services,Care Spot - Private (3rd),5701,B
18,Devon County Council,15/10/2012,CFADDOM30045005,REDACTED UNDER DP ACT,928.12,ADVENT CARE TEAM LTD,168316,,People Services,Care Spot - Private (3rd),5701,B
18,Devon County Council,15/10/2012,CFADDOM30045006,REDACTED UNDER DP ACT,1617.72,ADVENT CARE TEAM LTD,168316,,People Services,Care Spot - Private (3rd),5701,B
18,Devon County Council,15/10/2012,CFADDOM30045007,REDACTED UNDER DP ACT,539,ADVENT CARE TEAM LTD,168316,,People Services,Care Spot - Private (3rd),5701,B
18,Devon County Council,31/10/2012,CFADDOM30045932,REDACTED UNDER DP ACT,746.9,ADVENT CARE TEAM LTD,168316,,People Services,Care Spot - Private (3rd),5701,B
18,Devon County Council,31/10/2012,CFADDOM30045939,REDACTED UNDER DP ACT,585.6,ADVENT CARE TEAM LTD,168316,,People Services,Care Spot - Private (3rd),5701,B
18,Devon County Council,31/10/2012,CFADDOM30045941,REDACTED UNDER DP ACT,762.3,ADVENT CARE TEAM LTD,168316,,People Services,Care Spot - Private (3rd),5701,B
18,Devon County Council,31/10/2012,CFADDOM30045944,REDACTED UNDER DP ACT,1096.48,ADVENT CARE TEAM LTD,168316,,People Services,Care Spot - Private (3rd),5701,B
18,Devon County Council,31/10/2012,CFADDOM30045946,REDACTED UNDER DP ACT,695.2,ADVENT CARE TEAM LTD,168316,,People Services,Care Spot - Private (3rd),5701,B
18,Devon County Council,03/10/2012,CFADRES30069256,REDACTED UNDER DP ACT,2671.43,AGINCOURT CARE HOME LTD,295122,,People Services,Care Spot - Private (3rd),5701,B
18,Devon County Council,17/10/2012,CFADRES30069928,REDACTED UNDER DP ACT,1100,AGINCOURT CARE HOME LTD,295122,,People Services,Care Spot - Private (3rd),5701,B
18,Devon County Council,31/10/2012,CFADRES30070606,REDACTED UNDER DP ACT,1100,AGINCOURT CARE HOME LTD,295122,,People Services,Care Spot - Private (3rd),5701,B
18,Devon County Council,03/10/2012,CFSUPP30171217,REDACTED UNDER DP ACT,1202.92,ALABARE CHRISTIAN CARE CENTRES,226086,,People Services,Accomodation Based Services (3rd),5707,B
18,Devon County Council,31/10/2012,CFSUPP30171391,REDACTED UNDER DP ACT,1202.92,ALABARE CHRISTIAN CARE CENTRES,226086,,People Services,Accomodation Based Services (3rd),5707,B
18,Devon County Council,03/10/2012,CFADRES30068618,REDACTED UNDER DP ACT,13528.06,ALBAN HOUSE,87208,,People Services,Care Spot - Private (3rd),5701,B
18,Devon County Council,17/10/2012,CFADRES30069294,REDACTED UNDER DP ACT,13528.06,ALBAN HOUSE,87208,,People Services,Care Spot - Private (3rd),5701,B
18,Devon County Council,31/10/2012,CFADRES30069968,REDACTED UNDER DP ACT,13528.06,ALBAN HOUSE,87208,,People Services,Care Spot - Private (3rd),5701,B
18,Devon County Council,03/10/2012,CFADRES30068825,REDACTED UNDER DP ACT,2509.32,ALLIED BACK-UP PROJECT,90897,,People Services,Care Spot - Private (3rd),5701,B
18,Devon County Council,17/10/2012,CFADRES30069500,REDACTED UNDER DP ACT,2509.32,ALLIED BACK-UP PROJECT,90897,,People Services,Care Spot - Private (3rd),5701,B
18,Devon County Council,31/10/2012,CFADRES30070176,REDACTED UNDER DP ACT,2509.32,ALLIED BACK-UP PROJECT,90897,,People Services,Care Spot - Private (3rd),5701,B
18,Devon County Council,03/10/2012,CFADRES30068728,REDACTED UNDER DP ACT,5890.7,ALPHINGTON LODGE RESIDENTIAL HME,89941,,People Services,Care Spot - Private (3rd),5701,B
18,Devon County Council,17/10/2012,CFADRES30069404,REDACTED UNDER DP ACT,6525.46,ALPHINGTON LODGE RESIDENTIAL HME,89941,,People Services,Care Spot - Private (3rd),5701,B
18,Devon County Council,31/10/2012,CFADRES30070078,REDACTED UNDER DP ACT,6457.6,ALPHINGTON LODGE RESIDENTIAL HME,89941,,People Services,Care Spot - Private (3rd),5701,B
18,Devon County Council,03/10/2012,CFADRES30068758,REDACTED UNDER DP ACT,1880.56,ALPINE LODGE RCH LTD,90255,,People Services,Care Spot - Private (3rd),5701,B
18,Devon County Council,17/10/2012,CFADRES30069434,REDACTED UNDER DP ACT,1880.56,ALPINE LODGE RCH LTD,90255,,People Services,Care Spot - Private (3rd),5701,B
18,Devon County Council,31/10/2012,CFADRES30070108,REDACTED UNDER DP ACT,1880.56,ALPINE LODGE RCH LTD,90255,,People Services,Care Spot - Private (3rd),5701,B
18,Devon County Council,09/10/2012,CFADDOM30044436,REDACTED UNDER DP ACT,885.36,ANGEL HOMECARE,210685,,People Services,Care Spot - Private (3rd),5701,B
18,Devon County Council,09/10/2012,CFADDOM30044440,REDACTED UNDER DP ACT,564.06,ANGEL HOMECARE,210685,,People Services,Care Spot - Private (3rd),5701,B
18,Devon County Council,09/10/2012,CFADDOM30044443,REDACTED UNDER DP ACT,2570.4,ANGEL HOMECARE,210685,,People Services,Care Spot - Private (3rd),5701,B
18,Devon County Council,09/10/2012,CFADDOM30044445,REDACTED UNDER DP ACT,740.48,ANGEL HOMECARE,210685,,People Services,Care Spot - Private (3rd),5701,B
18,Devon County Council,09/10/2012,CFADDOM30044447,REDACTED UNDER DP ACT,899.64,ANGEL HOMECARE,210685,,People Services,Care Spot - Private (3rd),5701,B
18,Devon County Council,09/10/2012,CFADDOM30044449,REDACTED UNDER DP ACT,699.72,ANGEL HOMECARE,210685,,People Services,Care Spot - Private (3rd),5701,B
18,Devon County Council,09/10/2012,CFADDOM30044450,REDACTED UNDER DP ACT,599.76,ANGEL HOMECARE,210685,,People Services,Care Spot - Private (3rd),5701,B
18,Devon County Council,09/10/2012,CFADDOM30044452,REDACTED UNDER DP ACT,692.58,ANGEL HOMECARE,210685,,People Services,Care Spot - Private (3rd),5701,B
18,Devon County Council,09/10/2012,CFADDOM30044461,REDACTED UNDER DP ACT,797.44,ANGEL HOMECARE,210685,,People Services,Care Spot - Private (3rd),5701,B
18,Devon County Council,09/10/2012,CFADDOM30044463,REDACTED UNDER DP ACT,797.44,ANGEL HOMECARE,210685,,People Services,Care Spot - Private (3rd),5701,B
18,Devon County Council,09/10/2012,CFADDOM30044471,REDACTED UNDER DP ACT,697.76,ANGEL HOMECARE,210685,,People Services,Care Spot - Private (3rd),5701,B
18,Devon County Council,10/10/2012,CFADDOM30044766,REDACTED UNDER DP ACT,1253.12,ANGEL HOMECARE,210685,,People Services,Care Spot - Private (3rd),5701,B
18,Devon County Council,03/10/2012,CFADRES30068832,REDACTED UNDER DP ACT,11797.28,ANGELA COURT,90966,,People Services,Care Spot - Private (3rd),5701,B
18,Devon County Council,17/10/2012,CFADRES30069507,REDACTED UNDER DP ACT,11845.61,ANGELA COURT,90966,,People Services,Care Spot - Private (3rd),5701,B
18,Devon County Council,03/10/2012,CFADRES30068630,REDACTED UNDER DP ACT,4790.4,ANNING BJ,87559,,People Services,Care Spot - Private (3rd),5701,B
18,Devon County Council,17/10/2012,CFADRES30069306,REDACTED UNDER DP ACT,4790.4,ANNING BJ,87559,,People Services,Care Spot - Private (3rd),5701,B
18,Devon County Council,31/10/2012,CFADRES30069980,REDACTED UNDER DP ACT,4790.4,ANNING BJ,87559,,People Services,Care Spot - Private (3rd),5701,B
18,Devon County Council,03/10/2012,CFADRES30069225,REDACTED UNDER DP ACT,793,ARGYLE PARK NH/MARK&LUKE GILBERT,289098,,People Services,Care Spot - Private (3rd),5701,B
18,Devon County Council,17/10/2012,CFADRES30069897,REDACTED UNDER DP ACT,793,ARGYLE PARK NH/MARK&LUKE GILBERT,289098,,People Services,Care Spot - Private (3rd),5701,B
18,Devon County Council,31/10/2012,CFADRES30070575,REDACTED UNDER DP ACT,793,ARGYLE PARK NH/MARK&LUKE GILBERT,289098,,People Services,Care Spot - Private (3rd),5701,B
18,Devon County Council,03/10/2012,CFADRES30069082,REDACTED UNDER DP ACT,10866.28,ARK CARE HOMES LTD (CF PAYMENTS),229190,,People Services,Care Spot - Private (3rd),5701,B
18,Devon County Council,31/10/2012,CFADRES30070432,REDACTED UNDER DP ACT,10866.28,ARK CARE HOMES LTD (CF PAYMENTS),229190,,People Services,Care Spot - Private (3rd),5701,B
18,Devon County Council,17/10/2012,CFADDAY30021452,REDACTED UNDER DP ACT,2211.2,AROHA HOUSE LIMITED,216752,,People Services,Individualised Support - Private (3rd),5706,B
18,Devon County Council,17/10/2012,CFADDAY30021453,REDACTED UNDER DP ACT,2211.2,AROHA HOUSE LIMITED,216752,,People Services,Individualised Support - Private (3rd),5706,B
18,Devon County Council,17/10/2012,CFADDAY30021454,REDACTED UNDER DP ACT,2211.2,AROHA HOUSE LIMITED,216752,,People Services,Individualised Support - Private (3rd),5706,B
18,Devon County Council,17/10/2012,CFADDAY30021455,REDACTED UNDER DP ACT,2211.2,AROHA HOUSE LIMITED,216752,,People Services,Individualised Support - Private (3rd),5706,B
18,Devon County Council,17/10/2012,CFADDAY30021456,REDACTED UNDER DP ACT,2211.2,AROHA HOUSE LIMITED,216752,,People Services,Care Spot - Private (3rd),5701,B
18,Devon County Council,03/10/2012,CFADRES30068677,REDACTED UNDER DP ACT,10026.38,ARUNDEL HOUSE,89227,,People Services,Care Spot - Private (3rd),5701,B
18,Devon County Council,03/10/2012,CFADRES30069032,REDACTED UNDER DP ACT,4488.52,ARUNDEL HOUSE,201385,,People Services,Care Spot - Private (3rd),5701,B
18,Devon County Council,17/10/2012,CFADRES30069353,REDACTED UNDER DP ACT,10026.38,ARUNDEL HOUSE,89227,,People Services,Care Spot - Private (3rd),5701,B
18,Devon County Council,17/10/2012,CFADRES30069706,REDACTED UNDER DP ACT,4488.52,ARUNDEL HOUSE,201385,,People Services,Care Spot - Private (3rd),5701,B
18,Devon County Council,31/10/2012,CFADRES30070383,REDACTED UNDER DP ACT,4488.52,ARUNDEL HOUSE,201385,,People Services,Care Spot - Private (3rd),5701,B
18,Devon County Council,03/10/2012,CFADRES30069193,REDACTED UNDER DP ACT,882,ASHCROFT HOUSE LEEDS,280636,,People Services,Care Spot - Private (3rd),5701,B
18,Devon County Council,17/10/2012,CFADRES30069865,REDACTED UNDER DP ACT,882,ASHCROFT HOUSE LEEDS,280636,,People Services,Care Spot - Private (3rd),5701,B
18,Devon County Council,31/10/2012,CFADRES30070543,REDACTED UNDER DP ACT,882,ASHCROFT HOUSE LEEDS,280636,,People Services,Care Spot - Private (3rd),5701,B
18,Devon County Council,17/10/2012,CFADRES30069303,REDACTED UNDER DP ACT,6621.42,ASHDOWN CARE LTD,87517,,People Services,Care Spot - Private (3rd),5701,B
18,Devon County Council,03/10/2012,CFADRES30069199,REDACTED UNDER DP ACT,1600,ASHEBOROUGH HOUSE CARE CENTRE,281379,,People Services,Care Spot - Private (3rd),5701,B
18,Devon County Council,17/10/2012,CFADRES30069871,REDACTED UNDER DP ACT,1600,ASHEBOROUGH HOUSE CARE CENTRE,281379,,People Services,Care Spot - Private (3rd),5701,B
18,Devon County Council,31/10/2012,CFADRES30070549,REDACTED UNDER DP ACT,1600,ASHEBOROUGH HOUSE CARE CENTRE,281379,,People Services,Care Spot - Private (3rd),5701,B
18,Devon County Council,03/10/2012,CFADRES30068976,REDACTED UNDER DP ACT,13224.13,ASHFIELD RESIDENTIAL HOME,173331,,People Services,Care Spot - Private (3rd),5701,B
18,Devon County Council,17/10/2012,CFADRES30069650,REDACTED UNDER DP ACT,14726.21,ASHFIELD RESIDENTIAL HOME,173331,,People Services,Care Spot - Private (3rd),5701,B
18,Devon County Council,31/10/2012,CFADRES30070327,REDACTED UNDER DP ACT,12523.53,ASHFIELD RESIDENTIAL HOME,173331,,People Services,Care Spot - Private (3rd),5701,B
18,Devon County Council,17/10/2012,CFADRES30068661,REDACTED UNDER DP ACT,2622,ASHLEIGH MANOR,89097,,People Services,Care Spot - Private (3rd),5701,B
18,Devon County Council,17/10/2012,CFADRES30069337,REDACTED UNDER DP ACT,2622,ASHLEIGH MANOR,89097,,People Services,Care Spot - Private (3rd),5701,B
18,Devon County Council,31/10/2012,CFADRES30070011,REDACTED UNDER DP ACT,2622,ASHLEIGH MANOR,89097,,People Services,Care Spot - Private (3rd),5701,B
18,Devon County Council,17/10/2012,CFADRES17332336,REDACTED UNDER DP ACT,-3360.97,ASHLEIGH MANOR,89097,,People Services,Care Spot - Private (3rd),5701,B
18,Devon County Council,03/10/2012,CFADRES30068782,REDACTED UNDER DP ACT,2880.34,ASSISSI COMMUNITY CARE,90460,,People Services,Care Spot - Private (3rd),5701,B
18,Devon County Council,17/10/2012,CFADRES30069458,REDACTED UNDER DP ACT,2880.34,ASSISSI COMMUNITY CARE,90460,,People Services,Care Spot - Private (3rd),5701,B
18,Devon County Council,31/10/2012,CFADRES30070132,REDACTED UNDER DP ACT,2880.34,ASSISSI COMMUNITY CARE,90460,,People Services,Care Spot - Private (3rd),5701,B
18,Devon County Council,01/10/2012,CFADDAY30020715,REDACTED UNDER DP ACT,702,ASSISTED LIVING SOUTH WEST,231671,,People Services,Individualised Support - Private (3rd),5706,B
18,Devon County Council,10/10/2012,CFADDAY30021162,REDACTED UNDER DP ACT,1288,ASSISTED LIVING SOUTH WEST,231671,,People Services,Individualised Support - Private (3rd),5706,B
18,Devon County Council,10/10/2012,CFADDAY30021163,REDACTED UNDER DP ACT,1288,ASSISTED LIVING SOUTH WEST,231671,,People Services,Individualised Support - Private (3rd),5706,B
18,Devon County Council,10/10/2012,CFADDAY30021164,REDACTED UNDER DP ACT,2661,ASSISTED LIVING SOUTH WEST,231671,,People Services,Individualised Support - Private (3rd),5706,B
18,Devon County Council,10/10/2012,CFADDAY30021165,REDACTED UNDER DP ACT,5565.84,ASSISTED LIVING SOUTH WEST,231671,,People Services,Individualised Support - Private (3rd),5706,B
18,Devon County Council,10/10/2012,CFADDAY30021166,REDACTED UNDER DP ACT,540,ASSISTED LIVING SOUTH WEST,231671,,People Services,Individualised Support - Private (3rd),5706,B
18,Devon County Council,10/10/2012,CFADDAY30021168,REDACTED UNDER DP ACT,2517,ASSISTED LIVING SOUTH WEST,231671,,People Services,Individualised Support - Private (3rd),5706,B
18,Devon County Council,15/10/2012,CFADDAY30021272,REDACTED UNDER DP ACT,2976,ASSISTED LIVING SOUTH WEST,231671,,People Services,Individualised Support - Private (3rd),5706,B
18,Devon County Council,15/10/2012,CFADDAY30021273,REDACTED UNDER DP ACT,1464,ASSISTED LIVING SOUTH WEST,231671,,People Services,Individualised Support - Private (3rd),5706,B
18,Devon County Council,15/10/2012,CFADDAY30021274,REDACTED UNDER DP ACT,2733,ASSISTED LIVING SOUTH WEST,231671,,People Services,Individualised Support - Private (3rd),5706,B
18,Devon County Council,15/10/2012,CFADDAY30021275,REDACTED UNDER DP ACT,2976,ASSISTED LIVING SOUTH WEST,231671,,People Services,Individualised Support - Private (3rd),5706,B
18,Devon County Council,22/10/2012,CFADDAY30021632,REDACTED UNDER DP ACT,2418.43,ASSISTED LIVING SOUTH WEST,231671,,People Services,Individualised Support - Private (3rd),5706,B
18,Devon County Council,22/10/2012,CFADDAY30021633,REDACTED UNDER DP ACT,1832.14,ASSISTED LIVING SOUTH WEST,231671,,People Services,Individualised Support - Private (3rd),5706,B
18,Devon County Council,29/10/2012,CFADDAY30021853,REDACTED UNDER DP ACT,3226.96,ASSISTED LIVING SOUTH WEST,231671,,People Services,Individualised Support - Private (3rd),5706,B
18,Devon County Council,29/10/2012,CFADDAY30021854,REDACTED UNDER DP ACT,3611,ASSISTED LIVING SOUTH WEST,231671,,People Services,Individualised Support - Private (3rd),5706,B
18,Devon County Council,29/10/2012,CFADDAY30021855,REDACTED UNDER DP ACT,1660,ASSISTED LIVING SOUTH WEST,231671,,People Services,Individualised Support - Private (3rd),5706,B
18,Devon County Council,29/10/2012,CFADDAY30021856,REDACTED UNDER DP ACT,2084,ASSISTED LIVING SOUTH WEST,231671,,People Services,Individualised Support - Private (3rd),5706,B
18,Devon County Council,29/10/2012,CFADDAY30021857,REDACTED UNDER DP ACT,972,ASSISTED LIVING SOUTH WEST,231671,,People Services,Individualised Support - Private (3rd),5706,B
18,Devon County Council,29/10/2012,CFADDAY30021858,REDACTED UNDER DP ACT,3650.96,ASSISTED LIVING SOUTH WEST,231671,,People Services,Individualised Support - Private (3rd),5706,B
18,Devon County Council,29/10/2012,CFADDAY30021859,REDACTED UNDER DP ACT,3226.96,ASSISTED LIVING SOUTH WEST,231671,,People Services,Individualised Support - Private (3rd),5706,B
18,Devon County Council,29/10/2012,CFADDAY30021860,REDACTED UNDER DP ACT,3536,ASSISTED LIVING SOUTH WEST,231671,,People Services,Individualised Support - Private (3rd),5706,B
18,Devon County Council,29/10/2012,CFADDAY30021861,REDACTED UNDER DP ACT,2354.78,ASSISTED LIVING SOUTH WEST,231671,,People Services,Individualised Support - Private (3rd),5706,B
18,Devon County Council,29/10/2012,CFADDAY30021862,REDACTED UNDER DP ACT,715.25,ASSISTED LIVING SOUTH WEST,231671,,People Services,Individualised Support - Private (3rd),5706,B
18,Devon County Council,29/10/2012,CFADDAY30021863,REDACTED UNDER DP ACT,3226.96,ASSISTED LIVING SOUTH WEST,231671,,People Services,Individualised Support - Private (3rd),5706,B
18,Devon County Council,29/10/2012,CFADDAY30021864,REDACTED UNDER DP ACT,1681,ASSISTED LIVING SOUTH WEST,231671,,People Services,Individualised Support - Private (3rd),5706,B
18,Devon County Council,29/10/2012,CFADDAY30021865,REDACTED UNDER DP ACT,4592,ASSISTED LIVING SOUTH WEST,231671,,People Services,Individualised Support - Private (3rd),5706,B
18,Devon County Council,29/10/2012,CFADDAY30021866,REDACTED UNDER DP ACT,3226.96,ASSISTED LIVING SOUTH WEST,231671,,People Services,Individualised Support - Private (3rd),5706,B
18,Devon County Council,31/10/2012,CFADDAY30022031,REDACTED UNDER DP ACT,2828,ASSISTED LIVING SOUTH WEST,231671,,People Services,Individualised Support - Private (3rd),5706,B
18,Devon County Council,31/10/2012,CFADDAY30022032,REDACTED UNDER DP ACT,3264,ASSISTED LIVING SOUTH WEST,231671,,People Services,Individualised Support - Private (3rd),5706,B
18,Devon County Council,31/10/2012,CFADDAY30022033,REDACTED UNDER DP ACT,3264,ASSISTED LIVING SOUTH WEST,231671,,People Services,Individualised Support - Private (3rd),5706,B
18,Devon County Council,31/10/2012,CFADDAY30022034,REDACTED UNDER DP ACT,3264,ASSISTED LIVING SOUTH WEST,231671,,People Services,Individualised Support - Private (3rd),5706,B
18,Devon County Council,31/10/2012,CFADDAY30022035,REDACTED UNDER DP ACT,3264,ASSISTED LIVING SOUTH WEST,231671,,People Services,Individualised Support - Private (3rd),5706,B
18,Devon County Council,01/10/2012,CFADDOM30044029,REDACTED UNDER DP ACT,1134,ASSISTED LIVING SOUTH WEST,231671,,People Services,Care Spot - Private (3rd),5701,B
18,Devon County Council,01/10/2012,CFADDOM30044030,REDACTED UNDER DP ACT,1134,ASSISTED LIVING SOUTH WEST,231671,,People Services,Care Spot - Private (3rd),5701,B
18,Devon County Council,01/10/2012,CFADDOM30044031,REDACTED UNDER DP ACT,2538,ASSISTED LIVING SOUTH WEST,231671,,People Services,Care Spot - Private (3rd),5701,B
18,Devon County Council,01/10/2012,CFADDOM30044032,REDACTED UNDER DP ACT,2538,ASSISTED LIVING SOUTH WEST,231671,,People Services,Care Spot - Private (3rd),5701,B
18,Devon County Council,01/10/2012,CFADDOM30044033,REDACTED UNDER DP ACT,3496,ASSISTED LIVING SOUTH WEST,231671,,People Services,Care Spot - Private (3rd),5701,B
18,Devon County Council,22/10/2012,CFADDOM30045401,REDACTED UNDER DP ACT,1551.65,ASSISTED LIVING SOUTH WEST,231671,,People Services,Care Spot - Private (3rd),5701,B
18,Devon County Council,22/10/2012,CFADDOM30045402,REDACTED UNDER DP ACT,1623.14,ASSISTED LIVING SOUTH WEST,231671,,People Services,Care Spot - Private (3rd),5701,B
18,Devon County Council,29/10/2012,CFADDOM30045779,REDACTED UNDER DP ACT,2268,ASSISTED LIVING SOUTH WEST,231671,,People Services,Care Spot - Private (3rd),5701,B
18,Devon County Council,31/10/2012,CFADDOM30045957,REDACTED UNDER DP ACT,756,ASSISTED LIVING SOUTH WEST,231671,,People Services,Care Spot - Private (3rd),5701,B
18,Devon County Council,03/10/2012,CFADRES30069098,REDACTED UNDER DP ACT,1012.8,ASTOR HALL,231831,,People Services,Care Spot - Private (3rd),5701,B
18,Devon County Council,17/10/2012,CFADRES30069771,REDACTED UNDER DP ACT,1012.8,ASTOR HALL,231831,,People Services,Care Spot - Private (3rd),5701,B
18,Devon County Council,31/10/2012,CFADRES30070448,REDACTED UNDER DP ACT,1012.8,ASTOR HALL,231831,,People Services,Care Spot - Private (3rd),5701,B
18,Devon County Council,01/10/2012,CFADDAY30020711,REDACTED UNDER DP ACT,576,ATLANTIC SUPPORT (DEVON) LTD,202818,,People Services,Individualised Support - Private (3rd),5706,B
18,Devon County Council,03/10/2012,CFADDAY30020803,REDACTED UNDER DP ACT,1092,ATLANTIC SUPPORT (DEVON) LTD,202818,,People Services,Individualised Support - Private (3rd),5706,B
18,Devon County Council,03/10/2012,CFADDAY30020804,REDACTED UNDER DP ACT,592.5,ATLANTIC SUPPORT (DEVON) LTD,202818,,People Services,Individualised Support - Private (3rd),5706,B
18,Devon County Council,03/10/2012,CFADDAY30020805,REDACTED UNDER DP ACT,1092,ATLANTIC SUPPORT (DEVON) LTD,202818,,People Services,Individualised Support - Private (3rd),5706,B
18,Devon County Council,03/10/2012,CFADDAY30020806,REDACTED UNDER DP ACT,624,ATLANTIC SUPPORT (DEVON) LTD,202818,,People Services,Individualised Support - Private (3rd),5706,B
18,Devon County Council,03/10/2012,CFADDAY30020807,REDACTED UNDER DP ACT,1092,ATLANTIC SUPPORT (DEVON) LTD,202818,,People Services,Individualised Support - Private (3rd),5706,B
18,Devon County Council,03/10/2012,CFADDAY30020808,REDACTED UNDER DP ACT,910,ATLANTIC SUPPORT (DEVON) LTD,202818,,People Services,Individualised Support - Private (3rd),5706,B
18,Devon County Council,03/10/2012,CFADDAY30020809,REDACTED UNDER DP ACT,577.48,ATLANTIC SUPPORT (DEVON) LTD,202818,,People Services,Individualised Support - Private (3rd),5706,B
18,Devon County Council,31/10/2012,CFADDAY30022019,REDACTED UNDER DP ACT,576,ATLANTIC SUPPORT (DEVON) LTD,202818,,People Services,Individualised Support - Private (3rd),5706,B
18,Devon County Council,03/10/2012,CFADRES30068809,REDACTED UNDER DP ACT,4687.72,AUSTIN C-UNDER BARLEY CLOSE R HM,90702,,People Services,Care Spot - Private (3rd),5701,B
18,Devon County Council,17/10/2012,CFADRES30069485,REDACTED UNDER DP ACT,4687.72,AUSTIN C-UNDER BARLEY CLOSE R HM,90702,,People Services,Care Spot - Private (3rd),5701,B
18,Devon County Council,03/10/2012,CFADRES30068919,REDACTED UNDER DP ACT,689.74,AVELAND COURT,142843,,People Services,Care Spot - Private (3rd),5701,B
18,Devon County Council,17/10/2012,CFADRES30069593,REDACTED UNDER DP ACT,689.74,AVELAND COURT,142843,,People Services,Care Spot - Private (3rd),5701,B
18,Devon County Council,31/10/2012,CFADRES30070269,REDACTED UNDER DP ACT,689.74,AVELAND COURT,142843,,People Services,Care Spot - Private (3rd),5701,B
18,Devon County Council,03/10/2012,CFADRES30068895,REDACTED UNDER DP ACT,17027.51,AVENS CARE HOMES LTD,118327,,People Services,Care Spot - Private (3rd),5701,B
18,Devon County Council,17/10/2012,CFADRES30069569,REDACTED UNDER DP ACT,12070.37,AVENS CARE HOMES LTD,118327,,People Services,Care Spot - Private (3rd),5701,B
18,Devon County Council,31/10/2012,CFADRES30070243,REDACTED UNDER DP ACT,3555.37,AVENS CARE HOMES LTD,118327,,People Services,Care Spot - Private (3rd),5701,B
18,Devon County Council,03/10/2012,CFADRES30069200,REDACTED UNDER DP ACT,750,AVERLEA RESIDENTIAL HOME,282401,,People Services,Care Spot - Private (3rd),5701,B
18,Devon County Council,17/10/2012,CFADRES30069872,REDACTED UNDER DP ACT,750,AVERLEA RESIDENTIAL HOME,282401,,People Services,Care Spot - Private (3rd),5701,B
18,Devon County Council,31/10/2012,CFADRES30070550,REDACTED UNDER DP ACT,750,AVERLEA RESIDENTIAL HOME,282401,,People Services,Care Spot - Private (3rd),5701,B
18,Devon County Council,03/10/2012,CFADRES30069161,REDACTED UNDER DP ACT,952,AVON LEA NURSING HOME,267854,,People Services,Care Spot - Private (3rd),5701,B
18,Devon County Council,17/10/2012,CFADRES30069833,REDACTED UNDER DP ACT,952,AVON LEA NURSING HOME,267854,,People Services,Care Spot - Private (3rd),5701,B
18,Devon County Council,31/10/2012,CFADRES30070511,REDACTED UNDER DP ACT,952,AVON LEA NURSING HOME,267854,,People Services,Care Spot - Private (3rd),5701,B
18,Devon County Council,22/10/2012,CFADDOM30045298,REDACTED UNDER DP ACT,26602.35,AXE VALLEY CARE LTD,202776,,People Services,Care Spot - Private (3rd),5701,B
18,Devon County Council,22/10/2012,CFADDOM30045299,REDACTED UNDER DP ACT,20123.28,AXE VALLEY CARE LTD,202776,,People Services,Care Spot - Private (3rd),5701,B
18,Devon County Council,22/10/2012,CFADDOM30045300,REDACTED UNDER DP ACT,20414.98,AXE VALLEY CARE LTD,202776,,People Services,Care Spot - Private (3rd),5701,B
18,Devon County Council,22/10/2012,CFADDOM30045301,REDACTED UNDER DP ACT,7380.26,AXE VALLEY CARE LTD,202776,,People Services,Care Spot - Private (3rd),5701,B
18,Devon County Council,03/10/2012,FINEAAD30661602,17882,600.25,AXE VALLEY CARE LTD,202776,,People Services,Care Spot - Private (3rd),5701,B
18,Devon County Council,22/10/2012,CFADDOM17332103,REDACTED UNDER DP ACT,-635.93,AXE VALLEY CARE LTD,202776,,People Services,Care Spot - Private (3rd),5701,B
18,Devon County Council,03/10/2012,CFADRES30068773,REDACTED UNDER DP ACT,5139.2,BARCHESTER HEALTHCARE HOMES LTD,90416,,People Services,Care Spot - Private (3rd),5701,B
18,Devon County Council,17/10/2012,CFADRES30069448,REDACTED UNDER DP ACT,14277.99,BARCHESTER HEALTHCARE HOMES LTD,90416,,People Services,Care Spot - Private (3rd),5701,B
18,Devon County Council,31/10/2012,CFADRES30070123,REDACTED UNDER DP ACT,500,BARCHESTER HEALTHCARE HOMES LTD,90416,,Corporate Services,Expenditure Control Account,EX22,B
18,Devon County Council,31/10/2012,CFADRES30070123,REDACTED UNDER DP ACT,7249.21,BARCHESTER HEALTHCARE HOMES LTD,90416,,People Services,Expenditure Control Account,EX22,B
18,Devon County Council,03/10/2012,CFADRES30068631,REDACTED UNDER DP ACT,2492.46,BARCHESTER HEALTHCARE H-RE MANOR,87581,,People Services,Care Spot - Private (3rd),5701,B
18,Devon County Council,17/10/2012,CFADRES30069307,REDACTED UNDER DP ACT,3030.17,BARCHESTER HEALTHCARE H-RE MANOR,87581,,People Services,Care Spot - Private (3rd),5701,B
18,Devon County Council,31/10/2012,CFADRES30069981,REDACTED UNDER DP ACT,1282.6,BARCHESTER HEALTHCARE H-RE MANOR,87581,,People Services,Care Spot - Private (3rd),5701,B
18,Devon County Council,03/10/2012,CFADRES30069059,REDACTED UNDER DP ACT,812.9,BARHAM HOUSE NURSING HOME,214737,,People Services,Care Spot - Private (3rd),5701,B
18,Devon County Council,17/10/2012,CFADRES30069732,REDACTED UNDER DP ACT,812.9,BARHAM HOUSE NURSING HOME,214737,,People Services,Care Spot - Private (3rd),5701,B
18,Devon County Council,31/10/2012,CFADRES30070409,REDACTED UNDER DP ACT,812.9,BARHAM HOUSE NURSING HOME,214737,,People Services,Care Spot - Private (3rd),5701,B
18,Devon County Council,03/10/2012,CFADRES30068669,REDACTED UNDER DP ACT,1986.76,BARKER KI & GM T/A DAWN R C H,89142,,People Services,Care Spot - Private (3rd),5701,B
18,Devon County Council,17/10/2012,CFADRES30069345,REDACTED UNDER DP ACT,1986.76,BARKER KI & GM T/A DAWN R C H,89142,,People Services,Care Spot - Private (3rd),5701,B
18,Devon County Council,31/10/2012,CFADRES30070019,REDACTED UNDER DP ACT,1986.76,BARKER KI & GM T/A DAWN R C H,89142,,People Services,Care Spot - Private (3rd),5701,B
18,Devon County Council,17/10/2012,CFADDAY30021345,REDACTED UNDER DP ACT,960,BARN PARK RESIDENTIAL HOME,89354,,People Services,Care Spot - Private (3rd),5701,B
18,Devon County Council,03/10/2012,CFADRES30068686,REDACTED UNDER DP ACT,11029.79,BARN PARK RESIDENTIAL HOME,89354,,People Services,Care Spot - Private (3rd),5701,B
18,Devon County Council,17/10/2012,CFADRES30069362,REDACTED UNDER DP ACT,11351.5,BARN PARK RESIDENTIAL HOME,89354,,People Services,Care Spot - Private (3rd),5701,B
18,Devon County Council,31/10/2012,CFADRES30070036,REDACTED UNDER DP ACT,12498.35,BARN PARK RESIDENTIAL HOME,89354,,People Services,Care Spot - Private (3rd),5701,B
18,Devon County Council,03/10/2012,CFADRES30068965,REDACTED UNDER DP ACT,753.82,BARNFIELD HOUSE,168283,,People Services,Care Spot - Private (3rd),5701,B
18,Devon County Council,17/10/2012,CFADRES30069639,REDACTED UNDER DP ACT,753.82,BARNFIELD HOUSE,168283,,People Services,Care Spot - Private (3rd),5701,B
18,Devon County Council,31/10/2012,CFADRES30070316,REDACTED UNDER DP ACT,753.82,BARNFIELD HOUSE,168283,,People Services,Care Spot - Private (3rd),5701,B
18,Devon County Council,03/10/2012,CFADRES30068624,REDACTED UNDER DP ACT,7386.16,BARNSTAPLE OLD PEOPLES H A HOSTL,87455,,People Services,Care Spot - Private (3rd),5701,B
18,Devon County Council,17/10/2012,CFADRES30069300,REDACTED UNDER DP ACT,6243.3,BARNSTAPLE OLD PEOPLES H A HOSTL,87455,,People Services,Care Spot - Private (3rd),5701,B
18,Devon County Council,31/10/2012,CFADRES30069974,REDACTED UNDER DP ACT,6243.3,BARNSTAPLE OLD PEOPLES H A HOSTL,87455,,People Services,Care Spot - Private (3rd),5701,B
18,Devon County Council,03/10/2012,CFADRES30068985,REDACTED UNDER DP ACT,7032.96,BARTON HOUSE RESIDENTIAL HOME,178688,,People Services,Care Spot - Private (3rd),5701,B
18,Devon County Council,17/10/2012,CFADRES30069659,REDACTED UNDER DP ACT,8882.95,BARTON HOUSE RESIDENTIAL HOME,178688,,People Services,Care Spot - Private (3rd),5701,B
18,Devon County Council,31/10/2012,CFADRES30070336,REDACTED UNDER DP ACT,8970.1,BARTON HOUSE RESIDENTIAL HOME,178688,,People Services,Care Spot - Private (3rd),5701,B
18,Devon County Council,03/10/2012,CFADRES30069049,REDACTED UNDER DP ACT,3825.71,BARTON LODGE RESIDENTIAL HOME,207195,,People Services,Care Spot - Private (3rd),5701,B
18,Devon County Council,17/10/2012,CFADRES30069723,REDACTED UNDER DP ACT,2636.43,BARTON LODGE RESIDENTIAL HOME,207195,,People Services,Care Spot - Private (3rd),5701,B
18,Devon County Council,31/10/2012,CFADRES30070400,REDACTED UNDER DP ACT,3320,BARTON LODGE RESIDENTIAL HOME,207195,,People Services,Care Spot - Private (3rd),5701,B
18,Devon County Council,03/10/2012,CFADRES30068847,REDACTED UNDER DP ACT,1682,BASCOMBE COURT,97577,,People Services,Care Spot - Private (3rd),5701,B
18,Devon County Council,17/10/2012,CFADRES30069522,REDACTED UNDER DP ACT,1682,BASCOMBE COURT,97577,,People Services,Care Spot - Private (3rd),5701,B
18,Devon County Council,31/10/2012,CFADRES30070198,REDACTED UNDER DP ACT,1682,BASCOMBE COURT,97577,,People Services,Care Spot - Private (3rd),5701,B
18,Devon County Council,03/10/2012,CFADRES30068762,REDACTED UNDER DP ACT,8097.5,BAXENDALE AM/MRS NB TA AMELIA HS,90280,,People Services,Care Spot - Private (3rd),5701,B
18,Devon County Council,17/10/2012,CFADRES30069438,REDACTED UNDER DP ACT,8097.5,BAXENDALE AM/MRS NB TA AMELIA HS,90280,,People Services,Care Spot - Private (3rd),5701,B
18,Devon County Council,31/10/2012,CFADRES30070112,REDACTED UNDER DP ACT,8097.5,BAXENDALE AM/MRS NB TA AMELIA HS,90280,,People Services,Care Spot - Private (3rd),5701,B
18,Devon County Council,22/10/2012,CFADDOM30045431,REDACTED UNDER DP ACT,966.24,BAY CARE GROUP,262868,,People Services,Care Spot - Private (3rd),5701,B
18,Devon County Council,22/10/2012,CFADDOM30045433,REDACTED UNDER DP ACT,578.28,BAY CARE GROUP,262868,,People Services,Care Spot - Private (3rd),5701,B
18,Devon County Council,22/10/2012,CFADDOM30045439,REDACTED UNDER DP ACT,717.36,BAY CARE GROUP,262868,,People Services,Care Spot - Private (3rd),5701,B
18,Devon County Council,22/10/2012,CFADDOM30045454,REDACTED UNDER DP ACT,713.7,BAY CARE GROUP,262868,,People Services,Care Spot - Private (3rd),5701,B
18,Devon County Council,03/10/2012,CFADRES30069167,REDACTED UNDER DP ACT,952,BAY TREE LODGE,271222,,People Services,Care Spot - Private (3rd),5701,B
18,Devon County Council,17/10/2012,CFADRES30069839,REDACTED UNDER DP ACT,952,BAY TREE LODGE,271222,,People Services,Care Spot - Private (3rd),5701,B
18,Devon County Council,31/10/2012,CFADRES30070517,REDACTED UNDER DP ACT,952,BAY TREE LODGE,271222,,People Services,Care Spot - Private (3rd),5701,B
18,Devon County Council,03/10/2012,CFADRES30068873,REDACTED UNDER DP ACT,10375.22,BE SMART SOUTH WEST LTD,105345,,People Services,Care Spot - Private (3rd),5701,B
18,Devon County Council,17/10/2012,CFADRES30069548,REDACTED UNDER DP ACT,10375.22,BE SMART SOUTH WEST LTD,105345,,People Services,Care Spot - Private (3rd),5701,B
18,Devon County Council,31/10/2012,CFADRES30070223,REDACTED UNDER DP ACT,10375.22,BE SMART SOUTH WEST LTD,105345,,People Services,Care Spot - Private (3rd),5701,B
18,Devon County Council,03/10/2012,CFADRES30068829,REDACTED UNDER DP ACT,11152.42,BEACON COURT,90958,,People Services,Care Spot - Private (3rd),5701,B
18,Devon County Council,17/10/2012,CFADRES30069504,REDACTED UNDER DP ACT,11152.42,BEACON COURT,90958,,People Services,Care Spot - Private (3rd),5701,B
18,Devon County Council,31/10/2012,CFADRES30070180,REDACTED UNDER DP ACT,10263.14,BEACON COURT,90958,,People Services,Care Spot - Private (3rd),5701,B
18,Devon County Council,03/10/2012,CFADRES30068656,REDACTED UNDER DP ACT,15809.48,BEECH HOUSE(EXETER)LTD,89053,,People Services,Care Spot - Private (3rd),5701,B
18,Devon County Council,17/10/2012,CFADRES30069332,REDACTED UNDER DP ACT,14238.05,BEECH HOUSE(EXETER)LTD,89053,,People Services,Care Spot - Private (3rd),5701,B
18,Devon County Council,31/10/2012,CFADRES30070006,REDACTED UNDER DP ACT,13154.48,BEECH HOUSE(EXETER)LTD,89053,,People Services,Care Spot - Private (3rd),5701,B
18,Devon County Council,03/10/2012,CFADRES30069078,REDACTED UNDER DP ACT,1014.6,BEECH LAWN NURSING & RES HOME,226788,,People Services,Care Spot - Private (3rd),5701,B
18,Devon County Council,17/10/2012,CFADRES30069751,REDACTED UNDER DP ACT,1014.6,BEECH LAWN NURSING & RES HOME,226788,,People Services,Care Spot - Private (3rd),5701,B
18,Devon County Council,31/10/2012,CFADRES30070428,REDACTED UNDER DP ACT,1014.6,BEECH LAWN NURSING & RES HOME,226788,,People Services,Care Spot - Private (3rd),5701,B
18,Devon County Council,03/10/2012,CFADRES30068948,REDACTED UNDER DP ACT,731.84,BEECHCROFT CARE HOME,159338,,People Services,Care Spot - Private (3rd),5701,B
18,Devon County Council,17/10/2012,CFADRES30069622,REDACTED UNDER DP ACT,731.84,BEECHCROFT CARE HOME,159338,,People Services,Care Spot - Private (3rd),5701,B
18,Devon County Council,31/10/2012,CFADRES30070298,REDACTED UNDER DP ACT,1822.13,BEECHCROFT CARE HOME,159338,,People Services,Care Spot - Private (3rd),5701,B
18,Devon County Council,03/10/2012,CFADRES30068988,REDACTED UNDER DP ACT,1100,BEECHMOUNT RESIDENTIAL HOME LTD,180408,,People Services,Care Spot - Private (3rd),5701,B
18,Devon County Council,17/10/2012,CFADRES30069662,REDACTED UNDER DP ACT,1100,BEECHMOUNT RESIDENTIAL HOME LTD,180408,,People Services,Care Spot - Private (3rd),5701,B
18,Devon County Council,31/10/2012,CFADRES30070339,REDACTED UNDER DP ACT,1100,BEECHMOUNT RESIDENTIAL HOME LTD,180408,,People Services,Care Spot - Private (3rd),5701,B
18,Devon County Council,03/10/2012,CFADRES30069052,REDACTED UNDER DP ACT,8336.02,BELMONT GRANGE,208839,,People Services,Care Spot - Private (3rd),5701,B
18,Devon County Council,17/10/2012,CFADRES30069725,REDACTED UNDER DP ACT,8336.02,BELMONT GRANGE,208839,,People Services,Care Spot - Private (3rd),5701,B
18,Devon County Council,31/10/2012,CFADRES30070402,REDACTED UNDER DP ACT,9206.02,BELMONT GRANGE,208839,,People Services,Care Spot - Private (3rd),5701,B
18,Devon County Council,03/10/2012,CFADRES30068729,REDACTED UNDER DP ACT,1310.14,BETTERCARE UK LTD,89948,,People Services,Care Spot - Private (3rd),5701,B
18,Devon County Council,17/10/2012,CFADRES30069405,REDACTED UNDER DP ACT,1310.14,BETTERCARE UK LTD,89948,,People Services,Care Spot - Private (3rd),5701,B
18,Devon County Council,31/10/2012,CFADRES30070079,REDACTED UNDER DP ACT,1310.14,BETTERCARE UK LTD,89948,,People Services,Care Spot - Private (3rd),5701,B
18,Devon County Council,03/10/2012,CFADRES30069040,REDACTED UNDER DP ACT,6710.4,BICKLEIGH DOWN CARE HOME,205626,,People Services,Care Spot - Private (3rd),5701,B
18,Devon County Council,17/10/2012,CFADRES30069714,REDACTED UNDER DP ACT,6221.38,BICKLEIGH DOWN CARE HOME,205626,,People Services,Care Spot - Private (3rd),5701,B
18,Devon County Council,31/10/2012,CFADRES30070391,REDACTED UNDER DP ACT,6102.81,BICKLEIGH DOWN CARE HOME,205626,,People Services,Care Spot - Private (3rd),5701,B
18,Devon County Council,03/10/2012,CFADRES30068818,REDACTED UNDER DP ACT,16817.18,BIDNA HOUSE,90844,,People Services,Care Spot - Private (3rd),5701,B
18,Devon County Council,17/10/2012,CFADRES30069493,REDACTED UNDER DP ACT,15988.8,BIDNA HOUSE,90844,,People Services,Care Spot - Private (3rd),5701,B
18,Devon County Council,31/10/2012,CFADRES30070169,REDACTED UNDER DP ACT,15988.8,BIDNA HOUSE,90844,,People Services,Care Spot - Private (3rd),5701,B
18,Devon County Council,03/10/2012,CFADRES30068732,REDACTED UNDER DP ACT,10570.4,BINDON CARE LTD,89979,,People Services,Care Spot - Private (3rd),5701,B
18,Devon County Council,17/10/2012,CFADRES30069408,REDACTED UNDER DP ACT,10570.4,BINDON CARE LTD,89979,,People Services,Care Spot - Private (3rd),5701,B
18,Devon County Council,31/10/2012,CFADRES30070082,REDACTED UNDER DP ACT,10570.4,BINDON CARE LTD,89979,,People Services,Care Spot - Private (3rd),5701,B
18,Devon County Council,03/10/2012,CFADRES30069154,REDACTED UNDER DP ACT,1180,BIRCHAMS GRANGE,264870,,People Services,Care Spot - Private (3rd),5701,B
18,Devon County Council,17/10/2012,CFADRES30069826,REDACTED UNDER DP ACT,1180,BIRCHAMS GRANGE,264870,,People Services,Care Spot - Private (3rd),5701,B
18,Devon County Council,31/10/2012,CFADRES30070504,REDACTED UNDER DP ACT,1180,BIRCHAMS GRANGE,264870,,People Services,Care Spot - Private (3rd),5701,B
18,Devon County Council,03/10/2012,CFADRES30069212,REDACTED UNDER DP ACT,1555.58,BLOSSOM FIELDS,285993,,People Services,Care Spot - Private (3rd),5701,B
18,Devon County Council,17/10/2012,CFADRES30069884,REDACTED UNDER DP ACT,1555.58,BLOSSOM FIELDS,285993,,People Services,Care Spot - Private (3rd),5701,B
18,Devon County Council,31/10/2012,CFADRES30070562,REDACTED UNDER DP ACT,1555.58,BLOSSOM FIELDS,285993,,People Services,Care Spot - Private (3rd),5701,B
18,Devon County Council,15/10/2012,CFADDOM30045038,REDACTED UNDER DP ACT,598.08,BLUEBIRD CARE (NEWTON ABBOT),237624,,People Services,Care Spot - Private (3rd),5701,B
18,Devon County Council,15/10/2012,CFADDOM30045044,REDACTED UNDER DP ACT,911.36,BLUEBIRD CARE (NEWTON ABBOT),237624,,People Services,Care Spot - Private (3rd),5701,B
18,Devon County Council,15/10/2012,CFADDOM30045045,REDACTED UNDER DP ACT,996.8,BLUEBIRD CARE (NEWTON ABBOT),237624,,People Services,Care Spot - Private (3rd),5701,B
18,Devon County Council,15/10/2012,CFADDOM30045046,REDACTED UNDER DP ACT,722.68,BLUEBIRD CARE (NEWTON ABBOT),237624,,People Services,Care Spot - Private (3rd),5701,B
18,Devon County Council,15/10/2012,CFADDOM30045053,REDACTED UNDER DP ACT,528.36,BLUEBIRD CARE (NEWTON ABBOT),237624,,People Services,Care Spot - Private (3rd),5701,B
18,Devon County Council,15/10/2012,CFADDOM30045057,REDACTED UNDER DP ACT,517.65,BLUEBIRD CARE (NEWTON ABBOT),237624,,People Services,Care Spot - Private (3rd),5701,B
18,Devon County Council,15/10/2012,CFADDOM30045058,REDACTED UNDER DP ACT,771.12,BLUEBIRD CARE (NEWTON ABBOT),237624,,People Services,Care Spot - Private (3rd),5701,B
18,Devon County Council,15/10/2012,CFADDOM30045062,REDACTED UNDER DP ACT,542.64,BLUEBIRD CARE (NEWTON ABBOT),237624,,People Services,Care Spot - Private (3rd),5701,B
18,Devon County Council,15/10/2012,CFADDOM30045075,REDACTED UNDER DP ACT,714,BLUEBIRD CARE (NEWTON ABBOT),237624,,People Services,Care Spot - Private (3rd),5701,B
18,Devon County Council,15/10/2012,CFADDOM30045076,REDACTED UNDER DP ACT,799.68,BLUEBIRD CARE (NEWTON ABBOT),237624,,People Services,Care Spot - Private (3rd),5701,B
18,Devon County Council,15/10/2012,CFADDOM30045091,REDACTED UNDER DP ACT,542.64,BLUEBIRD CARE (NEWTON ABBOT),237624,,People Services,Care Spot - Private (3rd),5701,B
18,Devon County Council,15/10/2012,CFADDOM30045092,REDACTED UNDER DP ACT,1799.28,BLUEBIRD CARE (NEWTON ABBOT),237624,,People Services,Care Spot - Private (3rd),5701,B
18,Devon County Council,15/10/2012,CFADDOM30045095,REDACTED UNDER DP ACT,2356.72,BLUEBIRD CARE (NEWTON ABBOT),237624,,People Services,Care Spot - Private (3rd),5701,B
18,Devon County Council,15/10/2012,CFADDOM30045098,REDACTED UNDER DP ACT,599.76,BLUEBIRD CARE (NEWTON ABBOT),237624,,People Services,Care Spot - Private (3rd),5701,B
18,Devon County Council,15/10/2012,CFADDOM30045104,REDACTED UNDER DP ACT,1113.84,BLUEBIRD CARE (NEWTON ABBOT),237624,,People Services,Care Spot - Private (3rd),5701,B
18,Devon County Council,15/10/2012,CFADDOM30045105,REDACTED UNDER DP ACT,624.75,BLUEBIRD CARE (NEWTON ABBOT),237624,,People Services,Care Spot - Private (3rd),5701,B
18,Devon County Council,03/10/2012,CFADRES30069179,REDACTED UNDER DP ACT,14104.75,BODMEYRICK RESIDENTIAL HOME,277062,,People Services,Care Spot - Private (3rd),5701,B
18,Devon County Council,17/10/2012,CFADRES30069851,REDACTED UNDER DP ACT,14604.04,BODMEYRICK RESIDENTIAL HOME,277062,,People Services,Care Spot - Private (3rd),5701,B
18,Devon County Council,31/10/2012,CFADRES30070529,REDACTED UNDER DP ACT,13157.17,BODMEYRICK RESIDENTIAL HOME,277062,,People Services,Care Spot - Private (3rd),5701,B
18,Devon County Council,03/10/2012,CFADRES30068775,REDACTED UNDER DP ACT,19803,BOLEALLER HOUSE LTD,90433,,People Services,Care Spot - Private (3rd),5701,B
18,Devon County Council,17/10/2012,CFADRES30069451,REDACTED UNDER DP ACT,19803,BOLEALLER HOUSE LTD,90433,,People Services,Care Spot - Private (3rd),5701,B
18,Devon County Council,31/10/2012,CFADRES30070125,REDACTED UNDER DP ACT,17248.62,BOLEALLER HOUSE LTD,90433,,People Services,Care Spot - Private (3rd),5701,B
18,Devon County Council,03/10/2012,CFADRES30069214,REDACTED UNDER DP ACT,1000,BOSWORTH CARE HOME,286381,,People Services,Care Spot - Private (3rd),5701,B
18,Devon County Council,17/10/2012,CFADRES30069886,REDACTED UNDER DP ACT,1000,BOSWORTH CARE HOME,286381,,People Services,Care Spot - Private (3rd),5701,B
18,Devon County Council,31/10/2012,CFADRES30070564,REDACTED UNDER DP ACT,1000,BOSWORTH CARE HOME,286381,,People Services,Care Spot - Private (3rd),5701,B
18,Devon County Council,03/10/2012,CFADRES30069062,REDACTED UNDER DP ACT,7400.02,BRACKEN TOR HOUSE,215900,,People Services,Care Spot - Private (3rd),5701,B
18,Devon County Council,17/10/2012,CFADRES30069735,REDACTED UNDER DP ACT,7400.02,BRACKEN TOR HOUSE,215900,,People Services,Care Spot - Private (3rd),5701,B
18,Devon County Council,31/10/2012,CFADRES30070412,REDACTED UNDER DP ACT,7400.02,BRACKEN TOR HOUSE,215900,,People Services,Care Spot - Private (3rd),5701,B
18,Devon County Council,03/10/2012,CFADRES30068947,REDACTED UNDER DP ACT,2025.36,BRAEMAR HOUSE,157418,,People Services,Care Spot - Private (3rd),5701,B
18,Devon County Council,17/10/2012,CFADRES30069621,REDACTED UNDER DP ACT,2025.36,BRAEMAR HOUSE,157418,,People Services,Care Spot - Private (3rd),5701,B
18,Devon County Council,31/10/2012,CFADRES30070297,REDACTED UNDER DP ACT,3636.04,BRAEMAR HOUSE,157418,,People Services,Care Spot - Private (3rd),5701,B
18,Devon County Council,31/10/2012,CFADRES30070286,REDACTED UNDER DP ACT,6935.09,BRAMBLE DOWN NURSING HOME,154485,,People Services,Care Spot - Private (3rd),5701,B
18,Devon County Council,03/10/2012,CFADRES30068688,REDACTED UNDER DP ACT,3412.58,BRANDON RESIDENTIAL CARE HOME,89375,,People Services,Care Spot - Private (3rd),5701,B
18,Devon County Council,17/10/2012,CFADRES30069364,REDACTED UNDER DP ACT,3412.58,BRANDON RESIDENTIAL CARE HOME,89375,,People Services,Care Spot - Private (3rd),5701,B
18,Devon County Council,31/10/2012,CFADRES30070038,REDACTED UNDER DP ACT,3412.58,BRANDON RESIDENTIAL CARE HOME,89375,,People Services,Care Spot - Private (3rd),5701,B
18,Devon County Council,17/10/2012,CFADRES30069399,REDACTED UNDER DP ACT,3037.52,BRAUNTON (WRAFTON ROAD) LTD,89852,,People Services,Care Spot - Private (3rd),5701,B
18,Devon County Council,10/10/2012,CFADDOM30044774,REDACTED UNDER DP ACT,1728.72,BRAUNTON CARE LTD,262416,,People Services,Care Spot - Private (3rd),5701,B
18,Devon County Council,10/10/2012,CFADDOM30044775,REDACTED UNDER DP ACT,504.21,BRAUNTON CARE LTD,262416,,People Services,Care Spot - Private (3rd),5701,B
18,Devon County Council,10/10/2012,CFADDOM30044778,REDACTED UNDER DP ACT,562.52,BRAUNTON CARE LTD,262416,,People Services,Care Spot - Private (3rd),5701,B
18,Devon County Council,10/10/2012,CFADDOM30044779,REDACTED UNDER DP ACT,1591.52,BRAUNTON CARE LTD,262416,,People Services,Care Spot - Private (3rd),5701,B
18,Devon County Council,10/10/2012,CFADDOM30044780,REDACTED UNDER DP ACT,2222.64,BRAUNTON CARE LTD,262416,,People Services,Care Spot - Private (3rd),5701,B
18,Devon County Council,10/10/2012,CFADDOM30044788,REDACTED UNDER DP ACT,775.18,BRAUNTON CARE LTD,262416,,People Services,Care Spot - Private (3rd),5701,B
18,Devon County Council,10/10/2012,CFADDOM30044789,REDACTED UNDER DP ACT,1984.24,BRAUNTON CARE LTD,262416,,People Services,Care Spot - Private (3rd),5701,B
18,Devon County Council,10/10/2012,CFADDOM30044790,REDACTED UNDER DP ACT,2222.64,BRAUNTON CARE LTD,262416,,People Services,Care Spot - Private (3rd),5701,B
18,Devon County Council,10/10/2012,CFADDOM30044791,REDACTED UNDER DP ACT,1344.56,BRAUNTON CARE LTD,262416,,People Services,Care Spot - Private (3rd),5701,B
18,Devon County Council,10/10/2012,CFADDOM30044792,REDACTED UNDER DP ACT,936.39,BRAUNTON CARE LTD,262416,,People Services,Care Spot - Private (3rd),5701,B
18,Devon County Council,10/10/2012,CFADDOM30044793,REDACTED UNDER DP ACT,1708.14,BRAUNTON CARE LTD,262416,,People Services,Care Spot - Private (3rd),5701,B
18,Devon County Council,03/10/2012,CFADRES30068788,REDACTED UNDER DP ACT,6730.88,BRIARCROFT,90534,,People Services,Care Spot - Private (3rd),5701,B
18,Devon County Council,17/10/2012,CFADRES30069464,REDACTED UNDER DP ACT,10228.74,BRIARCROFT,90534,,People Services,Care Spot - Private (3rd),5701,B
18,Devon County Council,31/10/2012,CFADRES30070138,REDACTED UNDER DP ACT,7560.88,BRIARCROFT,90534,,People Services,Care Spot - Private (3rd),5701,B
18,Devon County Council,03/10/2012,CFADRES30068615,REDACTED UNDER DP ACT,1489.29,BROADREACH HOUSE,87099,,People Services,Care Spot - Private (3rd),5701,B
18,Devon County Council,17/10/2012,CFADRES30069291,REDACTED UNDER DP ACT,1390,BROADREACH HOUSE,87099,,People Services,Care Spot - Private (3rd),5701,B
18,Devon County Council,03/10/2012,CFADRES30068706,REDACTED UNDER DP ACT,5148.6,BRONTE RESIDENTIAL CARE HOME,89647,,People Services,Care Spot - Private (3rd),5701,B
18,Devon County Council,17/10/2012,CFADRES30069383,REDACTED UNDER DP ACT,7824.09,BRONTE RESIDENTIAL CARE HOME,89647,,People Services,Care Spot - Private (3rd),5701,B
18,Devon County Council,31/10/2012,CFADRES30070057,REDACTED UNDER DP ACT,11988.66,BRONTE RESIDENTIAL CARE HOME,89647,,People Services,Care Spot - Private (3rd),5701,B
18,Devon County Council,03/10/2012,CFADRES30068997,REDACTED UNDER DP ACT,2862,BROOK LODGE,186523,,People Services,Care Spot - Private (3rd),5701,B
18,Devon County Council,17/10/2012,CFADRES30069671,REDACTED UNDER DP ACT,2862,BROOK LODGE,186523,,People Services,Care Spot - Private (3rd),5701,B
18,Devon County Council,31/10/2012,CFADRES30070348,REDACTED UNDER DP ACT,2862,BROOK LODGE,186523,,People Services,Care Spot - Private (3rd),5701,B
18,Devon County Council,03/10/2012,CFADRES30068864,REDACTED UNDER DP ACT,1536.6,BUPA CARE HOMES LTD/AYLESHAM CRT,102126,,People Services,Care Spot - Private (3rd),5701,B
18,Devon County Council,17/10/2012,CFADRES30069539,REDACTED UNDER DP ACT,1536.6,BUPA CARE HOMES LTD/AYLESHAM CRT,102126,,People Services,Care Spot - Private (3rd),5701,B
18,Devon County Council,31/10/2012,CFADRES30070214,REDACTED UNDER DP ACT,1536.6,BUPA CARE HOMES LTD/AYLESHAM CRT,102126,,People Services,Care Spot - Private (3rd),5701,B
18,Devon County Council,10/10/2012,CFADDAY30021136,REDACTED UNDER DP ACT,650.88,BURDON GRANGE,203246,,People Services,Care Spot - Private (3rd),5701,B
18,Devon County Council,01/10/2012,CFADDOM30043974,REDACTED UNDER DP ACT,1591.52,BURDON GRANGE,203246,,People Services,Care Spot - Private (3rd),5701,B
18,Devon County Council,01/10/2012,CFADDOM30043977,REDACTED UNDER DP ACT,576.24,BURDON GRANGE,203246,,People Services,Care Spot - Private (3rd),5701,B
18,Devon County Council,01/10/2012,CFADDOM30043978,REDACTED UNDER DP ACT,1509.2,BURDON GRANGE,203246,,People Services,Care Spot - Private (3rd),5701,B
18,Devon County Council,01/10/2012,CFADDOM30043980,REDACTED UNDER DP ACT,1063.3,BURDON GRANGE,203246,,People Services,Care Spot - Private (3rd),5701,B
18,Devon County Council,01/10/2012,CFADDOM30043981,REDACTED UNDER DP ACT,2195.2,BURDON GRANGE,203246,,People Services,Care Spot - Private (3rd),5701,B
18,Devon County Council,01/10/2012,CFADDOM30043982,REDACTED UNDER DP ACT,1152.48,BURDON GRANGE,203246,,People Services,Care Spot - Private (3rd),5701,B
18,Devon County Council,01/10/2012,CFADDOM30043984,REDACTED UNDER DP ACT,1179.92,BURDON GRANGE,203246,,People Services,Care Spot - Private (3rd),5701,B
18,Devon County Council,01/10/2012,CFADDOM30043994,REDACTED UNDER DP ACT,2497.04,BURDON GRANGE,203246,,People Services,Care Spot - Private (3rd),5701,B
18,Devon County Council,03/10/2012,CFADDAY30020790,REDACTED UNDER DP ACT,730.56,BURLINGTON CARE,160108,,People Services,Individualised Support - Private (3rd),5706,B
18,Devon County Council,03/10/2012,CFADRES30068955,REDACTED UNDER DP ACT,3427.4,BURLINGTON CARE,160108,,People Services,Care Spot - Private (3rd),5701,B
18,Devon County Council,17/10/2012,CFADRES30069629,REDACTED UNDER DP ACT,3427.4,BURLINGTON CARE,160108,,People Services,Care Spot - Private (3rd),5701,B
18,Devon County Council,31/10/2012,CFADRES30070306,REDACTED UNDER DP ACT,3427.4,BURLINGTON CARE,160108,,People Services,Care Spot - Private (3rd),5701,B
18,Devon County Council,03/10/2012,CFADRES30068961,REDACTED UNDER DP ACT,874.92,BURNHAM NURSING & RESIDNTL CENTR,164760,,People Services,Care Spot - Private (3rd),5701,B
18,Devon County Council,17/10/2012,CFADRES30069635,REDACTED UNDER DP ACT,874.92,BURNHAM NURSING & RESIDNTL CENTR,164760,,People Services,Care Spot - Private (3rd),5701,B
18,Devon County Council,31/10/2012,CFADRES30070312,REDACTED UNDER DP ACT,874.92,BURNHAM NURSING & RESIDNTL CENTR,164760,,People Services,Care Spot - Private (3rd),5701,B
18,Devon County Council,03/10/2012,CFADRES30068622,REDACTED UNDER DP ACT,7461.6,BURROW DOWN SUPPORT SERVICES LTD,87371,,People Services,Care Spot - Private (3rd),5701,B
18,Devon County Council,17/10/2012,CFADRES30069298,REDACTED UNDER DP ACT,8671,BURROW DOWN SUPPORT SERVICES LTD,87371,,People Services,Care Spot - Private (3rd),5701,B
18,Devon County Council,31/10/2012,CFADRES30069972,REDACTED UNDER DP ACT,7987.19,BURROW DOWN SUPPORT SERVICES LTD,87371,,People Services,Care Spot - Private (3rd),5701,B
18,Devon County Council,03/10/2012,CFADRES30069084,REDACTED UNDER DP ACT,2020.2,CAMBERLEY COTTAGE,229198,,People Services,Care Spot - Private (3rd),5701,B
18,Devon County Council,17/10/2012,CFADRES30069757,REDACTED UNDER DP ACT,2020.2,CAMBERLEY COTTAGE,229198,,People Services,Care Spot - Private (3rd),5701,B
18,Devon County Council,31/10/2012,CFADRES30070434,REDACTED UNDER DP ACT,2020.2,CAMBERLEY COTTAGE,229198,,People Services,Care Spot - Private (3rd),5701,B
18,Devon County Council,03/10/2012,CFADRES30068924,REDACTED UNDER DP ACT,7269.52,CAMELOT HOUSE EMI NURSING HOME,144364,,People Services,Care Spot - Private (3rd),5701,B
18,Devon County Council,17/10/2012,CFADRES30069598,REDACTED UNDER DP ACT,6259.6,CAMELOT HOUSE EMI NURSING HOME,144364,,People Services,Care Spot - Private (3rd),5701,B
18,Devon County Council,31/10/2012,CFADRES30070274,REDACTED UNDER DP ACT,5502.16,CAMELOT HOUSE EMI NURSING HOME,144364,,People Services,Care Spot - Private (3rd),5701,B
18,Devon County Council,31/10/2012,CFADRES30070390,REDACTED UNDER DP ACT,4238.74,CAMPANIA CARE HOME,204943,,People Services,Care Spot - Private (3rd),5701,B
18,Devon County Council,10/10/2012,CFADDAY30021059,REDACTED UNDER DP ACT,1104,CAMPHILL DEVON COMMUNITY LTD,105994,,People Services,Care Spot - Private (3rd),5701,B
18,Devon County Council,03/10/2012,CFADRES30068877,REDACTED UNDER DP ACT,16981.02,CAMPHILL DEVON COMMUNITY LTD,105994,,People Services,Care Spot - Private (3rd),5701,B
18,Devon County Council,17/10/2012,CFADRES30069552,REDACTED UNDER DP ACT,16981.02,CAMPHILL DEVON COMMUNITY LTD,105994,,People Services,Care Spot - Private (3rd),5701,B
18,Devon County Council,31/10/2012,CFADRES30070227,REDACTED UNDER DP ACT,16981.02,CAMPHILL DEVON COMMUNITY LTD,105994,,People Services,Care Spot - Private (3rd),5701,B
18,Devon County Council,03/10/2012,CFADRES30069239,REDACTED UNDER DP ACT,1150,CANFORD CLIFFS REST HOME,292349,,People Services,Care Spot - Private (3rd),5701,B
18,Devon County Council,17/10/2012,CFADRES30069911,REDACTED UNDER DP ACT,1150,CANFORD CLIFFS REST HOME,292349,,People Services,Care Spot - Private (3rd),5701,B
18,Devon County Council,31/10/2012,CFADRES30070589,REDACTED UNDER DP ACT,1150,CANFORD CLIFFS REST HOME,292349,,People Services,Care Spot - Private (3rd),5701,B
18,Devon County Council,09/10/2012,CFADDOM30044435,REDACTED UNDER DP ACT,627.55,CARE COMPANY(SW)LTD,209342,,People Services,Care Spot - Private (3rd),5701,B
18,Devon County Council,15/10/2012,CFADDOM30045013,REDACTED UNDER DP ACT,1899.92,CARE COMPANY(SW)LTD,209342,,People Services,Care Spot - Private (3rd),5701,B
18,Devon County Council,15/10/2012,CFADDOM30045016,REDACTED UNDER DP ACT,1193.06,CARE COMPANY(SW)LTD,209342,,People Services,Care Spot - Private (3rd),5701,B
18,Devon County Council,15/10/2012,CFADDOM30045020,REDACTED UNDER DP ACT,538.56,CARE COMPANY(SW)LTD,209342,,People Services,Care Spot - Private (3rd),5701,B
18,Devon County Council,15/10/2012,CFADDOM30045022,REDACTED UNDER DP ACT,807.84,CARE COMPANY(SW)LTD,209342,,People Services,Care Spot - Private (3rd),5701,B
18,Devon County Council,15/10/2012,CFADDOM30045025,REDACTED UNDER DP ACT,639.54,CARE COMPANY(SW)LTD,209342,,People Services,Care Spot - Private (3rd),5701,B
18,Devon County Council,15/10/2012,CFADDOM30045027,REDACTED UNDER DP ACT,508.64,CARE COMPANY(SW)LTD,209342,,People Services,Care Spot - Private (3rd),5701,B
18,Devon County Council,15/10/2012,CFADDOM30045029,REDACTED UNDER DP ACT,538.56,CARE COMPANY(SW)LTD,209342,,People Services,Care Spot - Private (3rd),5701,B
18,Devon County Council,15/10/2012,CFADDOM30045031,REDACTED UNDER DP ACT,650.76,CARE COMPANY(SW)LTD,209342,,People Services,Care Spot - Private (3rd),5701,B
18,Devon County Council,22/10/2012,CFADDOM30045305,REDACTED UNDER DP ACT,17520,CARETIME SERVICES LIMITED,210505,,People Services,Care Spot - Private (3rd),5701,B
18,Devon County Council,22/10/2012,CFADDOM30045306,REDACTED UNDER DP ACT,19614.75,CARETIME SERVICES LIMITED,210505,,People Services,Care Spot - Private (3rd),5701,B
18,Devon County Council,22/10/2012,CFADDOM30045307,REDACTED UNDER DP ACT,20942.22,CARETIME SERVICES LIMITED,210505,,People Services,Care Spot - Private (3rd),5701,B
18,Devon County Council,22/10/2012,CFADDOM30045308,REDACTED UNDER DP ACT,13596.25,CARETIME SERVICES LIMITED,210505,,People Services,Care Spot - Private (3rd),5701,B
18,Devon County Council,03/10/2012,CFADRES30069114,REDACTED UNDER DP ACT,914.12,CARRINGTON HOUSE,240422,,People Services,Care Spot - Private (3rd),5701,B
18,Devon County Council,17/10/2012,CFADRES30069787,REDACTED UNDER DP ACT,914.12,CARRINGTON HOUSE,240422,,People Services,Care Spot - Private (3rd),5701,B
18,Devon County Council,31/10/2012,CFADRES30070465,REDACTED UNDER DP ACT,914.12,CARRINGTON HOUSE,240422,,People Services,Care Spot - Private (3rd),5701,B
18,Devon County Council,17/10/2012,CFADRES30069430,REDACTED UNDER DP ACT,15792.62,CASH DE,90200,,People Services,Care Spot - Private (3rd),5701,B
18,Devon County Council,31/10/2012,CFADRES30070104,REDACTED UNDER DP ACT,15792.62,CASH DE,90200,,People Services,Care Spot - Private (3rd),5701,B
18,Devon County Council,03/10/2012,CFADRES30068713,REDACTED UNDER DP ACT,1858.12,CASTEL FROMA,89760,,People Services,Care Spot - Private (3rd),5701,B
18,Devon County Council,17/10/2012,CFADRES30069390,REDACTED UNDER DP ACT,1858.12,CASTEL FROMA,89760,,People Services,Care Spot - Private (3rd),5701,B
18,Devon County Council,31/10/2012,CFADRES30070064,REDACTED UNDER DP ACT,1858.12,CASTEL FROMA,89760,,People Services,Care Spot - Private (3rd),5701,B
18,Devon County Council,31/10/2012,CFADRES30070420,REDACTED UNDER DP ACT,15765.78,CASTLE HOUSE NURSING HOME,220448,,People Services,Care Spot - Private (3rd),5701,B
18,Devon County Council,03/10/2012,CFADRES30068778,REDACTED UNDER DP ACT,1549.36,CASTLE ROAD RENT A/C,90446,,People Services,Care Spot - Private (3rd),5701,B
18,Devon County Council,17/10/2012,CFADRES30069454,REDACTED UNDER DP ACT,1549.36,CASTLE ROAD RENT A/C,90446,,People Services,Care Spot - Private (3rd),5701,B
18,Devon County Council,31/10/2012,CFADRES30070128,REDACTED UNDER DP ACT,1128.08,CASTLE ROAD RENT A/C,90446,,People Services,Care Spot - Private (3rd),5701,B
18,Devon County Council,03/10/2012,CFADRES30069252,REDACTED UNDER DP ACT,5500,CASTLEBECK CARE(TEESDALE)WILLOW,294537,,People Services,Care Spot - Private (3rd),5701,B
18,Devon County Council,17/10/2012,CFADRES30069924,REDACTED UNDER DP ACT,5500,CASTLEBECK CARE(TEESDALE)WILLOW,294537,,People Services,Care Spot - Private (3rd),5701,B
18,Devon County Council,31/10/2012,CFADRES30070602,REDACTED UNDER DP ACT,5500,CASTLEBECK CARE(TEESDALE)WILLOW,294537,,People Services,Care Spot - Private (3rd),5701,B
18,Devon County Council,03/10/2012,CFADRES30069135,REDACTED UNDER DP ACT,2036.2,CATHERINE HOUSE,251903,,People Services,Care Spot - Private (3rd),5701,B
18,Devon County Council,17/10/2012,CFADRES30069807,REDACTED UNDER DP ACT,2036.2,CATHERINE HOUSE,251903,,People Services,Care Spot - Private (3rd),5701,B
18,Devon County Council,31/10/2012,CFADRES30070485,REDACTED UNDER DP ACT,2036.2,CATHERINE HOUSE,251903,,People Services,Care Spot - Private (3rd),5701,B
18,Devon County Council,03/10/2012,CFADRES30069100,REDACTED UNDER DP ACT,2664,CEDAR GRANGE,232408,,People Services,Care Spot - Private (3rd),5701,B
18,Devon County Council,17/10/2012,CFADRES30069773,REDACTED UNDER DP ACT,2664,CEDAR GRANGE,232408,,People Services,Care Spot - Private (3rd),5701,B
18,Devon County Council,31/10/2012,CFADRES30070450,REDACTED UNDER DP ACT,2664,CEDAR GRANGE,232408,,People Services,Care Spot - Private (3rd),5701,B
18,Devon County Council,03/10/2012,CFADRES30069173,REDACTED UNDER DP ACT,1100,CERNE ABBAS,275155,,People Services,Care Spot - Private (3rd),5701,B
18,Devon County Council,17/10/2012,CFADRES30069845,REDACTED UNDER DP ACT,1100,CERNE ABBAS,275155,,People Services,Care Spot - Private (3rd),5701,B
18,Devon County Council,31/10/2012,CFADRES30070523,REDACTED UNDER DP ACT,1100,CERNE ABBAS,275155,,People Services,Care Spot - Private (3rd),5701,B
18,Devon County Council,03/10/2012,CFADDAY30020823,REDACTED UNDER DP ACT,1361.91,CHAPTER 1,256621,,People Services,Individualised Support - Private (3rd),5706,B
18,Devon County Council,03/10/2012,CFADDAY30020824,REDACTED UNDER DP ACT,680.96,CHAPTER 1,256621,,People Services,Individualised Support - Private (3rd),5706,B
18,Devon County Council,03/10/2012,CFADDAY30020826,REDACTED UNDER DP ACT,680.96,CHAPTER 1,256621,,People Services,Individualised Support - Private (3rd),5706,B
18,Devon County Council,03/10/2012,CFADDAY30020828,REDACTED UNDER DP ACT,680.95,CHAPTER 1,256621,,People Services,Individualised Support - Private (3rd),5706,B
18,Devon County Council,03/10/2012,CFADDAY30020830,REDACTED UNDER DP ACT,680.96,CHAPTER 1,256621,,People Services,Individualised Support - Private (3rd),5706,B
18,Devon County Council,03/10/2012,CFADDAY30020831,REDACTED UNDER DP ACT,641.33,CHAPTER 1,256621,,People Services,Individualised Support - Private (3rd),5706,B
18,Devon County Council,03/10/2012,CFADDAY30020832,REDACTED UNDER DP ACT,641.33,CHAPTER 1,256621,,People Services,Individualised Support - Private (3rd),5706,B
18,Devon County Council,03/10/2012,CFADDAY30020835,REDACTED UNDER DP ACT,1676.95,CHAPTER 1,256621,,People Services,Individualised Support - Private (3rd),5706,B
18,Devon County Council,03/10/2012,CFADDAY30020836,REDACTED UNDER DP ACT,1361.95,CHAPTER 1,256621,,People Services,Individualised Support - Private (3rd),5706,B
18,Devon County Council,10/10/2012,CFADDAY30021182,REDACTED UNDER DP ACT,813.06,CHAPTER 1,256621,,People Services,Individualised Support - Private (3rd),5706,B
18,Devon County Council,01/10/2012,CFADDOM30044008,REDACTED UNDER DP ACT,966,CHAPTER CARE(NORTH DEVON)LTD,230988,911614553,People Services,Care Spot - Private (3rd),5701,B
18,Devon County Council,01/10/2012,CFADDOM30044010,REDACTED UNDER DP ACT,1288,CHAPTER CARE(NORTH DEVON)LTD,230988,911614553,People Services,Care Spot - Private (3rd),5701,B
18,Devon County Council,01/10/2012,CFADDOM30044012,REDACTED UNDER DP ACT,899.5,CHAPTER CARE(NORTH DEVON)LTD,230988,911614553,People Services,Care Spot - Private (3rd),5701,B
18,Devon County Council,01/10/2012,CFADDOM30044026,REDACTED UNDER DP ACT,1568,CHAPTER CARE(NORTH DEVON)LTD,230988,911614553,People Services,Care Spot - Private (3rd),5701,B
18,Devon County Council,01/10/2012,CFADDOM30044028,REDACTED UNDER DP ACT,1883,CHAPTER CARE(NORTH DEVON)LTD,230988,911614553,People Services,Care Spot - Private (3rd),5701,B
18,Devon County Council,09/10/2012,CFADDOM30044552,REDACTED UNDER DP ACT,1813,CHAPTER CARE(NORTH DEVON)LTD,230988,911614553,People Services,Care Spot - Private (3rd),5701,B
18,Devon County Council,09/10/2012,CFADDOM30044553,REDACTED UNDER DP ACT,1736,CHAPTER CARE(NORTH DEVON)LTD,230988,911614553,People Services,Care Spot - Private (3rd),5701,B
18,Devon County Council,09/10/2012,CFADDOM30044554,REDACTED UNDER DP ACT,574,CHAPTER CARE(NORTH DEVON)LTD,230988,911614553,People Services,Care Spot - Private (3rd),5701,B
18,Devon County Council,09/10/2012,CFADDOM30044556,REDACTED UNDER DP ACT,1708,CHAPTER CARE(NORTH DEVON)LTD,230988,911614553,People Services,Care Spot - Private (3rd),5701,B
18,Devon County Council,09/10/2012,CFADDOM30044565,REDACTED UNDER DP ACT,833,CHAPTER CARE(NORTH DEVON)LTD,230988,911614553,People Services,Care Spot - Private (3rd),5701,B
18,Devon County Council,09/10/2012,CFADDOM30044568,REDACTED UNDER DP ACT,584.5,CHAPTER CARE(NORTH DEVON)LTD,230988,911614553,People Services,Care Spot - Private (3rd),5701,B
18,Devon County Council,09/10/2012,CFADDOM30044570,REDACTED UNDER DP ACT,616,CHAPTER CARE(NORTH DEVON)LTD,230988,911614553,People Services,Care Spot - Private (3rd),5701,B
18,Devon County Council,09/10/2012,CFADDOM30044572,REDACTED UNDER DP ACT,1764,CHAPTER CARE(NORTH DEVON)LTD,230988,911614553,People Services,Care Spot - Private (3rd),5701,B
18,Devon County Council,29/10/2012,CFADDOM30045737,REDACTED UNDER DP ACT,2145.5,CHAPTER CARE(NORTH DEVON)LTD,230988,911614553,People Services,Care Spot - Private (3rd),5701,B
18,Devon County Council,29/10/2012,CFADDOM30045740,REDACTED UNDER DP ACT,980,CHAPTER CARE(NORTH DEVON)LTD,230988,911614553,People Services,Care Spot - Private (3rd),5701,B
18,Devon County Council,29/10/2012,CFADDOM30045742,REDACTED UNDER DP ACT,1288,CHAPTER CARE(NORTH DEVON)LTD,230988,911614553,People Services,Care Spot - Private (3rd),5701,B
18,Devon County Council,29/10/2012,CFADDOM30045744,REDACTED UNDER DP ACT,910,CHAPTER CARE(NORTH DEVON)LTD,230988,911614553,People Services,Care Spot - Private (3rd),5701,B
18,Devon County Council,29/10/2012,CFADDOM30045748,REDACTED UNDER DP ACT,588,CHAPTER CARE(NORTH DEVON)LTD,230988,911614553,People Services,Care Spot - Private (3rd),5701,B
18,Devon County Council,29/10/2012,CFADDOM30045756,REDACTED UNDER DP ACT,1568,CHAPTER CARE(NORTH DEVON)LTD,230988,911614553,People Services,Care Spot - Private (3rd),5701,B
18,Devon County Council,29/10/2012,CFADDOM30045758,REDACTED UNDER DP ACT,1680,CHAPTER CARE(NORTH DEVON)LTD,230988,911614553,People Services,Care Spot - Private (3rd),5701,B
18,Devon County Council,29/10/2012,CFADDOM30045759,REDACTED UNDER DP ACT,868,CHAPTER CARE(NORTH DEVON)LTD,230988,911614553,People Services,Care Spot - Private (3rd),5701,B
18,Devon County Council,29/10/2012,CFADDOM30045760,REDACTED UNDER DP ACT,588,CHAPTER CARE(NORTH DEVON)LTD,230988,911614553,People Services,Care Spot - Private (3rd),5701,B
18,Devon County Council,29/10/2012,CFADDOM30045762,REDACTED UNDER DP ACT,1722,CHAPTER CARE(NORTH DEVON)LTD,230988,911614553,People Services,Care Spot - Private (3rd),5701,B
18,Devon County Council,29/10/2012,CFADDOM30045770,REDACTED UNDER DP ACT,980,CHAPTER CARE(NORTH DEVON)LTD,230988,911614553,People Services,Care Spot - Private (3rd),5701,B
18,Devon County Council,29/10/2012,CFADDOM30045773,REDACTED UNDER DP ACT,798,CHAPTER CARE(NORTH DEVON)LTD,230988,911614553,People Services,Care Spot - Private (3rd),5701,B
18,Devon County Council,29/10/2012,CFADDOM30045775,REDACTED UNDER DP ACT,616,CHAPTER CARE(NORTH DEVON)LTD,230988,911614553,People Services,Care Spot - Private (3rd),5701,B
18,Devon County Council,03/10/2012,CFADRES30068733,REDACTED UNDER DP ACT,782,CHARLTON HOUSE R HME,89999,,People Services,Care Spot - Private (3rd),5701,B
18,Devon County Council,17/10/2012,CFADRES30069409,REDACTED UNDER DP ACT,782,CHARLTON HOUSE R HME,89999,,People Services,Care Spot - Private (3rd),5701,B
18,Devon County Council,31/10/2012,CFADRES30070083,REDACTED UNDER DP ACT,782,CHARLTON HOUSE R HME,89999,,People Services,Care Spot - Private (3rd),5701,B
18,Devon County Council,03/10/2012,CFADRES30068926,REDACTED UNDER DP ACT,6996.46,CHARTERHOUSE RESIDENTIAL HOME,146731,,People Services,Care Spot - Private (3rd),5701,B
18,Devon County Council,17/10/2012,CFADRES30069600,REDACTED UNDER DP ACT,6977.03,CHARTERHOUSE RESIDENTIAL HOME,146731,,People Services,Care Spot - Private (3rd),5701,B
18,Devon County Council,31/10/2012,CFADRES30070276,REDACTED UNDER DP ACT,6265.6,CHARTERHOUSE RESIDENTIAL HOME,146731,,People Services,Care Spot - Private (3rd),5701,B
18,Devon County Council,03/10/2012,CFADRES30069190,REDACTED UNDER DP ACT,970,CHASTON HOUSE LTD/MRS P LEATHAM,279695,,People Services,Care Spot - Private (3rd),5701,B
18,Devon County Council,17/10/2012,CFADRES30069862,REDACTED UNDER DP ACT,970,CHASTON HOUSE LTD/MRS P LEATHAM,279695,,People Services,Care Spot - Private (3rd),5701,B
18,Devon County Council,31/10/2012,CFADRES30070540,REDACTED UNDER DP ACT,970,CHASTON HOUSE LTD/MRS P LEATHAM,279695,,People Services,Care Spot - Private (3rd),5701,B
18,Devon County Council,03/10/2012,CFADRES30068970,REDACTED UNDER DP ACT,15200.46,CHELFHAM HOUSE RESIDENTIAL HOME,170833,,People Services,Care Spot - Private (3rd),5701,B
18,Devon County Council,17/10/2012,CFADRES30069644,REDACTED UNDER DP ACT,15852.6,CHELFHAM HOUSE RESIDENTIAL HOME,170833,,People Services,Care Spot - Private (3rd),5701,B
18,Devon County Council,31/10/2012,CFADRES30070321,REDACTED UNDER DP ACT,15971.18,CHELFHAM HOUSE RESIDENTIAL HOME,170833,,People Services,Care Spot - Private (3rd),5701,B
18,Devon County Council,03/10/2012,CFADRES30068629,REDACTED UNDER DP ACT,2630.84,CHELSTON PARK NURSING & RES HOME,87556,,People Services,Care Spot - Private (3rd),5701,B
18,Devon County Council,17/10/2012,CFADRES30069305,REDACTED UNDER DP ACT,2871.08,CHELSTON PARK NURSING & RES HOME,87556,,People Services,Care Spot - Private (3rd),5701,B
18,Devon County Council,31/10/2012,CFADRES30069979,REDACTED UNDER DP ACT,2648,CHELSTON PARK NURSING & RES HOME,87556,,People Services,Care Spot - Private (3rd),5701,B
18,Devon County Council,03/10/2012,CFADRES30069083,REDACTED UNDER DP ACT,565.02,CHERITON RESIDENTIAL & CARE HOME,229197,,People Services,Care Spot - Private (3rd),5701,B
18,Devon County Council,17/10/2012,CFADRES30069756,REDACTED UNDER DP ACT,565.02,CHERITON RESIDENTIAL & CARE HOME,229197,,People Services,Care Spot - Private (3rd),5701,B
18,Devon County Council,31/10/2012,CFADRES30070433,REDACTED UNDER DP ACT,565.02,CHERITON RESIDENTIAL & CARE HOME,229197,,People Services,Care Spot - Private (3rd),5701,B
18,Devon County Council,03/10/2012,CFADRES30068613,REDACTED UNDER DP ACT,4940.84,CHIMES THE,87062,,People Services,Care Spot - Private (3rd),5701,B
18,Devon County Council,17/10/2012,CFADRES30069289,REDACTED UNDER DP ACT,4940.84,CHIMES THE,87062,,People Services,Care Spot - Private (3rd),5701,B
18,Devon County Council,31/10/2012,CFADRES30069963,REDACTED UNDER DP ACT,4940.84,CHIMES THE,87062,,People Services,Care Spot - Private (3rd),5701,B
18,Devon County Council,03/10/2012,CFADRES30068619,REDACTED UNDER DP ACT,919.7,CHOICE CARE HOME,87299,,People Services,Care Spot - Private (3rd),5701,B
18,Devon County Council,17/10/2012,CFADRES30069295,REDACTED UNDER DP ACT,919.7,CHOICE CARE HOME,87299,,People Services,Care Spot - Private (3rd),5701,B
18,Devon County Council,31/10/2012,CFADRES30069969,REDACTED UNDER DP ACT,919.7,CHOICE CARE HOME,87299,,People Services,Care Spot - Private (3rd),5701,B
18,Devon County Council,03/10/2012,CFSUPP30171148,REDACTED UNDER DP ACT,19252.32,CHRISTIAN ALLIANCE H A(SP PMTS),120564,,People Services,Accomodation Based Services (3rd),5707,B
18,Devon County Council,31/10/2012,CFSUPP30171322,REDACTED UNDER DP ACT,19252.32,CHRISTIAN ALLIANCE H A(SP PMTS),120564,,People Services,Accomodation Based Services (3rd),5707,B
18,Devon County Council,16/10/2012,FINMH30445107,350,11201.66,CHRISTIAN ALLIANCE H A(SP PMTS),120564,,People Services,Care Block - Private (3rd),5702,B
18,Devon County Council,10/10/2012,FINMH30445108,348,11201.66,CHRISTIAN ALLIANCE H A(SP PMTS),120564,,People Services,Care Block - Private (3rd),5702,B
18,Devon County Council,03/10/2012,FINMH30445092,203,1361.95,CHRISTIAN ALLIANCE HOUSING ASSOC,160070,749563487,People Services,Individualised Support - Private (3rd),5706,B
18,Devon County Council,03/10/2012,CFADRES30068860,REDACTED UNDER DP ACT,1352.08,COLOMBINI E,101115,,People Services,Care Spot - Private (3rd),5701,B
18,Devon County Council,17/10/2012,CFADRES30069535,REDACTED UNDER DP ACT,1352.08,COLOMBINI E,101115,,People Services,Care Spot - Private (3rd),5701,B
18,Devon County Council,31/10/2012,CFADRES30070210,REDACTED UNDER DP ACT,1352.08,COLOMBINI E,101115,,People Services,Care Spot - Private (3rd),5701,B
18,Devon County Council,10/10/2012,CFADDAY30020978,REDACTED UNDER DP ACT,568.75,COMMUNITY CARE TRUST S DEVON LTD,87475,,People Services,Individualised Support - Private (3rd),5706,B
18,Devon County Council,10/10/2012,CFADDAY30020979,REDACTED UNDER DP ACT,790.9,COMMUNITY CARE TRUST S DEVON LTD,87475,,People Services,Individualised Support - Private (3rd),5706,B
18,Devon County Council,15/10/2012,FINMH30445096,CCT-PA-025,840,COMMUNITY CARE TRUST S DEVON LTD,87475,,People Services,Care Spot - Private (3rd),5701,B
18,Devon County Council,15/10/2012,FINMH30445099,CCT-PA-022,4725.65,COMMUNITY CARE TRUST S DEVON LTD,87475,,People Services,Care Spot - Private (3rd),5701,B
18,Devon County Council,15/10/2012,FINMH30445100,CCT-PA-021,2129.65,COMMUNITY CARE TRUST S DEVON LTD,87475,,People Services,Care Spot - Private (3rd),5701,B
18,Devon County Council,15/10/2012,FINMH30445118,CCT-PA-019,974.5,COMMUNITY CARE TRUST S DEVON LTD,87475,,People Services,Care Spot - Private (3rd),5701,B
18,Devon County Council,15/10/2012,FINMH30445119,CCT-PA-020,1510.8,COMMUNITY CARE TRUST S DEVON LTD,87475,,People Services,Care Spot - Private (3rd),5701,B
18,Devon County Council,10/10/2012,FINMH30445110,31910,5954.75,COMMUNITY HOUSING AID,243740,,People Services,Payments to Vol Providers (3rd),5501,B
18,Devon County Council,03/10/2012,CFADRES30068628,REDACTED UNDER DP ACT,14568.7,COOMBESWOOD HOUSE,87540,,People Services,Care Spot - Private (3rd),5701,B
18,Devon County Council,17/10/2012,CFADRES30069304,REDACTED UNDER DP ACT,15161.56,COOMBESWOOD HOUSE,87540,,People Services,Care Spot - Private (3rd),5701,B
18,Devon County Council,31/10/2012,CFADRES30069978,REDACTED UNDER DP ACT,15811.99,COOMBESWOOD HOUSE,87540,,People Services,Care Spot - Private (3rd),5701,B
18,Devon County Council,03/10/2012,CFADRES30068902,REDACTED UNDER DP ACT,1448.22,COPPER BEECHES CARE HOME,121229,,People Services,Care Spot - Private (3rd),5701,B
18,Devon County Council,17/10/2012,CFADRES30069576,REDACTED UNDER DP ACT,1448.22,COPPER BEECHES CARE HOME,121229,,People Services,Care Spot - Private (3rd),5701,B
18,Devon County Council,31/10/2012,CFADRES30070250,REDACTED UNDER DP ACT,1448.22,COPPER BEECHES CARE HOME,121229,,People Services,Care Spot - Private (3rd),5701,B
18,Devon County Council,03/10/2012,CFADRES30069126,REDACTED UNDER DP ACT,1687.4,COPPICE LEA,247059,,People Services,Care Spot - Private (3rd),5701,B
18,Devon County Council,17/10/2012,CFADRES30069797,REDACTED UNDER DP ACT,1687.4,COPPICE LEA,247059,,People Services,Care Spot - Private (3rd),5701,B
18,Devon County Council,31/10/2012,CFADRES30070475,REDACTED UNDER DP ACT,1687.4,COPPICE LEA,247059,,People Services,Care Spot - Private (3rd),5701,B
18,Devon County Council,03/10/2012,CFADRES30069187,REDACTED UNDER DP ACT,1595.58,CORNERWAYS CARE HOME,278868,,People Services,Care Spot - Private (3rd),5701,B
18,Devon County Council,17/10/2012,CFADRES30069859,REDACTED UNDER DP ACT,1595.58,CORNERWAYS CARE HOME,278868,,People Services,Care Spot - Private (3rd),5701,B
18,Devon County Council,31/10/2012,CFADRES30070537,REDACTED UNDER DP ACT,1595.58,CORNERWAYS CARE HOME,278868,,People Services,Care Spot - Private (3rd),5701,B
18,Devon County Council,01/10/2012,CFADDAY30020650,REDACTED UNDER DP ACT,11368,CORNWALL CARE LTD (TRURO),90449,,People Services,Individualised Support - Private (3rd),5706,B
18,Devon County Council,09/10/2012,CFADDAY30020858,REDACTED UNDER DP ACT,11368,CORNWALL CARE LTD (TRURO),90449,,People Services,Individualised Support - Private (3rd),5706,B
18,Devon County Council,22/10/2012,CFADDAY30021563,REDACTED UNDER DP ACT,14210,CORNWALL CARE LTD (TRURO),90449,,People Services,Individualised Support - Private (3rd),5706,B
18,Devon County Council,01/10/2012,CFADDOM30043963,REDACTED UNDER DP ACT,4060,CORNWALL CARE LTD (TRURO),90449,,People Services,Care Spot - Private (3rd),5701,B
18,Devon County Council,09/10/2012,CFADDOM30044298,REDACTED UNDER DP ACT,4060,CORNWALL CARE LTD (TRURO),90449,,People Services,Care Spot - Private (3rd),5701,B
18,Devon County Council,22/10/2012,CFADDOM30045315,REDACTED UNDER DP ACT,5075,CORNWALL CARE LTD (TRURO),90449,,People Services,Care Spot - Private (3rd),5701,B
18,Devon County Council,03/10/2012,CFADRES30068668,REDACTED UNDER DP ACT,8778.4,COURT HEALTHCARE LTD,89123,,People Services,Care Spot - Private (3rd),5701,B
18,Devon County Council,17/10/2012,CFADRES30069344,REDACTED UNDER DP ACT,8778.4,COURT HEALTHCARE LTD,89123,,People Services,Care Spot - Private (3rd),5701,B
18,Devon County Council,31/10/2012,CFADRES30070018,REDACTED UNDER DP ACT,8778.4,COURT HEALTHCARE LTD,89123,,People Services,Care Spot - Private (3rd),5701,B
18,Devon County Council,03/10/2012,CFADRES30068638,REDACTED UNDER DP ACT,3427.22,COURT HOUSE RESIDENTIAL HOME,88684,,People Services,Care Spot - Private (3rd),5701,B
18,Devon County Council,17/10/2012,CFADRES30069314,REDACTED UNDER DP ACT,3427.22,COURT HOUSE RESIDENTIAL HOME,88684,,People Services,Care Spot - Private (3rd),5701,B
18,Devon County Council,31/10/2012,CFADRES30069988,REDACTED UNDER DP ACT,3427.22,COURT HOUSE RESIDENTIAL HOME,88684,,People Services,Care Spot - Private (3rd),5701,B
18,Devon County Council,03/10/2012,CFADRES30068898,REDACTED UNDER DP ACT,7725.1,COURT RETIREMENT RESIDENCE,119163,,People Services,Care Spot - Private (3rd),5701,B
18,Devon County Council,17/10/2012,CFADRES30069572,REDACTED UNDER DP ACT,6753.07,COURT RETIREMENT RESIDENCE,119163,,People Services,Care Spot - Private (3rd),5701,B
18,Devon County Council,31/10/2012,CFADRES30070246,REDACTED UNDER DP ACT,6698.64,COURT RETIREMENT RESIDENCE,119163,,People Services,Care Spot - Private (3rd),5701,B
18,Devon County Council,01/10/2012,CFADDAY30020646,REDACTED UNDER DP ACT,682,CRAEGMOOR HEALTHCARE,89875,,People Services,Individualised Support - Private (3rd),5706,B
18,Devon County Council,01/10/2012,CFADDAY30020647,REDACTED UNDER DP ACT,1388.4,CRAEGMOOR HEALTHCARE,89875,,People Services,Individualised Support - Private (3rd),5706,B
18,Devon County Council,01/10/2012,CFADDAY30020648,REDACTED UNDER DP ACT,1080,CRAEGMOOR HEALTHCARE,89875,,People Services,Individualised Support - Private (3rd),5706,B
18,Devon County Council,29/10/2012,CFADDAY30021770,REDACTED UNDER DP ACT,682,CRAEGMOOR HEALTHCARE,89875,,People Services,Individualised Support - Private (3rd),5706,B
18,Devon County Council,29/10/2012,CFADDAY30021771,REDACTED UNDER DP ACT,1388.4,CRAEGMOOR HEALTHCARE,89875,,People Services,Individualised Support - Private (3rd),5706,B
18,Devon County Council,29/10/2012,CFADDAY30021772,REDACTED UNDER DP ACT,1080,CRAEGMOOR HEALTHCARE,89875,,People Services,Individualised Support - Private (3rd),5706,B
18,Devon County Council,03/10/2012,CFADRES30068679,REDACTED UNDER DP ACT,4462.52,CRANE AC & EL/HARRIS MBC & DR AJ,89244,,People Services,Care Spot - Private (3rd),5701,B
18,Devon County Council,17/10/2012,CFADRES30069355,REDACTED UNDER DP ACT,4462.52,CRANE AC & EL/HARRIS MBC & DR AJ,89244,,People Services,Care Spot - Private (3rd),5701,B
18,Devon County Council,31/10/2012,CFADRES30070029,REDACTED UNDER DP ACT,4462.52,CRANE AC & EL/HARRIS MBC & DR AJ,89244,,People Services,Care Spot - Private (3rd),5701,B
18,Devon County Council,03/10/2012,CFADRES30069210,REDACTED UNDER DP ACT,900,CRANTOCK LODGE (NEW OWNERS),285672,,People Services,Care Spot - Private (3rd),5701,B
18,Devon County Council,17/10/2012,CFADRES30069882,REDACTED UNDER DP ACT,2520,CRANTOCK LODGE (NEW OWNERS),285672,,People Services,Care Spot - Private (3rd),5701,B
18,Devon County Council,31/10/2012,CFADRES30070560,REDACTED UNDER DP ACT,1020,CRANTOCK LODGE (NEW OWNERS),285672,,People Services,Care Spot - Private (3rd),5701,B
18,Devon County Council,10/10/2012,CFADDAY30020974,REDACTED UNDER DP ACT,4458,CREDENCE HOUSE,87058,,People Services,Individualised Support - Private (3rd),5706,B
18,Devon County Council,10/10/2012,CFADDAY30020975,REDACTED UNDER DP ACT,4458,CREDENCE HOUSE,87058,,People Services,Individualised Support - Private (3rd),5706,B
18,Devon County Council,03/10/2012,CFADRES30068612,REDACTED UNDER DP ACT,4228.5,CREDENCE HOUSE,87058,,People Services,Care Spot - Private (3rd),5701,B
18,Devon County Council,17/10/2012,CFADRES30069288,REDACTED UNDER DP ACT,4228.5,CREDENCE HOUSE,87058,,People Services,Care Spot - Private (3rd),5701,B
18,Devon County Council,31/10/2012,CFADRES30069962,REDACTED UNDER DP ACT,4228.5,CREDENCE HOUSE,87058,,People Services,Care Spot - Private (3rd),5701,B
18,Devon County Council,03/10/2012,CFADRES30069241,REDACTED UNDER DP ACT,11913.61,CRELAKE CARE LTD T/A CRELAKE HSE,292598,,People Services,Care Spot - Private (3rd),5701,B
18,Devon County Council,17/10/2012,CFADRES30069913,REDACTED UNDER DP ACT,9555.75,CRELAKE CARE LTD T/A CRELAKE HSE,292598,,People Services,Care Spot - Private (3rd),5701,B
18,Devon County Council,31/10/2012,CFADRES30070591,REDACTED UNDER DP ACT,10962.44,CRELAKE CARE LTD T/A CRELAKE HSE,292598,,People Services,Care Spot - Private (3rd),5701,B
18,Devon County Council,03/10/2012,CFADRES30069133,REDACTED UNDER DP ACT,4160,CROFT LODGE (NEW OWNERS),250761,,People Services,Care Spot - Private (3rd),5701,B
18,Devon County Council,17/10/2012,CFADRES30069805,REDACTED UNDER DP ACT,4990,CROFT LODGE (NEW OWNERS),250761,,People Services,Care Spot - Private (3rd),5701,B
18,Devon County Council,31/10/2012,CFADRES30070483,REDACTED UNDER DP ACT,4397.14,CROFT LODGE (NEW OWNERS),250761,,People Services,Care Spot - Private (3rd),5701,B
18,Devon County Council,03/10/2012,CFADRES30068932,REDACTED UNDER DP ACT,3156.36,CROMARTY HOUSE,151905,,People Services,Care Spot - Private (3rd),5701,B
18,Devon County Council,09/10/2012,CFADDAY30020883,REDACTED UNDER DP ACT,960,CROOK M T/A SOUTHERNHAY RES HOME,115824,,People Services,Care Spot - Private (3rd),5701,B
18,Devon County Council,09/10/2012,CFADDAY30020884,REDACTED UNDER DP ACT,840,CROOK M T/A SOUTHERNHAY RES HOME,115824,,People Services,Care Spot - Private (3rd),5701,B
18,Devon County Council,09/10/2012,CFADDAY30020885,REDACTED UNDER DP ACT,960,CROOK M T/A SOUTHERNHAY RES HOME,115824,,People Services,Care Spot - Private (3rd),5701,B
18,Devon County Council,09/10/2012,CFADDAY30020886,REDACTED UNDER DP ACT,960,CROOK M T/A SOUTHERNHAY RES HOME,115824,,People Services,Care Spot - Private (3rd),5701,B
18,Devon County Council,09/10/2012,CFADDAY30020887,REDACTED UNDER DP ACT,880,CROOK M T/A SOUTHERNHAY RES HOME,115824,,People Services,Care Spot - Private (3rd),5701,B
18,Devon County Council,03/10/2012,CFADRES30068890,REDACTED UNDER DP ACT,6738.96,CROOK M T/A SOUTHERNHAY RES HOME,115824,,People Services,Care Spot - Private (3rd),5701,B
18,Devon County Council,17/10/2012,CFADRES30069564,REDACTED UNDER DP ACT,6738.96,CROOK M T/A SOUTHERNHAY RES HOME,115824,,People Services,Care Spot - Private (3rd),5701,B
18,Devon County Council,31/10/2012,CFADRES30070239,REDACTED UNDER DP ACT,6738.96,CROOK M T/A SOUTHERNHAY RES HOME,115824,,People Services,Care Spot - Private (3rd),5701,B
18,Devon County Council,03/10/2012,CFADRES30068602,REDACTED UNDER DP ACT,2259.32,CROSS PARK HOUSE,86782,,People Services,Care Spot - Private (3rd),5701,B
18,Devon County Council,17/10/2012,CFADRES30069278,REDACTED UNDER DP ACT,2259.32,CROSS PARK HOUSE,86782,,People Services,Care Spot - Private (3rd),5701,B
18,Devon County Council,31/10/2012,CFADRES30069952,REDACTED UNDER DP ACT,2259.32,CROSS PARK HOUSE,86782,,People Services,Care Spot - Private (3rd),5701,B
18,Devon County Council,03/10/2012,CFADRES30068730,REDACTED UNDER DP ACT,8692,CROWE GF,89970,945640606,People Services,Care Spot - Private (3rd),5701,B
18,Devon County Council,17/10/2012,CFADRES30069406,REDACTED UNDER DP ACT,9522,CROWE GF,89970,945640606,People Services,Care Spot - Private (3rd),5701,B
18,Devon County Council,31/10/2012,CFADRES30070080,REDACTED UNDER DP ACT,7565.58,CROWE GF,89970,945640606,People Services,Care Spot - Private (3rd),5701,B
18,Devon County Council,31/10/2012,CFADRES30070244,REDACTED UNDER DP ACT,11172.45,CULM VALLEY CARE CENTRE,118328,,People Services,Care Spot - Private (3rd),5701,B
18,Devon County Council,19/10/2012,FINMDAD30441819,9: 7/12,5714.29,CULM VALLEY CARE CENTRE,118328,,People Services,Care Spot - Private (3rd),5701,B
18,Devon County Council,03/10/2012,CFADRES30069253,REDACTED UNDER DP ACT,2835,DANA CARE LTD T/A DANA HOUSE,294757,,People Services,Care Spot - Private (3rd),5701,B
18,Devon County Council,17/10/2012,CFADRES30069925,REDACTED UNDER DP ACT,2835,DANA CARE LTD T/A DANA HOUSE,294757,,People Services,Care Spot - Private (3rd),5701,B
18,Devon County Council,31/10/2012,CFADRES30070603,REDACTED UNDER DP ACT,2835,DANA CARE LTD T/A DANA HOUSE,294757,,People Services,Care Spot - Private (3rd),5701,B
18,Devon County Council,03/10/2012,CFADRES30068665,REDACTED UNDER DP ACT,3528.68,DAVIES JL & PJ,89115,,People Services,Care Spot - Private (3rd),5701,B
18,Devon County Council,17/10/2012,CFADRES30069341,REDACTED UNDER DP ACT,3528.68,DAVIES JL & PJ,89115,,People Services,Care Spot - Private (3rd),5701,B
18,Devon County Council,31/10/2012,CFADRES30070015,REDACTED UNDER DP ACT,3528.68,DAVIES JL & PJ,89115,,People Services,Care Spot - Private (3rd),5701,B
18,Devon County Council,03/10/2012,CFADRES30068654,REDACTED UNDER DP ACT,3249.2,DAY SUSAN OLD PEOPLES HOME,89018,,People Services,Care Spot - Private (3rd),5701,B
18,Devon County Council,17/10/2012,CFADRES30069330,REDACTED UNDER DP ACT,3249.2,DAY SUSAN OLD PEOPLES HOME,89018,,People Services,Care Spot - Private (3rd),5701,B
18,Devon County Council,31/10/2012,CFADRES30070004,REDACTED UNDER DP ACT,4306.05,DAY SUSAN OLD PEOPLES HOME,89018,,People Services,Care Spot - Private (3rd),5701,B
18,Devon County Council,01/10/2012,CFADDOM30044035,REDACTED UNDER DP ACT,559.45,DEER PARK RESIDENTIAL HOME,277063,,People Services,Care Spot - Private (3rd),5701,B
18,Devon County Council,10/10/2012,CFADDOM30044837,REDACTED UNDER DP ACT,576.24,DEER PARK RESIDENTIAL HOME,277063,,People Services,Care Spot - Private (3rd),5701,B
18,Devon County Council,10/10/2012,CFADDOM30044843,REDACTED UNDER DP ACT,576.24,DEER PARK RESIDENTIAL HOME,277063,,People Services,Care Spot - Private (3rd),5701,B
18,Devon County Council,10/10/2012,CFADDOM30044850,REDACTED UNDER DP ACT,631.12,DEER PARK RESIDENTIAL HOME,277063,,People Services,Care Spot - Private (3rd),5701,B
18,Devon County Council,29/10/2012,CFADDOM30045794,REDACTED UNDER DP ACT,576.24,DEER PARK RESIDENTIAL HOME,277063,,People Services,Care Spot - Private (3rd),5701,B
18,Devon County Council,29/10/2012,CFADDOM30045802,REDACTED UNDER DP ACT,610.54,DEER PARK RESIDENTIAL HOME,277063,,People Services,Care Spot - Private (3rd),5701,B
18,Devon County Council,03/10/2012,CFADRES30069201,REDACTED UNDER DP ACT,19340.9,DENE COURT RESIDENTIAL HOME,282520,,People Services,Care Spot - Private (3rd),5701,B
18,Devon County Council,17/10/2012,CFADRES30069873,REDACTED UNDER DP ACT,19340.9,DENE COURT RESIDENTIAL HOME,282520,,People Services,Care Spot - Private (3rd),5701,B
18,Devon County Council,31/10/2012,CFADRES30070551,REDACTED UNDER DP ACT,19340.9,DENE COURT RESIDENTIAL HOME,282520,,People Services,Care Spot - Private (3rd),5701,B
18,Devon County Council,03/10/2012,CFADRES30068827,REDACTED UNDER DP ACT,3542.68,DEVON & CORNWALL AUTISTIC,90937,,People Services,Care Spot - Private (3rd),5701,B
18,Devon County Council,17/10/2012,CFADRES30069502,REDACTED UNDER DP ACT,3542.68,DEVON & CORNWALL AUTISTIC,90937,,People Services,Care Spot - Private (3rd),5701,B
18,Devon County Council,31/10/2012,CFADRES30070178,REDACTED UNDER DP ACT,3542.68,DEVON & CORNWALL AUTISTIC,90937,,People Services,Care Spot - Private (3rd),5701,B
18,Devon County Council,31/10/2012,CFADDAY30021903,REDACTED UNDER DP ACT,1720.04,DEVON & CORNWALL AUTISTIC COMM T,88854,,People Services,Care Spot - Private (3rd),5701,B
18,Devon County Council,03/10/2012,CFADRES30068648,REDACTED UNDER DP ACT,1365.82,DEVON & CORNWALL AUTISTIC COMM T,88854,,People Services,Care Spot - Private (3rd),5701,B
18,Devon County Council,17/10/2012,CFADRES30069324,REDACTED UNDER DP ACT,1365.82,DEVON & CORNWALL AUTISTIC COMM T,88854,,People Services,Care Spot - Private (3rd),5701,B
18,Devon County Council,31/10/2012,CFADRES30069998,REDACTED UNDER DP ACT,2896.44,DEVON & CORNWALL AUTISTIC COMM T,88854,,People Services,Care Spot - Private (3rd),5701,B
18,Devon County Council,22/10/2012,CFADDOM30045254,REDACTED UNDER DP ACT,16509.72,DEVON & CORNWALL CARE SERVICES,89806,,People Services,Care Block - Private (3rd),5702,B
18,Devon County Council,22/10/2012,CFADDOM30045255,REDACTED UNDER DP ACT,2603.42,DEVON & CORNWALL CARE SERVICES,89806,,People Services,Care Spot - Private (3rd),5701,B
18,Devon County Council,03/10/2012,CFADRES30068759,REDACTED UNDER DP ACT,20703.5,DEVON SHELTERED HOMES TRUST,90260,,People Services,Care Spot - Private (3rd),5701,B
18,Devon County Council,17/10/2012,CFADRES30069435,REDACTED UNDER DP ACT,20703.5,DEVON SHELTERED HOMES TRUST,90260,,People Services,Care Spot - Private (3rd),5701,B
18,Devon County Council,31/10/2012,CFADRES30070109,REDACTED UNDER DP ACT,24246.36,DEVON SHELTERED HOMES TRUST,90260,,People Services,Care Spot - Private (3rd),5701,B
18,Devon County Council,03/10/2012,CFADRES30068637,REDACTED UNDER DP ACT,2549.02,DIAMOND CARE 2000 LTD,88681,,People Services,Care Spot - Private (3rd),5701,B
18,Devon County Council,17/10/2012,CFADRES30069313,REDACTED UNDER DP ACT,2549.02,DIAMOND CARE 2000 LTD,88681,,People Services,Care Spot - Private (3rd),5701,B
18,Devon County Council,31/10/2012,CFADRES30069987,REDACTED UNDER DP ACT,2549.02,DIAMOND CARE 2000 LTD,88681,,People Services,Care Spot - Private (3rd),5701,B
18,Devon County Council,03/10/2012,CFADRES30069232,REDACTED UNDER DP ACT,13372.72,DIAMOND CARE(2000)LD/THE CHANTRY,291234,,People Services,Care Spot - Private (3rd),5701,B
18,Devon County Council,17/10/2012,CFADRES30069904,REDACTED UNDER DP ACT,13372.72,DIAMOND CARE(2000)LD/THE CHANTRY,291234,,People Services,Care Spot - Private (3rd),5701,B
18,Devon County Council,31/10/2012,CFADRES30070582,REDACTED UNDER DP ACT,13372.72,DIAMOND CARE(2000)LD/THE CHANTRY,291234,,People Services,Care Spot - Private (3rd),5701,B
18,Devon County Council,03/10/2012,CFADRES30068851,REDACTED UNDER DP ACT,5519.49,DODGE C T/A WESTCLIFFE HOUSE,99246,,People Services,Care Spot - Private (3rd),5701,B
18,Devon County Council,17/10/2012,CFADRES30069526,REDACTED UNDER DP ACT,8205.2,DODGE C T/A WESTCLIFFE HOUSE,99246,,People Services,Care Spot - Private (3rd),5701,B
18,Devon County Council,31/10/2012,CFADRES30070202,REDACTED UNDER DP ACT,8205.2,DODGE C T/A WESTCLIFFE HOUSE,99246,,People Services,Care Spot - Private (3rd),5701,B
18,Devon County Council,03/10/2012,CFADRES30068690,REDACTED UNDER DP ACT,11138.9,DODGE T/A WESTCLIFFE HOUSE,89387,,People Services,Care Spot - Private (3rd),5701,B
18,Devon County Council,17/10/2012,CFADRES30069366,REDACTED UNDER DP ACT,11138.9,DODGE T/A WESTCLIFFE HOUSE,89387,,People Services,Care Spot - Private (3rd),5701,B
18,Devon County Council,31/10/2012,CFADRES30070040,REDACTED UNDER DP ACT,11138.9,DODGE T/A WESTCLIFFE HOUSE,89387,,People Services,Care Spot - Private (3rd),5701,B
18,Devon County Council,03/10/2012,CFADRES30068710,REDACTED UNDER DP ACT,12548.38,DONNESS NURSING HOME,89728,,People Services,Care Spot - Private (3rd),5701,B
18,Devon County Council,17/10/2012,CFADRES30069387,REDACTED UNDER DP ACT,12158.14,DONNESS NURSING HOME,89728,,People Services,Care Spot - Private (3rd),5701,B
18,Devon County Council,03/10/2012,CFADRES30068943,REDACTED UNDER DP ACT,13292.26,DONNINGTON HOUSE,156587,,People Services,Care Spot - Private (3rd),5701,B
18,Devon County Council,17/10/2012,CFADRES30069617,REDACTED UNDER DP ACT,12392.26,DONNINGTON HOUSE,156587,,People Services,Care Spot - Private (3rd),5701,B
18,Devon County Council,31/10/2012,CFADRES30070293,REDACTED UNDER DP ACT,16476.74,DONNINGTON HOUSE,156587,,People Services,Care Spot - Private (3rd),5701,B
18,Devon County Council,03/10/2012,CFADRES30068862,REDACTED UNDER DP ACT,10130.3,DOVELEIGH CARE LTD T/A DOVE CRT,101741,,People Services,Care Spot - Private (3rd),5701,B
18,Devon County Council,17/10/2012,CFADRES30069537,REDACTED UNDER DP ACT,8386.22,DOVELEIGH CARE LTD T/A DOVE CRT,101741,,People Services,Care Spot - Private (3rd),5701,B
18,Devon County Council,31/10/2012,CFADRES30070212,REDACTED UNDER DP ACT,8909.44,DOVELEIGH CARE LTD T/A DOVE CRT,101741,,People Services,Care Spot - Private (3rd),5701,B
18,Devon County Council,03/10/2012,CFADRES30068871,REDACTED UNDER DP ACT,888,DRAKE NURSING HOME,104889,,People Services,Care Spot - Private (3rd),5701,B
18,Devon County Council,17/10/2012,CFADRES30069546,REDACTED UNDER DP ACT,888,DRAKE NURSING HOME,104889,,People Services,Care Spot - Private (3rd),5701,B
18,Devon County Council,31/10/2012,CFADRES30070221,REDACTED UNDER DP ACT,888,DRAKE NURSING HOME,104889,,People Services,Care Spot - Private (3rd),5701,B
18,Devon County Council,03/10/2012,CFADRES30068849,REDACTED UNDER DP ACT,6955.65,DUNMORE RESIDENTIAL CARE HOME,98047,135573116,People Services,Care Spot - Private (3rd),5701,B
18,Devon County Council,17/10/2012,CFADRES30069524,REDACTED UNDER DP ACT,7541.56,DUNMORE RESIDENTIAL CARE HOME,98047,135573116,People Services,Care Spot - Private (3rd),5701,B
18,Devon County Council,31/10/2012,CFADRES30070200,REDACTED UNDER DP ACT,7481.56,DUNMORE RESIDENTIAL CARE HOME,98047,135573116,People Services,Care Spot - Private (3rd),5701,B
18,Devon County Council,03/10/2012,CFADRES30068937,REDACTED UNDER DP ACT,841.98,DURNSFORD LODGE RESIDENTIAL HOME,155801,,People Services,Care Spot - Private (3rd),5701,B
18,Devon County Council,17/10/2012,CFADRES30069611,REDACTED UNDER DP ACT,841.98,DURNSFORD LODGE RESIDENTIAL HOME,155801,,People Services,Care Spot - Private (3rd),5701,B
18,Devon County Council,31/10/2012,CFADRES30070287,REDACTED UNDER DP ACT,841.98,DURNSFORD LODGE RESIDENTIAL HOME,155801,,People Services,Care Spot - Private (3rd),5701,B
18,Devon County Council,03/10/2012,CFADRES30069056,REDACTED UNDER DP ACT,668.42,EARLFIELD LODGE,209895,,People Services,Care Spot - Private (3rd),5701,B
18,Devon County Council,17/10/2012,CFADRES30069729,REDACTED UNDER DP ACT,668.42,EARLFIELD LODGE,209895,,People Services,Care Spot - Private (3rd),5701,B
18,Devon County Council,31/10/2012,CFADRES30070406,REDACTED UNDER DP ACT,668.42,EARLFIELD LODGE,209895,,People Services,Care Spot - Private (3rd),5701,B
18,Devon County Council,03/10/2012,CFADRES30068716,REDACTED UNDER DP ACT,26347.23,EASTLEIGH CARE HOMES,89795,,People Services,Care Spot - Private (3rd),5701,B
18,Devon County Council,31/10/2012,CFADRES30070067,REDACTED UNDER DP ACT,18744.14,EASTLEIGH CARE HOMES,89795,,People Services,Care Spot - Private (3rd),5701,B
18,Devon County Council,24/10/2012,FINSSCW30457982,5104,1700,EASTLEIGH CARE HOMES,89795,,People Services,Contributions to other agencies (3rd),5801,B
18,Devon County Council,03/10/2012,CFADRES30068904,REDACTED UNDER DP ACT,2962.36,EASTLEIGH HOUSE,121646,,People Services,Care Spot - Private (3rd),5701,B
18,Devon County Council,17/10/2012,CFADRES30069578,REDACTED UNDER DP ACT,2962.36,EASTLEIGH HOUSE,121646,,People Services,Care Spot - Private (3rd),5701,B
18,Devon County Council,31/10/2012,CFADRES30070252,REDACTED UNDER DP ACT,2962.36,EASTLEIGH HOUSE,121646,,People Services,Care Spot - Private (3rd),5701,B
18,Devon County Council,03/10/2012,CFADRES30068717,REDACTED UNDER DP ACT,13622.33,EBBERLY HOUSE,89798,,People Services,Care Spot - Private (3rd),5701,B
18,Devon County Council,17/10/2012,CFADRES30069394,REDACTED UNDER DP ACT,12949.17,EBBERLY HOUSE,89798,,People Services,Care Spot - Private (3rd),5701,B
18,Devon County Council,31/10/2012,CFADRES30070068,REDACTED UNDER DP ACT,11928.9,EBBERLY HOUSE,89798,,People Services,Care Spot - Private (3rd),5701,B
18,Devon County Council,03/10/2012,CFADRES30069250,REDACTED UNDER DP ACT,1000,EDGECUMBE LODGE CARE HOME,294314,,People Services,Care Spot - Private (3rd),5701,B
18,Devon County Council,17/10/2012,CFADRES30069922,REDACTED UNDER DP ACT,1000,EDGECUMBE LODGE CARE HOME,294314,,People Services,Care Spot - Private (3rd),5701,B
18,Devon County Council,31/10/2012,CFADRES30070600,REDACTED UNDER DP ACT,1000,EDGECUMBE LODGE CARE HOME,294314,,People Services,Care Spot - Private (3rd),5701,B
18,Devon County Council,03/10/2012,CFADRES30068969,REDACTED UNDER DP ACT,2863.9,ELM TREE HOUSE RESIDENTIAL HOME,169721,,People Services,Care Spot - Private (3rd),5701,B
18,Devon County Council,17/10/2012,CFADRES30069643,REDACTED UNDER DP ACT,2064.4,ELM TREE HOUSE RESIDENTIAL HOME,169721,,People Services,Care Spot - Private (3rd),5701,B
18,Devon County Council,31/10/2012,CFADRES30070320,REDACTED UNDER DP ACT,2064.4,ELM TREE HOUSE RESIDENTIAL HOME,169721,,People Services,Care Spot - Private (3rd),5701,B
18,Devon County Council,03/10/2012,CFADRES30069152,REDACTED UNDER DP ACT,1866,ELMBRIDGE RESIDENTIAL CARE HOME,263849,,People Services,Care Spot - Private (3rd),5701,B
18,Devon County Council,17/10/2012,CFADRES30069824,REDACTED UNDER DP ACT,1866,ELMBRIDGE RESIDENTIAL CARE HOME,263849,,People Services,Care Spot - Private (3rd),5701,B
18,Devon County Council,31/10/2012,CFADRES30070502,REDACTED UNDER DP ACT,1866,ELMBRIDGE RESIDENTIAL CARE HOME,263849,,People Services,Care Spot - Private (3rd),5701,B
18,Devon County Council,03/10/2012,CFADRES30068734,REDACTED UNDER DP ACT,7838.61,ELMWOOD RESIDENTIAL HOME,90030,,People Services,Care Spot - Private (3rd),5701,B
18,Devon County Council,17/10/2012,CFADRES30069410,REDACTED UNDER DP ACT,6902.7,ELMWOOD RESIDENTIAL HOME,90030,,People Services,Care Spot - Private (3rd),5701,B
18,Devon County Council,31/10/2012,CFADRES30070084,REDACTED UNDER DP ACT,8698.84,ELMWOOD RESIDENTIAL HOME,90030,,People Services,Care Spot - Private (3rd),5701,B
18,Devon County Council,03/10/2012,CFADRES30069115,REDACTED UNDER DP ACT,1057.06,ELSTREE LAWNS NURSING HOME,240551,,People Services,Care Spot - Private (3rd),5701,B
18,Devon County Council,17/10/2012,CFADRES30069788,REDACTED UNDER DP ACT,1057.06,ELSTREE LAWNS NURSING HOME,240551,,People Services,Care Spot - Private (3rd),5701,B
18,Devon County Council,31/10/2012,CFADRES30070466,REDACTED UNDER DP ACT,1057.06,ELSTREE LAWNS NURSING HOME,240551,,People Services,Care Spot - Private (3rd),5701,B
18,Devon County Council,03/10/2012,CFADRES30068738,REDACTED UNDER DP ACT,1837.92,EMERY PD & ED,90047,,People Services,Care Spot - Private (3rd),5701,B
18,Devon County Council,17/10/2012,CFADRES30069414,REDACTED UNDER DP ACT,1837.92,EMERY PD & ED,90047,,People Services,Care Spot - Private (3rd),5701,B
18,Devon County Council,31/10/2012,CFADRES30070088,REDACTED UNDER DP ACT,1837.92,EMERY PD & ED,90047,,People Services,Care Spot - Private (3rd),5701,B
18,Devon County Council,01/10/2012,CFADDAY30020717,REDACTED UNDER DP ACT,2110,EMPOWERING LIVES,248207,,People Services,Individualised Support - Private (3rd),5706,B
18,Devon County Council,01/10/2012,CFADDAY30020718,REDACTED UNDER DP ACT,714,EMPOWERING LIVES,248207,,People Services,Individualised Support - Private (3rd),5706,B
18,Devon County Council,01/10/2012,CFADDAY30020719,REDACTED UNDER DP ACT,1554,EMPOWERING LIVES,248207,,People Services,Individualised Support - Private (3rd),5706,B
18,Devon County Council,01/10/2012,CFADDAY30020720,REDACTED UNDER DP ACT,1554,EMPOWERING LIVES,248207,,People Services,Individualised Support - Private (3rd),5706,B
18,Devon County Council,01/10/2012,CFADDAY30020721,REDACTED UNDER DP ACT,2932,EMPOWERING LIVES,248207,,People Services,Individualised Support - Private (3rd),5706,B
18,Devon County Council,31/10/2012,CFADDAY30022040,REDACTED UNDER DP ACT,1554,EMPOWERING LIVES,248207,,People Services,Individualised Support - Private (3rd),5706,B
18,Devon County Council,31/10/2012,CFADDAY30022041,REDACTED UNDER DP ACT,714,EMPOWERING LIVES,248207,,People Services,Individualised Support - Private (3rd),5706,B
18,Devon County Council,31/10/2012,CFADDAY30022042,REDACTED UNDER DP ACT,1554,EMPOWERING LIVES,248207,,People Services,Individualised Support - Private (3rd),5706,B
18,Devon County Council,31/10/2012,CFADDAY30022043,REDACTED UNDER DP ACT,2932,EMPOWERING LIVES,248207,,People Services,Individualised Support - Private (3rd),5706,B
18,Devon County Council,19/10/2012,CYPSWLOC30208189,7,6290.31,EMPOWERING LIVES,248207,,People Services,Independent Fostering (3rd),5714,B
18,Devon County Council,16/10/2012,CYPSWLOC30208393,06A,6499.99,EMPOWERING LIVES,248207,,People Services,Independent Fostering (3rd),5714,B
18,Devon County Council,03/10/2012,CFADDAY30020817,REDACTED UNDER DP ACT,6930,EMTILL PROJECTS LTD**DO NOT EXCL,209609,,People Services,Individualised Support - Private (3rd),5706,B
18,Devon County Council,03/10/2012,CFADDAY30020818,REDACTED UNDER DP ACT,3136,EMTILL PROJECTS LTD**DO NOT EXCL,209609,,People Services,Individualised Support - Private (3rd),5706,B
18,Devon County Council,03/10/2012,CFADDAY30020819,REDACTED UNDER DP ACT,3190,EMTILL PROJECTS LTD**DO NOT EXCL,209609,,People Services,Individualised Support - Private (3rd),5706,B
18,Devon County Council,31/10/2012,CFADDAY30022029,REDACTED UNDER DP ACT,1960,EMTILL PROJECTS LTD**DO NOT EXCL,209609,,People Services,Individualised Support - Private (3rd),5706,B
18,Devon County Council,03/10/2012,CFADDAY30020811,REDACTED UNDER DP ACT,1441.96,ENIGMA CARE LTD,206089,,People Services,Individualised Support - Private (3rd),5706,B
18,Devon County Council,10/10/2012,CFADDAY30021137,REDACTED UNDER DP ACT,5000,ENIGMA CARE LTD,206089,,People Services,Individualised Support - Private (3rd),5706,B
18,Devon County Council,10/10/2012,CFADDAY30021138,REDACTED UNDER DP ACT,4836,ENIGMA CARE LTD,206089,,People Services,Individualised Support - Private (3rd),5706,B
18,Devon County Council,10/10/2012,CFADDAY30021139,REDACTED UNDER DP ACT,600,ENIGMA CARE LTD,206089,,People Services,Care Spot - Private (3rd),5701,B
18,Devon County Council,10/10/2012,CFADDAY30021140,REDACTED UNDER DP ACT,1600,ENIGMA CARE LTD,206089,,People Services,Individualised Support - Private (3rd),5706,B
18,Devon County Council,22/10/2012,CFADDAY30021630,REDACTED UNDER DP ACT,3034,ENIGMA CARE LTD,206089,,People Services,Individualised Support - Private (3rd),5706,B
18,Devon County Council,22/10/2012,CFADDAY30021631,REDACTED UNDER DP ACT,3076,ENIGMA CARE LTD,206089,,People Services,Individualised Support - Private (3rd),5706,B
18,Devon County Council,24/10/2012,CFADDAY30021727,REDACTED UNDER DP ACT,751.72,ENIGMA CARE LTD,206089,,People Services,Individualised Support - Private (3rd),5706,B
18,Devon County Council,29/10/2012,CFADDAY30021848,REDACTED UNDER DP ACT,1441.96,ENIGMA CARE LTD,206089,,People Services,Individualised Support - Private (3rd),5706,B
18,Devon County Council,17/10/2012,CFADRES30069716,REDACTED UNDER DP ACT,11649.76,ENIGMA CARE LTD,206089,,People Services,Care Spot - Private (3rd),5701,B
18,Devon County Council,31/10/2012,CFADRES30070261,REDACTED UNDER DP ACT,1129,FAIRFIELDS COUNTRY REST HOME,135735,,People Services,Care Spot - Private (3rd),5701,B
18,Devon County Council,03/10/2012,CFADRES30068731,REDACTED UNDER DP ACT,16586,FARRINGTON RAB & MRS LH,89976,,People Services,Care Spot - Private (3rd),5701,B
18,Devon County Council,17/10/2012,CFADRES30069407,REDACTED UNDER DP ACT,16586,FARRINGTON RAB & MRS LH,89976,,People Services,Care Spot - Private (3rd),5701,B
18,Devon County Council,31/10/2012,CFADRES30070081,REDACTED UNDER DP ACT,16586,FARRINGTON RAB & MRS LH,89976,,People Services,Care Spot - Private (3rd),5701,B
18,Devon County Council,03/10/2012,CFADRES30069236,REDACTED UNDER DP ACT,1082.72,FERFOOT LTD T/A FERFOOT CARE HME,291809,,People Services,Care Spot - Private (3rd),5701,B
18,Devon County Council,17/10/2012,CFADRES30069908,REDACTED UNDER DP ACT,1082.72,FERFOOT LTD T/A FERFOOT CARE HME,291809,,People Services,Care Spot - Private (3rd),5701,B
18,Devon County Council,31/10/2012,CFADRES30070586,REDACTED UNDER DP ACT,1082.72,FERFOOT LTD T/A FERFOOT CARE HME,291809,,People Services,Care Spot - Private (3rd),5701,B
18,Devon County Council,03/10/2012,CFADRES30068840,REDACTED UNDER DP ACT,3510.18,FERNBANK RESIDENTIAL HOME,92871,,People Services,Care Spot - Private (3rd),5701,B
18,Devon County Council,17/10/2012,CFADRES30069515,REDACTED UNDER DP ACT,3510.18,FERNBANK RESIDENTIAL HOME,92871,,People Services,Care Spot - Private (3rd),5701,B
18,Devon County Council,31/10/2012,CFADRES30070191,REDACTED UNDER DP ACT,3510.18,FERNBANK RESIDENTIAL HOME,92871,,People Services,Care Spot - Private (3rd),5701,B
18,Devon County Council,03/10/2012,CFADRES30068792,REDACTED UNDER DP ACT,12174.95,FIRS RESIDENTIAL HOTEL THE,90589,135573116,People Services,Care Spot - Private (3rd),5701,B
18,Devon County Council,17/10/2012,CFADRES30069468,REDACTED UNDER DP ACT,12135.94,FIRS RESIDENTIAL HOTEL THE,90589,135573116,People Services,Care Spot - Private (3rd),5701,B
18,Devon County Council,31/10/2012,CFADRES30070142,REDACTED UNDER DP ACT,12135.94,FIRS RESIDENTIAL HOTEL THE,90589,135573116,People Services,Care Spot - Private (3rd),5701,B
18,Devon County Council,17/10/2012,CFADRES30069012,REDACTED UNDER DP ACT,10439.84,FIRS THE,190976,,People Services,Care Spot - Private (3rd),5701,B
18,Devon County Council,17/10/2012,CFADRES30069686,REDACTED UNDER DP ACT,8833.59,FIRS THE,190976,,People Services,Care Spot - Private (3rd),5701,B
18,Devon County Council,31/10/2012,CFADRES30070363,REDACTED UNDER DP ACT,11366.53,FIRS THE,190976,,People Services,Care Spot - Private (3rd),5701,B
18,Devon County Council,17/10/2012,CFADRES17332345,REDACTED UNDER DP ACT,-11976.43,FIRS THE,190976,,People Services,Residential Income,9365,B
18,Devon County Council,03/10/2012,CFADRES30069086,REDACTED UNDER DP ACT,587.76,FIRS THE (TAUNTON),229805,,People Services,Care Spot - Private (3rd),5701,B
18,Devon County Council,17/10/2012,CFADRES30069759,REDACTED UNDER DP ACT,587.76,FIRS THE (TAUNTON),229805,,People Services,Care Spot - Private (3rd),5701,B
18,Devon County Council,31/10/2012,CFADRES30070436,REDACTED UNDER DP ACT,587.76,FIRS THE (TAUNTON),229805,,People Services,Care Spot - Private (3rd),5701,B
18,Devon County Council,03/10/2012,CFADRES30069033,REDACTED UNDER DP ACT,5163.96,FORGE HOUSE,202469,,People Services,Care Spot - Private (3rd),5701,B
18,Devon County Council,17/10/2012,CFADRES30069707,REDACTED UNDER DP ACT,5163.96,FORGE HOUSE,202469,,People Services,Care Spot - Private (3rd),5701,B
18,Devon County Council,31/10/2012,CFADRES30070384,REDACTED UNDER DP ACT,5163.96,FORGE HOUSE,202469,,People Services,Care Spot - Private (3rd),5701,B
18,Devon County Council,31/10/2012,CFADRES30070157,REDACTED UNDER DP ACT,9641.43,FORGET ME NOT PROJECT-HOUSING AC,90691,,People Services,Care Respite - Private (3rd),5703,B
18,Devon County Council,03/10/2012,CFADRES30069155,REDACTED UNDER DP ACT,784.88,FOUNTAINS THE,265007,,People Services,Care Spot - Private (3rd),5701,B
18,Devon County Council,17/10/2012,CFADRES30069827,REDACTED UNDER DP ACT,784.88,FOUNTAINS THE,265007,,People Services,Care Spot - Private (3rd),5701,B
18,Devon County Council,31/10/2012,CFADRES30070505,REDACTED UNDER DP ACT,784.88,FOUNTAINS THE,265007,,People Services,Care Spot - Private (3rd),5701,B
18,Devon County Council,31/10/2012,CFADRES30070615,REDACTED UNDER DP ACT,9142.86,FREMINGTON HOMES/TA WATERSIDE LG,297317,,People Services,Care Spot - Private (3rd),5701,B
18,Devon County Council,31/10/2012,CFADRES30069937,REDACTED UNDER DP ACT,2892.6,FREMINGTON MANOR NURSING HOME,28212,,People Services,Care Spot - Private (3rd),5701,B
18,Devon County Council,03/10/2012,CFADRES30069123,REDACTED UNDER DP ACT,694.12,FRIENDS OF THE ELDERLY/THE LAWN,245844,,People Services,Care Spot - Private (3rd),5701,B
18,Devon County Council,17/10/2012,CFADRES30069795,REDACTED UNDER DP ACT,694.12,FRIENDS OF THE ELDERLY/THE LAWN,245844,,People Services,Care Spot - Private (3rd),5701,B
18,Devon County Council,31/10/2012,CFADRES30070473,REDACTED UNDER DP ACT,694.12,FRIENDS OF THE ELDERLY/THE LAWN,245844,,People Services,Care Spot - Private (3rd),5701,B
18,Devon County Council,03/10/2012,CFADRES30068886,REDACTED UNDER DP ACT,1008.9,FURZEHAM LODGE RESIDENTIAL HOME,111261,,People Services,Care Spot - Private (3rd),5701,B
18,Devon County Council,17/10/2012,CFADRES30069560,REDACTED UNDER DP ACT,1008.9,FURZEHAM LODGE RESIDENTIAL HOME,111261,,People Services,Care Spot - Private (3rd),5701,B
18,Devon County Council,31/10/2012,CFADRES30070235,REDACTED UNDER DP ACT,1008.9,FURZEHAM LODGE RESIDENTIAL HOME,111261,,People Services,Care Spot - Private (3rd),5701,B
18,Devon County Council,03/10/2012,CFADRES30068623,REDACTED UNDER DP ACT,4920.68,GITTISHAM CARE LTD,87428,,People Services,Care Spot - Private (3rd),5701,B
18,Devon County Council,17/10/2012,CFADRES30069299,REDACTED UNDER DP ACT,6369.25,GITTISHAM CARE LTD,87428,,People Services,Care Spot - Private (3rd),5701,B
18,Devon County Council,31/10/2012,CFADRES30069973,REDACTED UNDER DP ACT,6480.68,GITTISHAM CARE LTD,87428,,People Services,Care Spot - Private (3rd),5701,B
18,Devon County Council,03/10/2012,CFADRES30068694,REDACTED UNDER DP ACT,8136.64,GLENDALE COURT CARE HOME,89472,,People Services,Care Spot - Private (3rd),5701,B
18,Devon County Council,17/10/2012,CFADRES30069371,REDACTED UNDER DP ACT,8136.64,GLENDALE COURT CARE HOME,89472,,People Services,Care Spot - Private (3rd),5701,B
18,Devon County Council,31/10/2012,CFADRES30070045,REDACTED UNDER DP ACT,8136.64,GLENDALE COURT CARE HOME,89472,,People Services,Care Spot - Private (3rd),5701,B
18,Devon County Council,09/10/2012,CFADDAY30020917,REDACTED UNDER DP ACT,700,GLENKEALEY RESIDENTIAL HOME,214184,,People Services,Care Spot - Private (3rd),5701,B
18,Devon County Council,09/10/2012,CFADDOM30044474,REDACTED UNDER DP ACT,599.76,GLENKEALEY RESIDENTIAL HOME,214184,,People Services,Care Spot - Private (3rd),5701,B
18,Devon County Council,09/10/2012,CFADDOM30044477,REDACTED UNDER DP ACT,599.76,GLENKEALEY RESIDENTIAL HOME,214184,,People Services,Care Spot - Private (3rd),5701,B
18,Devon County Council,09/10/2012,CFADDOM30044484,REDACTED UNDER DP ACT,578.34,GLENKEALEY RESIDENTIAL HOME,214184,,People Services,Care Spot - Private (3rd),5701,B
18,Devon County Council,09/10/2012,CFADDOM30044485,REDACTED UNDER DP ACT,1363.74,GLENKEALEY RESIDENTIAL HOME,214184,,People Services,Care Spot - Private (3rd),5701,B
18,Devon County Council,09/10/2012,CFADDOM30044488,REDACTED UNDER DP ACT,1743.94,GLENKEALEY RESIDENTIAL HOME,214184,,People Services,Care Spot - Private (3rd),5701,B
18,Devon County Council,09/10/2012,CFADDOM30044494,REDACTED UNDER DP ACT,1370.88,GLENKEALEY RESIDENTIAL HOME,214184,,People Services,Care Spot - Private (3rd),5701,B
18,Devon County Council,09/10/2012,CFADDOM30044497,REDACTED UNDER DP ACT,978.18,GLENKEALEY RESIDENTIAL HOME,214184,,People Services,Care Spot - Private (3rd),5701,B
18,Devon County Council,29/10/2012,CFADDOM30045703,REDACTED UNDER DP ACT,599.76,GLENKEALEY RESIDENTIAL HOME,214184,,People Services,Care Spot - Private (3rd),5701,B
18,Devon County Council,29/10/2012,CFADDOM30045706,REDACTED UNDER DP ACT,599.76,GLENKEALEY RESIDENTIAL HOME,214184,,People Services,Care Spot - Private (3rd),5701,B
18,Devon County Council,29/10/2012,CFADDOM30045713,REDACTED UNDER DP ACT,599.76,GLENKEALEY RESIDENTIAL HOME,214184,,People Services,Care Spot - Private (3rd),5701,B
18,Devon County Council,29/10/2012,CFADDOM30045714,REDACTED UNDER DP ACT,1399.44,GLENKEALEY RESIDENTIAL HOME,214184,,People Services,Care Spot - Private (3rd),5701,B
18,Devon County Council,29/10/2012,CFADDOM30045717,REDACTED UNDER DP ACT,1799.28,GLENKEALEY RESIDENTIAL HOME,214184,,People Services,Care Spot - Private (3rd),5701,B
18,Devon County Council,29/10/2012,CFADDOM30045723,REDACTED UNDER DP ACT,1399.44,GLENKEALEY RESIDENTIAL HOME,214184,,People Services,Care Spot - Private (3rd),5701,B
18,Devon County Council,29/10/2012,CFADDOM30045726,REDACTED UNDER DP ACT,1028.16,GLENKEALEY RESIDENTIAL HOME,214184,,People Services,Care Spot - Private (3rd),5701,B
18,Devon County Council,29/10/2012,CFADDOM30045730,REDACTED UNDER DP ACT,1420.86,GLENKEALEY RESIDENTIAL HOME,214184,,People Services,Care Spot - Private (3rd),5701,B
18,Devon County Council,03/10/2012,CFADRES30069058,REDACTED UNDER DP ACT,6683.26,GLENKEALEY RESIDENTIAL HOME,214184,,People Services,Care Spot - Private (3rd),5701,B
18,Devon County Council,17/10/2012,CFADRES30069731,REDACTED UNDER DP ACT,15486.69,GLENKEALEY RESIDENTIAL HOME,214184,,People Services,Care Spot - Private (3rd),5701,B
18,Devon County Council,31/10/2012,CFADRES30070408,REDACTED UNDER DP ACT,6751.26,GLENKEALEY RESIDENTIAL HOME,214184,,People Services,Care Spot - Private (3rd),5701,B
18,Devon County Council,03/10/2012,CFADRES30069145,REDACTED UNDER DP ACT,2750,GLYNDERWEN HOUSE,258539,,People Services,Care Spot - Private (3rd),5701,B
18,Devon County Council,17/10/2012,CFADRES30069817,REDACTED UNDER DP ACT,2750,GLYNDERWEN HOUSE,258539,,People Services,Care Spot - Private (3rd),5701,B
18,Devon County Council,31/10/2012,CFADRES30070495,REDACTED UNDER DP ACT,2750,GLYNDERWEN HOUSE,258539,,People Services,Care Spot - Private (3rd),5701,B
18,Devon County Council,03/10/2012,CFADRES30069235,REDACTED UNDER DP ACT,6833.08,GOLDEN SANDS,291595,,People Services,Care Spot - Private (3rd),5701,B
18,Devon County Council,17/10/2012,CFADRES30069907,REDACTED UNDER DP ACT,6833.08,GOLDEN SANDS,291595,,People Services,Care Spot - Private (3rd),5701,B
18,Devon County Council,31/10/2012,CFADRES30070585,REDACTED UNDER DP ACT,6833.08,GOLDEN SANDS,291595,,People Services,Care Spot - Private (3rd),5701,B
18,Devon County Council,03/10/2012,CFADRES30068868,REDACTED UNDER DP ACT,1484.56,GOLP S C,102921,,People Services,Care Spot - Private (3rd),5701,B
18,Devon County Council,17/10/2012,CFADRES30069543,REDACTED UNDER DP ACT,1484.56,GOLP S C,102921,,People Services,Care Spot - Private (3rd),5701,B
18,Devon County Council,31/10/2012,CFADRES30070218,REDACTED UNDER DP ACT,1484.56,GOLP S C,102921,,People Services,Care Spot - Private (3rd),5701,B
18,Devon County Council,03/10/2012,CFADRES30068971,REDACTED UNDER DP ACT,1971.5,GRANARY THE,171058,,People Services,Care Spot - Private (3rd),5701,B
18,Devon County Council,17/10/2012,CFADRES30069645,REDACTED UNDER DP ACT,1971.5,GRANARY THE,171058,,People Services,Care Spot - Private (3rd),5701,B
18,Devon County Council,31/10/2012,CFADRES30070322,REDACTED UNDER DP ACT,1971.5,GRANARY THE,171058,,People Services,Care Spot - Private (3rd),5701,B
18,Devon County Council,03/10/2012,CFADRES30068610,REDACTED UNDER DP ACT,688,GRANGE LEA,87031,,People Services,Care Spot - Private (3rd),5701,B
18,Devon County Council,17/10/2012,CFADRES30069286,REDACTED UNDER DP ACT,688,GRANGE LEA,87031,,People Services,Care Spot - Private (3rd),5701,B
18,Devon County Council,31/10/2012,CFADRES30069960,REDACTED UNDER DP ACT,688,GRANGE LEA,87031,,People Services,Care Spot - Private (3rd),5701,B
18,Devon County Council,03/10/2012,CFADRES30069208,REDACTED UNDER DP ACT,2237.8,GREEN LIGHT PBS LTD,285469,,People Services,Care Spot - Private (3rd),5701,B
18,Devon County Council,17/10/2012,CFADRES30069880,REDACTED UNDER DP ACT,2237.8,GREEN LIGHT PBS LTD,285469,,People Services,Care Spot - Private (3rd),5701,B
18,Devon County Council,31/10/2012,CFADRES30070558,REDACTED UNDER DP ACT,2237.8,GREEN LIGHT PBS LTD,285469,,People Services,Care Spot - Private (3rd),5701,B
18,Devon County Council,03/10/2012,CFADRES30068833,REDACTED UNDER DP ACT,4667.74,GREENACRE FARM COMMUNITIES LTD,90975,,People Services,Care Spot - Private (3rd),5701,B
18,Devon County Council,17/10/2012,CFADRES30069508,REDACTED UNDER DP ACT,4667.74,GREENACRE FARM COMMUNITIES LTD,90975,,People Services,Care Spot - Private (3rd),5701,B
18,Devon County Council,31/10/2012,CFADRES30070184,REDACTED UNDER DP ACT,4667.74,GREENACRE FARM COMMUNITIES LTD,90975,,People Services,Care Spot - Private (3rd),5701,B
18,Devon County Council,17/10/2012,CFADRES30069934,REDACTED UNDER DP ACT,8320,GREENSWAN CONSLTNTS TA PINELODGE,295830,,People Services,Care Spot - Private (3rd),5701,B
18,Devon County Council,31/10/2012,CFADRES30070613,REDACTED UNDER DP ACT,896,GREENSWAN CONSLTNTS TA PINELODGE,295830,,People Services,Care Spot - Private (3rd),5701,B
18,Devon County Council,03/10/2012,CFADDAY30020762,REDACTED UNDER DP ACT,1597.5,GUINNESS CARE & SUPPORT,89630,,People Services,Care Spot - Private (3rd),5701,B
18,Devon County Council,03/10/2012,CFADRES30068702,REDACTED UNDER DP ACT,36242.22,GUINNESS CARE & SUPPORT,89630,,People Services,Care Spot - Private (3rd),5701,B
18,Devon County Council,03/10/2012,CFADRES30068703,REDACTED UNDER DP ACT,47086.72,GUINNESS CARE & SUPPORT,89630,,People Services,Care Spot - Private (3rd),5701,B
18,Devon County Council,03/10/2012,CFADRES30068704,REDACTED UNDER DP ACT,30507.31,GUINNESS CARE & SUPPORT,89630,,People Services,Care Spot - Private (3rd),5701,B
18,Devon County Council,03/10/2012,CFADRES17332337,REDACTED UNDER DP ACT,-2460.07,GUINNESS CARE & SUPPORT,89630,,People Services,Residential Income,9365,B
18,Devon County Council,10/10/2012,CFADDOM30044663,REDACTED UNDER DP ACT,1892.8,H F TRUST LTD,106688,,People Services,Care Spot - Private (3rd),5701,B
18,Devon County Council,10/10/2012,CFADDOM30044664,REDACTED UNDER DP ACT,1514.24,H F TRUST LTD,106688,,People Services,Care Spot - Private (3rd),5701,B
18,Devon County Council,10/10/2012,CFADDOM30044669,REDACTED UNDER DP ACT,540.8,H F TRUST LTD,106688,,People Services,Care Spot - Private (3rd),5701,B
18,Devon County Council,10/10/2012,CFADDOM30044673,REDACTED UNDER DP ACT,1514.24,H F TRUST LTD,106688,,People Services,Care Spot - Private (3rd),5701,B
18,Devon County Council,03/10/2012,CFADRES30068878,REDACTED UNDER DP ACT,1931.2,H F TRUST LTD,106688,,People Services,Care Spot - Private (3rd),5701,B
18,Devon County Council,17/10/2012,CFADRES30069553,REDACTED UNDER DP ACT,1931.2,H F TRUST LTD,106688,,People Services,Care Spot - Private (3rd),5701,B
18,Devon County Council,31/10/2012,CFADRES30070228,REDACTED UNDER DP ACT,1931.2,H F TRUST LTD,106688,,People Services,Care Spot - Private (3rd),5701,B
18,Devon County Council,03/10/2012,CFADRES30069226,REDACTED UNDER DP ACT,708,HALLMARK CARE HOME/TA CWRT ENFYS,289100,,People Services,Care Spot - Private (3rd),5701,B
18,Devon County Council,17/10/2012,CFADRES30069898,REDACTED UNDER DP ACT,708,HALLMARK CARE HOME/TA CWRT ENFYS,289100,,People Services,Care Spot - Private (3rd),5701,B
18,Devon County Council,31/10/2012,CFADRES30070576,REDACTED UNDER DP ACT,708,HALLMARK CARE HOME/TA CWRT ENFYS,289100,,People Services,Care Spot - Private (3rd),5701,B
18,Devon County Council,03/10/2012,CFADRES30069205,REDACTED UNDER DP ACT,1194,HALSEY HOUSE,285354,,People Services,Care Spot - Private (3rd),5701,B
18,Devon County Council,17/10/2012,CFADRES30069877,REDACTED UNDER DP ACT,1194,HALSEY HOUSE,285354,,People Services,Care Spot - Private (3rd),5701,B
18,Devon County Council,31/10/2012,CFADRES30070555,REDACTED UNDER DP ACT,1194,HALSEY HOUSE,285354,,People Services,Care Spot - Private (3rd),5701,B
18,Devon County Council,01/10/2012,CFADDAY30020716,REDACTED UNDER DP ACT,900,HARDY RACHEL,233033,,People Services,Individualised Support - Private (3rd),5706,B
18,Devon County Council,10/10/2012,CFADDAY30021169,REDACTED UNDER DP ACT,2460,HARDY RACHEL,233033,,People Services,Individualised Support - Private (3rd),5706,B
18,Devon County Council,10/10/2012,CFADDAY30021170,REDACTED UNDER DP ACT,1944,HARDY RACHEL,233033,,People Services,Individualised Support - Private (3rd),5706,B
18,Devon County Council,15/10/2012,CFADDAY30021276,REDACTED UNDER DP ACT,1740,HARDY RACHEL,233033,,People Services,Individualised Support - Private (3rd),5706,B
18,Devon County Council,15/10/2012,CFADDAY30021277,REDACTED UNDER DP ACT,1341.06,HARDY RACHEL,233033,,People Services,Individualised Support - Private (3rd),5706,B
18,Devon County Council,17/10/2012,CFADDAY30021458,REDACTED UNDER DP ACT,1892,HARDY RACHEL,233033,,People Services,Individualised Support - Private (3rd),5706,B
18,Devon County Council,17/10/2012,CFADDAY30021459,REDACTED UNDER DP ACT,2000.04,HARDY RACHEL,233033,,People Services,Individualised Support - Private (3rd),5706,B
18,Devon County Council,17/10/2012,CFADDAY30021460,REDACTED UNDER DP ACT,1900,HARDY RACHEL,233033,,People Services,Individualised Support - Private (3rd),5706,B
18,Devon County Council,17/10/2012,CFADDAY30021461,REDACTED UNDER DP ACT,1695,HARDY RACHEL,233033,,People Services,Individualised Support - Private (3rd),5706,B
18,Devon County Council,22/10/2012,CFADDAY30021634,REDACTED UNDER DP ACT,894.04,HARDY RACHEL,233033,,People Services,Individualised Support - Private (3rd),5706,B
18,Devon County Council,31/10/2012,CFADDAY30022036,REDACTED UNDER DP ACT,2460,HARDY RACHEL,233033,,People Services,Individualised Support - Private (3rd),5706,B
18,Devon County Council,31/10/2012,CFADDAY30022037,REDACTED UNDER DP ACT,1944,HARDY RACHEL,233033,,People Services,Individualised Support - Private (3rd),5706,B
18,Devon County Council,03/10/2012,CFADRES30069191,REDACTED UNDER DP ACT,10507.78,HART CARE NURSING & RESIDENTIAL,279884,,People Services,Care Spot - Private (3rd),5701,B
18,Devon County Council,03/10/2012,CFADRES30069257,REDACTED UNDER DP ACT,1400,HARTFORD CARE(SW)LD TA BETHEL HS,295297,,People Services,Care Spot - Private (3rd),5701,B
18,Devon County Council,17/10/2012,CFADRES30069929,REDACTED UNDER DP ACT,1400,HARTFORD CARE(SW)LD TA BETHEL HS,295297,,People Services,Care Spot - Private (3rd),5701,B
18,Devon County Council,31/10/2012,CFADRES30070608,REDACTED UNDER DP ACT,1400,HARTFORD CARE(SW)LD TA BETHEL HS,295297,,People Services,Care Spot - Private (3rd),5701,B
18,Devon County Council,03/10/2012,CFADRES30069128,REDACTED UNDER DP ACT,870.6,HATCHMOOR NURSING HOME,247652,,People Services,Care Spot - Private (3rd),5701,B
18,Devon County Council,17/10/2012,CFADRES30069799,REDACTED UNDER DP ACT,666.26,HATCHMOOR NURSING HOME,247652,,People Services,Care Spot - Private (3rd),5701,B
18,Devon County Council,31/10/2012,CFADRES30070477,REDACTED UNDER DP ACT,666.26,HATCHMOOR NURSING HOME,247652,,People Services,Care Spot - Private (3rd),5701,B
18,Devon County Council,03/10/2012,CFADRES30069112,REDACTED UNDER DP ACT,14567.83,HATHERLEIGH CARE VILLAGE,239685,,People Services,Care Spot - Private (3rd),5701,B
18,Devon County Council,17/10/2012,CFADRES30069785,REDACTED UNDER DP ACT,14384.7,HATHERLEIGH CARE VILLAGE,239685,,People Services,Care Spot - Private (3rd),5701,B
18,Devon County Council,17/10/2012,CFADRES30069786,REDACTED UNDER DP ACT,4789.42,HATHERLEIGH CARE VILLAGE,239685,,People Services,Care Respite - Private (3rd),5703,B
18,Devon County Council,31/10/2012,CFADRES30070463,REDACTED UNDER DP ACT,13930.18,HATHERLEIGH CARE VILLAGE,239685,,People Services,Care Spot - Private (3rd),5701,B
18,Devon County Council,31/10/2012,CFADRES30070464,REDACTED UNDER DP ACT,4716.46,HATHERLEIGH CARE VILLAGE,239685,,People Services,Care Spot - Private (3rd),5701,B
18,Devon County Council,05/10/2012,FINSSCW30457903,8,1243.71,HATHERLEIGH CARE VILLAGE,239685,,People Services,Contributions to other agencies (3rd),5801,B
18,Devon County Council,05/10/2012,FINSSCW30457904,34122,1927.76,HATHERLEIGH CARE VILLAGE,239685,,People Services,Contributions to other agencies (3rd),5801,B
18,Devon County Council,24/10/2012,FINSSCW30457972,91385,1005.43,HATHERLEIGH CARE VILLAGE,239685,,People Services,Contributions to other agencies (3rd),5801,B
18,Devon County Council,03/10/2012,CFADDAY30020771,REDACTED UNDER DP ACT,5985,HAVENCARE (PLYMOUTH) LTD,94000,,People Services,Individualised Support - Private (3rd),5706,B
18,Devon County Council,09/10/2012,CFADDAY30020874,REDACTED UNDER DP ACT,1850.7,HAVENCARE (PLYMOUTH) LTD,94000,,People Services,Individualised Support - Private (3rd),5706,B
18,Devon County Council,09/10/2012,CFADDAY30020875,REDACTED UNDER DP ACT,1791,HAVENCARE (PLYMOUTH) LTD,94000,,People Services,Individualised Support - Private (3rd),5706,B
18,Devon County Council,10/10/2012,CFADDAY30021036,REDACTED UNDER DP ACT,6994.92,HAVENCARE (PLYMOUTH) LTD,94000,,People Services,Individualised Support - Private (3rd),5706,B
18,Devon County Council,09/10/2012,CFADDOM30044299,REDACTED UNDER DP ACT,613.8,HAVENCARE (PLYMOUTH) LTD,94000,,People Services,Care Spot - Private (3rd),5701,B
18,Devon County Council,09/10/2012,CFADDOM30044300,REDACTED UNDER DP ACT,594,HAVENCARE (PLYMOUTH) LTD,94000,,People Services,Care Spot - Private (3rd),5701,B
18,Devon County Council,03/10/2012,CFADRES30068842,REDACTED UNDER DP ACT,15153.54,HAVENCARE (PLYMOUTH) LTD,94000,,People Services,Care Spot - Private (3rd),5701,B
18,Devon County Council,17/10/2012,CFADRES30069517,REDACTED UNDER DP ACT,15153.54,HAVENCARE (PLYMOUTH) LTD,94000,,People Services,Care Spot - Private (3rd),5701,B
18,Devon County Council,31/10/2012,CFADRES30070193,REDACTED UNDER DP ACT,19862.33,HAVENCARE (PLYMOUTH) LTD,94000,,People Services,Care Spot - Private (3rd),5701,B
18,Devon County Council,12/10/2012,FNEXMHLD30472719,12098 LOOSEMORE,2841,HAVENCARE (PLYMOUTH) LTD,94000,,People Services,Miscellaneous expenditure,4901,B
18,Devon County Council,03/10/2012,CFADRES30068866,REDACTED UNDER DP ACT,10827.88,HAVENSCARE RESIDENTIAL HOME,102915,,People Services,Care Spot - Private (3rd),5701,B
18,Devon County Council,17/10/2012,CFADRES30069541,REDACTED UNDER DP ACT,10827.88,HAVENSCARE RESIDENTIAL HOME,102915,,People Services,Care Spot - Private (3rd),5701,B
18,Devon County Council,31/10/2012,CFADRES30070216,REDACTED UNDER DP ACT,10827.88,HAVENSCARE RESIDENTIAL HOME,102915,,People Services,Care Spot - Private (3rd),5701,B
18,Devon County Council,17/10/2012,CFADRES30069323,REDACTED UNDER DP ACT,9481.32,HAY HOUSE,88805,,People Services,Care Spot - Private (3rd),5701,B
18,Devon County Council,03/10/2012,CFADRES30069223,REDACTED UNDER DP ACT,1040,HC-ONE LTD T/A TRAFALGAR PARK,288236,,People Services,Care Spot - Private (3rd),5701,B
18,Devon County Council,17/10/2012,CFADRES30069895,REDACTED UNDER DP ACT,1040,HC-ONE LTD T/A TRAFALGAR PARK,288236,,People Services,Care Spot - Private (3rd),5701,B
18,Devon County Council,31/10/2012,CFADRES30070573,REDACTED UNDER DP ACT,1040,HC-ONE LTD T/A TRAFALGAR PARK,288236,,People Services,Care Spot - Private (3rd),5701,B
18,Devon County Council,03/10/2012,CFADRES30068911,REDACTED UNDER DP ACT,3925,HEALTH CARE TRUST LTD,134214,,People Services,Care Spot - Private (3rd),5701,B
18,Devon County Council,17/10/2012,CFADRES30069585,REDACTED UNDER DP ACT,3925,HEALTH CARE TRUST LTD,134214,,People Services,Care Spot - Private (3rd),5701,B
18,Devon County Council,31/10/2012,CFADRES30070260,REDACTED UNDER DP ACT,3925,HEALTH CARE TRUST LTD,134214,,People Services,Care Spot - Private (3rd),5701,B
18,Devon County Council,03/10/2012,CFADRES30069220,REDACTED UNDER DP ACT,782,HEATH LODGE CARE HOME,287187,,People Services,Care Spot - Private (3rd),5701,B
18,Devon County Council,17/10/2012,CFADRES30069892,REDACTED UNDER DP ACT,782,HEATH LODGE CARE HOME,287187,,People Services,Care Spot - Private (3rd),5701,B
18,Devon County Council,31/10/2012,CFADRES30070570,REDACTED UNDER DP ACT,782,HEATH LODGE CARE HOME,287187,,People Services,Care Spot - Private (3rd),5701,B
18,Devon County Council,03/10/2012,CFADRES30069021,REDACTED UNDER DP ACT,13053.94,HEATHERSIDE HOUSE,195163,,People Services,Care Spot - Private (3rd),5701,B
18,Devon County Council,17/10/2012,CFADRES30069695,REDACTED UNDER DP ACT,13053.94,HEATHERSIDE HOUSE,195163,,People Services,Care Spot - Private (3rd),5701,B
18,Devon County Council,31/10/2012,CFADRES30070372,REDACTED UNDER DP ACT,13053.94,HEATHERSIDE HOUSE,195163,,People Services,Care Spot - Private (3rd),5701,B
18,Devon County Council,03/10/2012,CFADRES30068675,REDACTED UNDER DP ACT,12355.03,HEMBURY FORT HOUSE,89213,,People Services,Care Spot - Private (3rd),5701,B
18,Devon County Council,17/10/2012,CFADRES30069351,REDACTED UNDER DP ACT,11785.96,HEMBURY FORT HOUSE,89213,,People Services,Care Spot - Private (3rd),5701,B
18,Devon County Council,31/10/2012,CFADRES30070025,REDACTED UNDER DP ACT,11133.82,HEMBURY FORT HOUSE,89213,,People Services,Care Spot - Private (3rd),5701,B
18,Devon County Council,03/10/2012,CFADRES30068834,REDACTED UNDER DP ACT,3364.24,HERONS LEA RESIDENTIAL HOME,91007,,People Services,Care Spot - Private (3rd),5701,B
18,Devon County Council,17/10/2012,CFADRES30069509,REDACTED UNDER DP ACT,3364.24,HERONS LEA RESIDENTIAL HOME,91007,,People Services,Care Spot - Private (3rd),5701,B
18,Devon County Council,31/10/2012,CFADRES30070185,REDACTED UNDER DP ACT,3454.4,HERONS LEA RESIDENTIAL HOME,91007,,People Services,Care Spot - Private (3rd),5701,B
18,Devon County Council,03/10/2012,CFADDAY30020822,REDACTED UNDER DP ACT,700,HIGHLANDS CARE HOME,244492,,People Services,Care Spot - Private (3rd),5701,B
18,Devon County Council,03/10/2012,CFADRES30069046,REDACTED UNDER DP ACT,689,HIGHLANDS MIST,206676,,People Services,Care Spot - Private (3rd),5701,B
18,Devon County Council,17/10/2012,CFADRES30069720,REDACTED UNDER DP ACT,689,HIGHLANDS MIST,206676,,People Services,Care Spot - Private (3rd),5701,B
18,Devon County Council,31/10/2012,CFADRES30070397,REDACTED UNDER DP ACT,689,HIGHLANDS MIST,206676,,People Services,Care Spot - Private (3rd),5701,B
18,Devon County Council,03/10/2012,CFADRES30068807,REDACTED UNDER DP ACT,2706.16,HILL HOUSE HOME (BRIXHAM),90696,,People Services,Care Spot - Private (3rd),5701,B
18,Devon County Council,17/10/2012,CFADRES30069483,REDACTED UNDER DP ACT,2706.16,HILL HOUSE HOME (BRIXHAM),90696,,People Services,Care Spot - Private (3rd),5701,B
18,Devon County Council,31/10/2012,CFADRES30070158,REDACTED UNDER DP ACT,2706.16,HILL HOUSE HOME (BRIXHAM),90696,,People Services,Care Spot - Private (3rd),5701,B
18,Devon County Council,03/10/2012,CFADRES30068901,REDACTED UNDER DP ACT,5645.44,HILLBROW RESIDENTIAL CARE HME LT,120028,,People Services,Care Spot - Private (3rd),5701,B
18,Devon County Council,17/10/2012,CFADRES30069575,REDACTED UNDER DP ACT,2895.44,HILLBROW RESIDENTIAL CARE HME LT,120028,,People Services,Care Spot - Private (3rd),5701,B
18,Devon County Council,31/10/2012,CFADRES30070249,REDACTED UNDER DP ACT,5645.44,HILLBROW RESIDENTIAL CARE HME LT,120028,,People Services,Care Spot - Private (3rd),5701,B
18,Devon County Council,03/10/2012,CFADRES30068874,REDACTED UNDER DP ACT,847.4,HILLCREST HOUSE NURSING HOME,105455,,People Services,Care Spot - Private (3rd),5701,B
18,Devon County Council,17/10/2012,CFADRES30069549,REDACTED UNDER DP ACT,847.4,HILLCREST HOUSE NURSING HOME,105455,,People Services,Care Spot - Private (3rd),5701,B
18,Devon County Council,31/10/2012,CFADRES30070224,REDACTED UNDER DP ACT,847.4,HILLCREST HOUSE NURSING HOME,105455,,People Services,Care Spot - Private (3rd),5701,B
18,Devon County Council,31/10/2012,CFADDAY30022052,REDACTED UNDER DP ACT,2640,HOLSWORTHY DAY CENTRE,277333,,People Services,Care Spot - Private (3rd),5701,B
18,Devon County Council,31/10/2012,CFADDAY30022053,REDACTED UNDER DP ACT,3120,HOLSWORTHY DAY CENTRE,277333,,People Services,Care Spot - Private (3rd),5701,B
18,Devon County Council,03/10/2012,CFADRES30068899,REDACTED UNDER DP ACT,2446.54,HOLWELL VILLA,119407,,People Services,Care Spot - Private (3rd),5701,B
18,Devon County Council,17/10/2012,CFADRES30069573,REDACTED UNDER DP ACT,3033.25,HOLWELL VILLA,119407,,People Services,Care Spot - Private (3rd),5701,B
18,Devon County Council,31/10/2012,CFADRES30070247,REDACTED UNDER DP ACT,2490,HOLWELL VILLA,119407,,People Services,Care Spot - Private (3rd),5701,B
18,Devon County Council,31/10/2012,CFADRES30070607,REDACTED UNDER DP ACT,7907.14,HOLY CROSS CARE HM/BRADENEY HSE,295123,,People Services,Care Spot - Private (3rd),5701,B
18,Devon County Council,03/10/2012,CFADRES30068681,REDACTED UNDER DP ACT,6195.46,HOMEFARM TRUST LTD,89260,,People Services,Care Spot - Private (3rd),5701,B
18,Devon County Council,17/10/2012,CFADRES30069357,REDACTED UNDER DP ACT,6195.46,HOMEFARM TRUST LTD,89260,,People Services,Care Spot - Private (3rd),5701,B
18,Devon County Council,31/10/2012,CFADRES30070031,REDACTED UNDER DP ACT,6195.46,HOMEFARM TRUST LTD,89260,,People Services,Care Spot - Private (3rd),5701,B
18,Devon County Council,01/10/2012,CFADDOM30043997,REDACTED UNDER DP ACT,540.8,HOMELIFE CARERS LTD,209222,,People Services,Care Spot - Private (3rd),5701,B
18,Devon County Council,01/10/2012,CFADDOM30043999,REDACTED UNDER DP ACT,1118,HOMELIFE CARERS LTD,209222,,People Services,Care Spot - Private (3rd),5701,B
18,Devon County Council,01/10/2012,CFADDOM30044001,REDACTED UNDER DP ACT,1124.8,HOMELIFE CARERS LTD,209222,,People Services,Care Spot - Private (3rd),5701,B
18,Devon County Council,15/10/2012,CFADDOM30045008,REDACTED UNDER DP ACT,820.8,HOMELIFE CARERS LTD,209222,,People Services,Care Spot - Private (3rd),5701,B
18,Devon County Council,22/10/2012,CFADDOM30045302,REDACTED UNDER DP ACT,26798.21,HOMELIFE CARERS LTD,209222,,People Services,Care Spot - Private (3rd),5701,B
18,Devon County Council,22/10/2012,CFADDOM30045303,REDACTED UNDER DP ACT,19669,HOMELIFE CARERS LTD,209222,,People Services,Care Spot - Private (3rd),5701,B
18,Devon County Council,03/10/2012,CFADRES30068783,REDACTED UNDER DP ACT,3635.84,HOMESTEAD THE,90483,,People Services,Care Spot - Private (3rd),5701,B
18,Devon County Council,17/10/2012,CFADRES30069459,REDACTED UNDER DP ACT,3635.84,HOMESTEAD THE,90483,,People Services,Care Spot - Private (3rd),5701,B
18,Devon County Council,31/10/2012,CFADRES30070133,REDACTED UNDER DP ACT,3635.84,HOMESTEAD THE,90483,,People Services,Care Spot - Private (3rd),5701,B
18,Devon County Council,03/10/2012,CFADRES30068977,REDACTED UNDER DP ACT,7209.82,HONEYBOURNE HOUSE,174783,,People Services,Care Spot - Private (3rd),5701,B
18,Devon County Council,17/10/2012,CFADRES30069651,REDACTED UNDER DP ACT,7209.82,HONEYBOURNE HOUSE,174783,,People Services,Care Spot - Private (3rd),5701,B
18,Devon County Council,31/10/2012,CFADRES30070328,REDACTED UNDER DP ACT,7209.82,HONEYBOURNE HOUSE,174783,,People Services,Care Spot - Private (3rd),5701,B
18,Devon County Council,03/10/2012,CFADRES30069192,REDACTED UNDER DP ACT,911.28,HOUNDSWOOD HOUSE CARE HOME,280242,,People Services,Care Spot - Private (3rd),5701,B
18,Devon County Council,17/10/2012,CFADRES30069864,REDACTED UNDER DP ACT,911.28,HOUNDSWOOD HOUSE CARE HOME,280242,,People Services,Care Spot - Private (3rd),5701,B
18,Devon County Council,31/10/2012,CFADRES30070542,REDACTED UNDER DP ACT,911.28,HOUNDSWOOD HOUSE CARE HOME,280242,,People Services,Care Spot - Private (3rd),5701,B
18,Devon County Council,10/10/2012,CFADDAY30021179,REDACTED UNDER DP ACT,1768,HOUSDEN,255886,,People Services,Individualised Support - Private (3rd),5706,B
18,Devon County Council,10/10/2012,CFADDAY30021180,REDACTED UNDER DP ACT,988,HOUSDEN,255886,,People Services,Individualised Support - Private (3rd),5706,B
18,Devon County Council,10/10/2012,CFADDAY30021181,REDACTED UNDER DP ACT,936,HOUSDEN,255886,,People Services,Individualised Support - Private (3rd),5706,B
18,Devon County Council,03/10/2012,CFADRES30068657,REDACTED UNDER DP ACT,4819.56,HUNTLEY T/A VENVILLE HOUSE DC &,89063,,People Services,Care Spot - Private (3rd),5701,B
18,Devon County Council,17/10/2012,CFADRES30069333,REDACTED UNDER DP ACT,3984.56,HUNTLEY T/A VENVILLE HOUSE DC &,89063,,People Services,Care Spot - Private (3rd),5701,B
18,Devon County Council,31/10/2012,CFADRES30070007,REDACTED UNDER DP ACT,4749.56,HUNTLEY T/A VENVILLE HOUSE DC &,89063,,People Services,Care Spot - Private (3rd),5701,B
18,Devon County Council,25/10/2012,CYPNMLOC30197558,JF 24/09/12,1647.39,INDEPENDANCE,259184,,People Services,Care Other - Private (3rd),5705,B
18,Devon County Council,09/10/2012,CFADDAY30020921,REDACTED UNDER DP ACT,1003.8,IVY HOUSE,242760,,People Services,Individualised Support - Private (3rd),5706,B
18,Devon County Council,17/10/2012,CFADDAY30021478,REDACTED UNDER DP ACT,1089.84,IVY HOUSE,242760,,People Services,Individualised Support - Private (3rd),5706,B
18,Devon County Council,17/10/2012,CFADDAY30021481,REDACTED UNDER DP ACT,1004.5,IVY HOUSE,242760,,People Services,Individualised Support - Private (3rd),5706,B
18,Devon County Council,17/10/2012,CFADDAY30021482,REDACTED UNDER DP ACT,600,IVY HOUSE,242760,,People Services,Individualised Support - Private (3rd),5706,B
18,Devon County Council,17/10/2012,CFADDAY30021483,REDACTED UNDER DP ACT,630,IVY HOUSE,242760,,People Services,Individualised Support - Private (3rd),5706,B
18,Devon County Council,17/10/2012,CFADDAY30021484,REDACTED UNDER DP ACT,840,IVY HOUSE,242760,,People Services,Individualised Support - Private (3rd),5706,B
18,Devon County Council,03/10/2012,CFADRES30068736,REDACTED UNDER DP ACT,12689.32,J G T CARE HOMES,90042,,People Services,Care Spot - Private (3rd),5701,B
18,Devon County Council,17/10/2012,CFADRES30069412,REDACTED UNDER DP ACT,12689.32,J G T CARE HOMES,90042,,People Services,Care Spot - Private (3rd),5701,B
18,Devon County Council,03/10/2012,CFADRES30068597,REDACTED UNDER DP ACT,1812.28,JAH-JIREH NURSING HOME,86686,,People Services,Care Spot - Private (3rd),5701,B
18,Devon County Council,17/10/2012,CFADRES30069273,REDACTED UNDER DP ACT,1812.28,JAH-JIREH NURSING HOME,86686,,People Services,Care Spot - Private (3rd),5701,B
18,Devon County Council,31/10/2012,CFADRES30069947,REDACTED UNDER DP ACT,1812.28,JAH-JIREH NURSING HOME,86686,,People Services,Care Spot - Private (3rd),5701,B
18,Devon County Council,03/10/2012,CFADRES30069102,REDACTED UNDER DP ACT,1161.84,JASMINE HOUSE,233197,,People Services,Care Spot - Private (3rd),5701,B
18,Devon County Council,17/10/2012,CFADRES30069775,REDACTED UNDER DP ACT,1161.84,JASMINE HOUSE,233197,,People Services,Care Spot - Private (3rd),5701,B
18,Devon County Council,31/10/2012,CFADRES30070452,REDACTED UNDER DP ACT,1161.84,JASMINE HOUSE,233197,,People Services,Care Spot - Private (3rd),5701,B
18,Devon County Council,01/10/2012,CFADDAY30020691,REDACTED UNDER DP ACT,577.83,JEDD INTERNATIONAL LTD,119582,,People Services,Care Spot - Private (3rd),5701,B
18,Devon County Council,03/10/2012,CFADRES30068900,REDACTED UNDER DP ACT,9180.94,JEDD INTERNATIONAL LTD,119582,,People Services,Care Spot - Private (3rd),5701,B
18,Devon County Council,17/10/2012,CFADRES30069574,REDACTED UNDER DP ACT,7968.64,JEDD INTERNATIONAL LTD,119582,,People Services,Care Spot - Private (3rd),5701,B
18,Devon County Council,31/10/2012,CFADRES30070248,REDACTED UNDER DP ACT,7968.64,JEDD INTERNATIONAL LTD,119582,,People Services,Care Spot - Private (3rd),5701,B
18,Devon County Council,03/10/2012,CFADRES30068850,REDACTED UNDER DP ACT,11571.71,JONES GP & K T/A DONERAILE,98052,,People Services,Care Spot - Private (3rd),5701,B
18,Devon County Council,17/10/2012,CFADRES30069525,REDACTED UNDER DP ACT,11639.7,JONES GP & K T/A DONERAILE,98052,,People Services,Care Spot - Private (3rd),5701,B
18,Devon County Council,31/10/2012,CFADRES30070201,REDACTED UNDER DP ACT,11639.7,JONES GP & K T/A DONERAILE,98052,,People Services,Care Spot - Private (3rd),5701,B
18,Devon County Council,03/10/2012,CFADDAY30020821,REDACTED UNDER DP ACT,1152,KAZLUM SUPPORT SERVICES,234919,979268646,People Services,Individualised Support - Private (3rd),5706,B
18,Devon County Council,17/10/2012,CFADDAY30021463,REDACTED UNDER DP ACT,2016,KAZLUM SUPPORT SERVICES,234919,979268646,People Services,Individualised Support - Private (3rd),5706,B
18,Devon County Council,17/10/2012,CFADDAY30021464,REDACTED UNDER DP ACT,1440,KAZLUM SUPPORT SERVICES,234919,979268646,People Services,Individualised Support - Private (3rd),5706,B
18,Devon County Council,17/10/2012,CFADDAY30021465,REDACTED UNDER DP ACT,3482.56,KAZLUM SUPPORT SERVICES,234919,979268646,People Services,Individualised Support - Private (3rd),5706,B
18,Devon County Council,17/10/2012,CFADDAY30021466,REDACTED UNDER DP ACT,2811.24,KAZLUM SUPPORT SERVICES,234919,979268646,People Services,Individualised Support - Private (3rd),5706,B
18,Devon County Council,17/10/2012,CFADDAY30021467,REDACTED UNDER DP ACT,2441.92,KAZLUM SUPPORT SERVICES,234919,979268646,People Services,Individualised Support - Private (3rd),5706,B
18,Devon County Council,17/10/2012,CFADDAY30021468,REDACTED UNDER DP ACT,1324.8,KAZLUM SUPPORT SERVICES,234919,979268646,People Services,Individualised Support - Private (3rd),5706,B
18,Devon County Council,17/10/2012,CFADDAY30021469,REDACTED UNDER DP ACT,1555.2,KAZLUM SUPPORT SERVICES,234919,979268646,People Services,Individualised Support - Private (3rd),5706,B
18,Devon County Council,17/10/2012,CFADDAY30021470,REDACTED UNDER DP ACT,921.6,KAZLUM SUPPORT SERVICES,234919,979268646,People Services,Individualised Support - Private (3rd),5706,B
18,Devon County Council,17/10/2012,CFADDAY30021471,REDACTED UNDER DP ACT,2764.8,KAZLUM SUPPORT SERVICES,234919,979268646,People Services,Individualised Support - Private (3rd),5706,B
18,Devon County Council,17/10/2012,CFADDAY30021472,REDACTED UNDER DP ACT,2073.6,KAZLUM SUPPORT SERVICES,234919,979268646,People Services,Individualised Support - Private (3rd),5706,B
18,Devon County Council,17/10/2012,CFADDAY30021473,REDACTED UNDER DP ACT,1640.52,KAZLUM SUPPORT SERVICES,234919,979268646,People Services,Individualised Support - Private (3rd),5706,B
18,Devon County Council,17/10/2012,CFADDAY30021474,REDACTED UNDER DP ACT,1152,KAZLUM SUPPORT SERVICES,234919,979268646,People Services,Individualised Support - Private (3rd),5706,B
18,Devon County Council,17/10/2012,CFADDAY30021475,REDACTED UNDER DP ACT,1324.8,KAZLUM SUPPORT SERVICES,234919,979268646,People Services,Individualised Support - Private (3rd),5706,B
18,Devon County Council,17/10/2012,CFADDAY30021476,REDACTED UNDER DP ACT,1612.8,KAZLUM SUPPORT SERVICES,234919,979268646,People Services,Individualised Support - Private (3rd),5706,B
18,Devon County Council,17/10/2012,CFADDAY30021477,REDACTED UNDER DP ACT,806.4,KAZLUM SUPPORT SERVICES,234919,979268646,People Services,Individualised Support - Private (3rd),5706,B
18,Devon County Council,31/10/2012,CFADDAY30022038,REDACTED UNDER DP ACT,1152,KAZLUM SUPPORT SERVICES,234919,979268646,People Services,Individualised Support - Private (3rd),5706,B
18,Devon County Council,03/10/2012,CFADRES30068908,REDACTED UNDER DP ACT,1268.66,KENT FARM RESIDENTIAL HOME,133861,,People Services,Care Spot - Private (3rd),5701,B
18,Devon County Council,17/10/2012,CFADRES30069582,REDACTED UNDER DP ACT,1268.66,KENT FARM RESIDENTIAL HOME,133861,,People Services,Care Spot - Private (3rd),5701,B
18,Devon County Council,31/10/2012,CFADRES30070257,REDACTED UNDER DP ACT,1268.66,KENT FARM RESIDENTIAL HOME,133861,,People Services,Care Spot - Private (3rd),5701,B
18,Devon County Council,03/10/2012,CFADRES30068978,REDACTED UNDER DP ACT,8065.12,KENWYN RESIDENTIAL HOME,174853,,People Services,Care Spot - Private (3rd),5701,B
18,Devon County Council,17/10/2012,CFADRES30069652,REDACTED UNDER DP ACT,8065.12,KENWYN RESIDENTIAL HOME,174853,,People Services,Care Spot - Private (3rd),5701,B
18,Devon County Council,31/10/2012,CFADRES30070329,REDACTED UNDER DP ACT,7235.12,KENWYN RESIDENTIAL HOME,174853,,People Services,Care Spot - Private (3rd),5701,B
18,Devon County Council,03/10/2012,CFADRES30068751,REDACTED UNDER DP ACT,5540.66,KEYCHANGE ROSE LAWN SIDMOUTH,90174,,People Services,Care Spot - Private (3rd),5701,B
18,Devon County Council,17/10/2012,CFADRES30069427,REDACTED UNDER DP ACT,5718.52,KEYCHANGE ROSE LAWN SIDMOUTH,90174,,People Services,Care Spot - Private (3rd),5701,B
18,Devon County Council,31/10/2012,CFADRES30070101,REDACTED UNDER DP ACT,4829.24,KEYCHANGE ROSE LAWN SIDMOUTH,90174,,People Services,Care Spot - Private (3rd),5701,B
18,Devon County Council,17/10/2012,CFADRES30069392,REDACTED UNDER DP ACT,11949.42,KINGS ACRE NURSING HOME,89788,,People Services,Care Spot - Private (3rd),5701,B
18,Devon County Council,03/10/2012,CFADRES30069031,REDACTED UNDER DP ACT,1710,KINGSHURST COURT,201348,,People Services,Care Spot - Private (3rd),5701,B
18,Devon County Council,17/10/2012,CFADRES30069705,REDACTED UNDER DP ACT,3370,KINGSHURST COURT,201348,,People Services,Care Spot - Private (3rd),5701,B
18,Devon County Council,31/10/2012,CFADRES30070382,REDACTED UNDER DP ACT,2540,KINGSHURST COURT,201348,,People Services,Care Spot - Private (3rd),5701,B
18,Devon County Council,03/10/2012,CFADRES30069137,REDACTED UNDER DP ACT,788,KINGSTHORPE VIEW CARE HOME,253347,,People Services,Care Spot - Private (3rd),5701,B
18,Devon County Council,17/10/2012,CFADRES30069809,REDACTED UNDER DP ACT,788,KINGSTHORPE VIEW CARE HOME,253347,,People Services,Care Spot - Private (3rd),5701,B
18,Devon County Council,31/10/2012,CFADRES30070487,REDACTED UNDER DP ACT,788,KINGSTHORPE VIEW CARE HOME,253347,,People Services,Care Spot - Private (3rd),5701,B
18,Devon County Council,03/10/2012,CFADRES30069060,REDACTED UNDER DP ACT,952,KINGSTON COURT CARE HOME,215015,,People Services,Care Spot - Private (3rd),5701,B
18,Devon County Council,17/10/2012,CFADRES30069733,REDACTED UNDER DP ACT,952,KINGSTON COURT CARE HOME,215015,,People Services,Care Spot - Private (3rd),5701,B
18,Devon County Council,31/10/2012,CFADRES30070410,REDACTED UNDER DP ACT,952,KINGSTON COURT CARE HOME,215015,,People Services,Care Spot - Private (3rd),5701,B
18,Devon County Council,03/10/2012,CFADRES30068642,REDACTED UNDER DP ACT,1991.16,KINGSWOOD HOUSE NURSING HOME,88741,,People Services,Care Spot - Private (3rd),5701,B
18,Devon County Council,17/10/2012,CFADRES30069318,REDACTED UNDER DP ACT,1991.16,KINGSWOOD HOUSE NURSING HOME,88741,,People Services,Care Spot - Private (3rd),5701,B
18,Devon County Council,31/10/2012,CFADRES30069992,REDACTED UNDER DP ACT,1991.16,KINGSWOOD HOUSE NURSING HOME,88741,,People Services,Care Spot - Private (3rd),5701,B
18,Devon County Council,17/10/2012,CFADRES30069630,REDACTED UNDER DP ACT,11042.98,KNAPPE CROSS CARE HOME,160613,,People Services,Care Spot - Private (3rd),5701,B
18,Devon County Council,03/10/2012,CFADDAY30020812,REDACTED UNDER DP ACT,1032.84,KNIGHT CARE PROVIDERS LTD,208256,,People Services,Individualised Support - Private (3rd),5706,B
18,Devon County Council,03/10/2012,CFADDAY30020813,REDACTED UNDER DP ACT,992.07,KNIGHT CARE PROVIDERS LTD,208256,,People Services,Individualised Support - Private (3rd),5706,B
18,Devon County Council,03/10/2012,CFADDAY30020814,REDACTED UNDER DP ACT,1032.84,KNIGHT CARE PROVIDERS LTD,208256,,People Services,Individualised Support - Private (3rd),5706,B
18,Devon County Council,03/10/2012,CFADDAY30020815,REDACTED UNDER DP ACT,835.78,KNIGHT CARE PROVIDERS LTD,208256,,People Services,Individualised Support - Private (3rd),5706,B
18,Devon County Council,03/10/2012,CFADDAY30020816,REDACTED UNDER DP ACT,1005.66,KNIGHT CARE PROVIDERS LTD,208256,,People Services,Individualised Support - Private (3rd),5706,B
18,Devon County Council,31/10/2012,CFADDAY30022020,REDACTED UNDER DP ACT,1005.66,KNIGHT CARE PROVIDERS LTD,208256,,People Services,Individualised Support - Private (3rd),5706,B
18,Devon County Council,31/10/2012,CFADDAY30022021,REDACTED UNDER DP ACT,1005.66,KNIGHT CARE PROVIDERS LTD,208256,,People Services,Individualised Support - Private (3rd),5706,B
18,Devon County Council,31/10/2012,CFADDAY30022022,REDACTED UNDER DP ACT,1019.25,KNIGHT CARE PROVIDERS LTD,208256,,People Services,Individualised Support - Private (3rd),5706,B
18,Devon County Council,31/10/2012,CFADDAY30022023,REDACTED UNDER DP ACT,835.78,KNIGHT CARE PROVIDERS LTD,208256,,People Services,Individualised Support - Private (3rd),5706,B
18,Devon County Council,31/10/2012,CFADDAY30022024,REDACTED UNDER DP ACT,978.48,KNIGHT CARE PROVIDERS LTD,208256,,People Services,Individualised Support - Private (3rd),5706,B
18,Devon County Council,03/10/2012,CFADRES30068867,REDACTED UNDER DP ACT,1069.92,KNIGHT SC & N-BUSINESS ACCOUNT,102916,,People Services,Care Spot - Private (3rd),5701,B
18,Devon County Council,17/10/2012,CFADRES30069542,REDACTED UNDER DP ACT,1069.92,KNIGHT SC & N-BUSINESS ACCOUNT,102916,,People Services,Care Spot - Private (3rd),5701,B
18,Devon County Council,31/10/2012,CFADRES30070217,REDACTED UNDER DP ACT,1069.92,KNIGHT SC & N-BUSINESS ACCOUNT,102916,,People Services,Care Spot - Private (3rd),5701,B
18,Devon County Council,03/10/2012,CFADRES30069221,REDACTED UNDER DP ACT,1500,KNIGHTS TEMPLAR COURT,287380,,People Services,Care Spot - Private (3rd),5701,B
18,Devon County Council,17/10/2012,CFADRES30069893,REDACTED UNDER DP ACT,1500,KNIGHTS TEMPLAR COURT,287380,,People Services,Care Spot - Private (3rd),5701,B
18,Devon County Council,31/10/2012,CFADRES30070571,REDACTED UNDER DP ACT,1500,KNIGHTS TEMPLAR COURT,287380,,People Services,Care Spot - Private (3rd),5701,B
18,Devon County Council,03/10/2012,CFADRES30069068,REDACTED UNDER DP ACT,845.08,KNOLL NURSING HOME,219284,,People Services,Care Spot - Private (3rd),5701,B
18,Devon County Council,17/10/2012,CFADRES30069741,REDACTED UNDER DP ACT,845.08,KNOLL NURSING HOME,219284,,People Services,Care Spot - Private (3rd),5701,B
18,Devon County Council,31/10/2012,CFADRES30070418,REDACTED UNDER DP ACT,845.08,KNOLL NURSING HOME,219284,,People Services,Care Spot - Private (3rd),5701,B
18,Devon County Council,03/10/2012,CFADRES30068664,REDACTED UNDER DP ACT,16470.28,KOTHE KJG & MRS VC T/A SANDHURST,89102,,People Services,Care Spot - Private (3rd),5701,B
18,Devon County Council,17/10/2012,CFADRES30069340,REDACTED UNDER DP ACT,15877.42,KOTHE KJG & MRS VC T/A SANDHURST,89102,,People Services,Care Spot - Private (3rd),5701,B
18,Devon County Council,31/10/2012,CFADRES30070014,REDACTED UNDER DP ACT,15106.71,KOTHE KJG & MRS VC T/A SANDHURST,89102,,People Services,Care Spot - Private (3rd),5701,B
18,Devon County Council,03/10/2012,CFADRES30069172,REDACTED UNDER DP ACT,774,KOWLESSUR MR & MRS TA BROADACRES,274180,,People Services,Care Spot - Private (3rd),5701,B
18,Devon County Council,17/10/2012,CFADRES30069844,REDACTED UNDER DP ACT,774,KOWLESSUR MR & MRS TA BROADACRES,274180,,People Services,Care Spot - Private (3rd),5701,B
18,Devon County Council,31/10/2012,CFADRES30070522,REDACTED UNDER DP ACT,774,KOWLESSUR MR & MRS TA BROADACRES,274180,,People Services,Care Spot - Private (3rd),5701,B
18,Devon County Council,31/10/2012,CFADRES30070111,REDACTED UNDER DP ACT,6458.2,L C F S WEST REGION,90264,899322375,People Services,Care Spot - Private (3rd),5701,B
18,Devon County Council,03/10/2012,CFADRES30068923,REDACTED UNDER DP ACT,8928.4,LAKENHAM RESIDENTIAL HOME,143978,,People Services,Care Spot - Private (3rd),5701,B
18,Devon County Council,17/10/2012,CFADRES30069597,REDACTED UNDER DP ACT,8157.68,LAKENHAM RESIDENTIAL HOME,143978,,People Services,Care Spot - Private (3rd),5701,B
18,Devon County Council,31/10/2012,CFADRES30070273,REDACTED UNDER DP ACT,10469.82,LAKENHAM RESIDENTIAL HOME,143978,,People Services,Care Spot - Private (3rd),5701,B
18,Devon County Council,03/10/2012,CFADRES30069125,REDACTED UNDER DP ACT,4278.18,LAKESIDE RESIDENTIAL HOME,246277,,People Services,Care Spot - Private (3rd),5701,B
18,Devon County Council,17/10/2012,CFADRES30069796,REDACTED UNDER DP ACT,4278.18,LAKESIDE RESIDENTIAL HOME,246277,,People Services,Care Spot - Private (3rd),5701,B
18,Devon County Council,31/10/2012,CFADRES30070474,REDACTED UNDER DP ACT,4316.56,LAKESIDE RESIDENTIAL HOME,246277,,People Services,Care Spot - Private (3rd),5701,B
18,Devon County Council,03/10/2012,CFADRES30068938,REDACTED UNDER DP ACT,11864.94,LAKEVIEW RESIDENTIAL HOME,156132,,People Services,Care Spot - Private (3rd),5701,B
18,Devon County Council,17/10/2012,CFADRES30069612,REDACTED UNDER DP ACT,13524.94,LAKEVIEW RESIDENTIAL HOME,156132,,People Services,Care Spot - Private (3rd),5701,B
18,Devon County Council,31/10/2012,CFADRES30070288,REDACTED UNDER DP ACT,11864.94,LAKEVIEW RESIDENTIAL HOME,156132,,People Services,Care Spot - Private (3rd),5701,B
18,Devon County Council,03/10/2012,CFADRES30068678,REDACTED UNDER DP ACT,1582.82,LAMBSPARK RESIDENTIAL CARE HME,89243,,People Services,Care Spot - Private (3rd),5701,B
18,Devon County Council,17/10/2012,CFADRES30069354,REDACTED UNDER DP ACT,2624.75,LAMBSPARK RESIDENTIAL CARE HME,89243,,People Services,Care Spot - Private (3rd),5701,B
18,Devon County Council,31/10/2012,CFADRES30070028,REDACTED UNDER DP ACT,1660,LAMBSPARK RESIDENTIAL CARE HME,89243,,People Services,Care Spot - Private (3rd),5701,B
18,Devon County Council,03/10/2012,CFADRES30068922,REDACTED UNDER DP ACT,7002.9,LANDSCORE HOUSE,143547,,People Services,Care Spot - Private (3rd),5701,B
18,Devon County Council,17/10/2012,CFADRES30069596,REDACTED UNDER DP ACT,9315.04,LANDSCORE HOUSE,143547,,People Services,Care Spot - Private (3rd),5701,B
18,Devon County Council,31/10/2012,CFADRES30070272,REDACTED UNDER DP ACT,7832.9,LANDSCORE HOUSE,143547,,People Services,Care Spot - Private (3rd),5701,B
18,Devon County Council,17/10/2012,CFADRES30069801,REDACTED UNDER DP ACT,644.2,LANGFORD PARK CARE HOME,247920,,People Services,Care Spot - Private (3rd),5701,B
18,Devon County Council,31/10/2012,CFADRES30070479,REDACTED UNDER DP ACT,644.2,LANGFORD PARK CARE HOME,247920,,People Services,Care Spot - Private (3rd),5701,B
18,Devon County Council,03/10/2012,CFADRES30068814,REDACTED UNDER DP ACT,3537.71,LARCHES THE,90783,,People Services,Care Spot - Private (3rd),5701,B
18,Devon County Council,17/10/2012,CFADRES30069490,REDACTED UNDER DP ACT,3912.86,LARCHES THE,90783,,People Services,Care Spot - Private (3rd),5701,B
18,Devon County Council,31/10/2012,CFADRES30070166,REDACTED UNDER DP ACT,4150,LARCHES THE,90783,,People Services,Care Spot - Private (3rd),5701,B
18,Devon County Council,03/10/2012,CFADRES30068723,REDACTED UNDER DP ACT,9405.36,LARK CASTLE LTD T/A YELVERTON,89858,,People Services,Care Spot - Private (3rd),5701,B
18,Devon County Council,31/10/2012,CFADRES30070074,REDACTED UNDER DP ACT,9253.61,LARK CASTLE LTD T/A YELVERTON,89858,,People Services,Care Spot - Private (3rd),5701,B
18,Devon County Council,03/10/2012,CFADRES30069108,REDACTED UNDER DP ACT,4319.24,LAS FLORES,237864,,People Services,Care Spot - Private (3rd),5701,B
18,Devon County Council,17/10/2012,CFADRES30069781,REDACTED UNDER DP ACT,3904.24,LAS FLORES,237864,,People Services,Care Spot - Private (3rd),5701,B
18,Devon County Council,31/10/2012,CFADRES30070459,REDACTED UNDER DP ACT,3735.7,LAS FLORES,237864,,People Services,Care Spot - Private (3rd),5701,B
18,Devon County Council,03/10/2012,CFADRES30068805,REDACTED UNDER DP ACT,7988.5,LAWNS THE,90648,918307815,People Services,Care Spot - Private (3rd),5701,B
18,Devon County Council,17/10/2012,CFADRES30069481,REDACTED UNDER DP ACT,7988.5,LAWNS THE,90648,918307815,People Services,Care Spot - Private (3rd),5701,B
18,Devon County Council,31/10/2012,CFADRES30070155,REDACTED UNDER DP ACT,7988.5,LAWNS THE,90648,918307815,People Services,Care Spot - Private (3rd),5701,B
18,Devon County Council,03/10/2012,CFADRES30068893,REDACTED UNDER DP ACT,9997.02,LAWRENCE HOUSE,117551,,People Services,Care Spot - Private (3rd),5701,B
18,Devon County Council,17/10/2012,CFADRES30069567,REDACTED UNDER DP ACT,9997.02,LAWRENCE HOUSE,117551,,People Services,Care Spot - Private (3rd),5701,B
18,Devon County Council,31/10/2012,CFADRES30070242,REDACTED UNDER DP ACT,12054.83,LAWRENCE HOUSE,117551,,People Services,Care Spot - Private (3rd),5701,B
18,Devon County Council,03/10/2012,CFADRES30069073,REDACTED UNDER DP ACT,6381.94,LE CHALET,221825,,People Services,Care Spot - Private (3rd),5701,B
18,Devon County Council,17/10/2012,CFADRES30069746,REDACTED UNDER DP ACT,6381.94,LE CHALET,221825,,People Services,Care Spot - Private (3rd),5701,B
18,Devon County Council,31/10/2012,CFADRES30070423,REDACTED UNDER DP ACT,5491.96,LE CHALET,221825,,People Services,Care Spot - Private (3rd),5701,B
18,Devon County Council,15/10/2012,CFADDOM30045109,REDACTED UNDER DP ACT,6611.25,LEAN ON ME COMMUNITY CARE SERVS,244405,,People Services,Care Spot - Private (3rd),5701,B
18,Devon County Council,24/10/2012,CFADDOM30045565,REDACTED UNDER DP ACT,6311.25,LEAN ON ME COMMUNITY CARE SERVS,244405,,People Services,Care Spot - Private (3rd),5701,B
18,Devon County Council,03/10/2012,CFADRES30068820,REDACTED UNDER DP ACT,2886.16,LEET/A HARDWICK VIEW A/C A,90849,,People Services,Care Spot - Private (3rd),5701,B
18,Devon County Council,17/10/2012,CFADRES30069495,REDACTED UNDER DP ACT,2886.16,LEET/A HARDWICK VIEW A/C A,90849,,People Services,Care Spot - Private (3rd),5701,B
18,Devon County Council,31/10/2012,CFADRES30070171,REDACTED UNDER DP ACT,2886.16,LEET/A HARDWICK VIEW A/C A,90849,,People Services,Care Spot - Private (3rd),5701,B
18,Devon County Council,03/10/2012,CFADRES30068835,REDACTED UNDER DP ACT,1658.74,LEONARD CHESHIRE FNDT N W REGION,91676,,People Services,Care Spot - Private (3rd),5701,B
18,Devon County Council,17/10/2012,CFADRES30069510,REDACTED UNDER DP ACT,1658.74,LEONARD CHESHIRE FNDT N W REGION,91676,,People Services,Care Spot - Private (3rd),5701,B
18,Devon County Council,31/10/2012,CFADRES30070186,REDACTED UNDER DP ACT,1658.74,LEONARD CHESHIRE FNDT N W REGION,91676,,People Services,Care Spot - Private (3rd),5701,B
18,Devon County Council,17/10/2012,CFADDAY30021333,REDACTED UNDER DP ACT,600,LEONARD CHESHIRE FOUND S W REGIO,88647,899322375,People Services,Individualised Support - Private (3rd),5706,B
18,Devon County Council,17/10/2012,CFADDAY30021335,REDACTED UNDER DP ACT,780,LEONARD CHESHIRE FOUND S W REGIO,88647,899322375,People Services,Individualised Support - Private (3rd),5706,B
18,Devon County Council,17/10/2012,CFADDAY30021343,REDACTED UNDER DP ACT,720,LEONARD CHESHIRE FOUND S W REGIO,88647,899322375,People Services,Individualised Support - Private (3rd),5706,B
18,Devon County Council,03/10/2012,CFADRES30068635,REDACTED UNDER DP ACT,20528.74,LEONARD CHESHIRE FOUND S W REGIO,88647,899322375,People Services,Care Spot - Private (3rd),5701,B
18,Devon County Council,17/10/2012,CFADRES30069311,REDACTED UNDER DP ACT,20528.74,LEONARD CHESHIRE FOUND S W REGIO,88647,899322375,People Services,Care Spot - Private (3rd),5701,B
18,Devon County Council,31/10/2012,CFADRES30069985,REDACTED UNDER DP ACT,20528.74,LEONARD CHESHIRE FOUND S W REGIO,88647,899322375,People Services,Care Spot - Private (3rd),5701,B
18,Devon County Council,03/10/2012,CFADRES30069178,REDACTED UNDER DP ACT,1024,LEONORA HOME,276677,,People Services,Care Spot - Private (3rd),5701,B
18,Devon County Council,17/10/2012,CFADRES30069850,REDACTED UNDER DP ACT,1024,LEONORA HOME,276677,,People Services,Care Spot - Private (3rd),5701,B
18,Devon County Council,31/10/2012,CFADRES30070528,REDACTED UNDER DP ACT,1024,LEONORA HOME,276677,,People Services,Care Spot - Private (3rd),5701,B
18,Devon County Council,03/10/2012,CFADRES30069259,REDACTED UNDER DP ACT,4741.99,LIFE STYLE CARE(2011) RIVERVIEW,295365,,People Services,Care Spot - Private (3rd),5701,B
18,Devon County Council,17/10/2012,CFADRES30069931,REDACTED UNDER DP ACT,1252.6,LIFE STYLE CARE(2011) RIVERVIEW,295365,,People Services,Care Spot - Private (3rd),5701,B
18,Devon County Council,31/10/2012,CFADRES30070610,REDACTED UNDER DP ACT,9319.34,LIFE STYLE CARE(2011) RIVERVIEW,295365,,People Services,Care Spot - Private (3rd),5701,B
18,Devon County Council,03/10/2012,CFADRES30069261,REDACTED UNDER DP ACT,18728.57,LIFETIME CARE UK/TA MEWSBROOK HS,295760,,People Services,Care Spot - Private (3rd),5701,B
18,Devon County Council,17/10/2012,CFADRES30069933,REDACTED UNDER DP ACT,1900,LIFETIME CARE UK/TA MEWSBROOK HS,295760,,People Services,Care Spot - Private (3rd),5701,B
18,Devon County Council,31/10/2012,CFADRES30070612,REDACTED UNDER DP ACT,1900,LIFETIME CARE UK/TA MEWSBROOK HS,295760,,People Services,Care Spot - Private (3rd),5701,B
18,Devon County Council,15/10/2012,CFADDAY30020765,REDACTED UNDER DP ACT,618.7,LIFEWAYS COMMUNITY CARE LTD,90003,774168208,People Services,Individualised Support - Private (3rd),5706,B
18,Devon County Council,15/10/2012,CFADDAY30020857,REDACTED UNDER DP ACT,1092.8,LIFEWAYS COMMUNITY CARE LTD,90003,774168208,People Services,Individualised Support - Private (3rd),5706,B
18,Devon County Council,15/10/2012,CFADDAY30021236,REDACTED UNDER DP ACT,2288.2,LIFEWAYS COMMUNITY CARE LTD,90003,774168208,People Services,Individualised Support - Private (3rd),5706,B
18,Devon County Council,15/10/2012,CFADDAY30021237,REDACTED UNDER DP ACT,2331.68,LIFEWAYS COMMUNITY CARE LTD,90003,774168208,People Services,Individualised Support - Private (3rd),5706,B
18,Devon County Council,15/10/2012,CFADDAY30021238,REDACTED UNDER DP ACT,2985.32,LIFEWAYS COMMUNITY CARE LTD,90003,774168208,People Services,Individualised Support - Private (3rd),5706,B
18,Devon County Council,17/10/2012,CFADDAY30021347,REDACTED UNDER DP ACT,1040.76,LIFEWAYS COMMUNITY CARE LTD,90003,774168208,People Services,Individualised Support - Private (3rd),5706,B
18,Devon County Council,17/10/2012,CFADDAY30021348,REDACTED UNDER DP ACT,1687.92,LIFEWAYS COMMUNITY CARE LTD,90003,774168208,People Services,Individualised Support - Private (3rd),5706,B
18,Devon County Council,17/10/2012,CFADDAY30021349,REDACTED UNDER DP ACT,2590.6,LIFEWAYS COMMUNITY CARE LTD,90003,774168208,People Services,Individualised Support - Private (3rd),5706,B
18,Devon County Council,31/10/2012,CFADDAY30021552,REDACTED UNDER DP ACT,1092.8,LIFEWAYS COMMUNITY CARE LTD,90003,774168208,People Services,Individualised Support - Private (3rd),5706,B
18,Devon County Council,31/10/2012,CFADDAY30021553,REDACTED UNDER DP ACT,2522.28,LIFEWAYS COMMUNITY CARE LTD,90003,774168208,People Services,Individualised Support - Private (3rd),5706,B
18,Devon County Council,31/10/2012,CFADDAY30021915,REDACTED UNDER DP ACT,1764.76,LIFEWAYS COMMUNITY CARE LTD,90003,774168208,People Services,Individualised Support - Private (3rd),5706,B
18,Devon County Council,31/10/2012,CFADDAY30021916,REDACTED UNDER DP ACT,538,LIFEWAYS COMMUNITY CARE LTD,90003,774168208,People Services,Individualised Support - Private (3rd),5706,B
18,Devon County Council,31/10/2012,CFADDAY30021918,REDACTED UNDER DP ACT,2379.48,LIFEWAYS COMMUNITY CARE LTD,90003,774168208,People Services,Individualised Support - Private (3rd),5706,B
18,Devon County Council,31/10/2012,CFADDAY30021919,REDACTED UNDER DP ACT,686.4,LIFEWAYS COMMUNITY CARE LTD,90003,774168208,People Services,Individualised Support - Private (3rd),5706,B
18,Devon County Council,17/10/2012,CFADDOM30045140,REDACTED UNDER DP ACT,1332,LIFEWAYS COMMUNITY CARE LTD,90003,774168208,People Services,Care Spot - Private (3rd),5701,B
18,Devon County Council,09/10/2012,CFADDAY30020876,REDACTED UNDER DP ACT,1590.4,LIFEWAYS COMMUNITY CARE LTD (NEW,96733,774168208,People Services,Individualised Support - Private (3rd),5706,B
18,Devon County Council,09/10/2012,CFADDAY30020877,REDACTED UNDER DP ACT,852,LIFEWAYS COMMUNITY CARE LTD (NEW,96733,774168208,People Services,Individualised Support - Private (3rd),5706,B
18,Devon County Council,09/10/2012,CFADDAY30020878,REDACTED UNDER DP ACT,568,LIFEWAYS COMMUNITY CARE LTD (NEW,96733,774168208,People Services,Individualised Support - Private (3rd),5706,B
18,Devon County Council,09/10/2012,CFADDAY30020879,REDACTED UNDER DP ACT,558,LIFEWAYS COMMUNITY CARE LTD (NEW,96733,774168208,People Services,Individualised Support - Private (3rd),5706,B
18,Devon County Council,09/10/2012,CFADDAY30020880,REDACTED UNDER DP ACT,5519.56,LIFEWAYS COMMUNITY CARE LTD (NEW,96733,774168208,People Services,Individualised Support - Private (3rd),5706,B
18,Devon County Council,10/10/2012,CFADDAY30021039,REDACTED UNDER DP ACT,1420,LIFEWAYS COMMUNITY CARE LTD (NEW,96733,774168208,People Services,Individualised Support - Private (3rd),5706,B
18,Devon County Council,10/10/2012,CFADDAY30021040,REDACTED UNDER DP ACT,2077.88,LIFEWAYS COMMUNITY CARE LTD (NEW,96733,774168208,People Services,Individualised Support - Private (3rd),5706,B
18,Devon County Council,10/10/2012,CFADDAY30021041,REDACTED UNDER DP ACT,840.6,LIFEWAYS COMMUNITY CARE LTD (NEW,96733,774168208,People Services,Individualised Support - Private (3rd),5706,B
18,Devon County Council,10/10/2012,CFADDAY30021042,REDACTED UNDER DP ACT,556.4,LIFEWAYS COMMUNITY CARE LTD (NEW,96733,774168208,People Services,Individualised Support - Private (3rd),5706,B
18,Devon County Council,10/10/2012,CFADDAY30021043,REDACTED UNDER DP ACT,581.48,LIFEWAYS COMMUNITY CARE LTD (NEW,96733,774168208,People Services,Individualised Support - Private (3rd),5706,B
18,Devon County Council,10/10/2012,CFADDAY30021044,REDACTED UNDER DP ACT,1062.4,LIFEWAYS COMMUNITY CARE LTD (NEW,96733,774168208,People Services,Individualised Support - Private (3rd),5706,B
18,Devon County Council,10/10/2012,CFADDAY30021045,REDACTED UNDER DP ACT,2341.56,LIFEWAYS COMMUNITY CARE LTD (NEW,96733,774168208,People Services,Individualised Support - Private (3rd),5706,B
18,Devon County Council,10/10/2012,CFADDAY30021047,REDACTED UNDER DP ACT,1456,LIFEWAYS COMMUNITY CARE LTD (NEW,96733,774168208,People Services,Individualised Support - Private (3rd),5706,B
18,Devon County Council,10/10/2012,CFADDAY30021048,REDACTED UNDER DP ACT,780.64,LIFEWAYS COMMUNITY CARE LTD (NEW,96733,774168208,People Services,Individualised Support - Private (3rd),5706,B
18,Devon County Council,10/10/2012,CFADDAY30021049,REDACTED UNDER DP ACT,2090.04,LIFEWAYS COMMUNITY CARE LTD (NEW,96733,774168208,People Services,Individualised Support - Private (3rd),5706,B
18,Devon County Council,10/10/2012,CFADDAY30021050,REDACTED UNDER DP ACT,2233.36,LIFEWAYS COMMUNITY CARE LTD (NEW,96733,774168208,People Services,Individualised Support - Private (3rd),5706,B
18,Devon County Council,10/10/2012,CFADDAY30021051,REDACTED UNDER DP ACT,1202.96,LIFEWAYS COMMUNITY CARE LTD (NEW,96733,774168208,People Services,Individualised Support - Private (3rd),5706,B
18,Devon County Council,15/10/2012,CFADDAY30021247,REDACTED UNDER DP ACT,2084.08,LIFEWAYS COMMUNITY CARE LTD (NEW,96733,774168208,People Services,Individualised Support - Private (3rd),5706,B
18,Devon County Council,15/10/2012,CFADDAY30021248,REDACTED UNDER DP ACT,1134.12,LIFEWAYS COMMUNITY CARE LTD (NEW,96733,774168208,People Services,Individualised Support - Private (3rd),5706,B
18,Devon County Council,15/10/2012,CFADDAY30021249,REDACTED UNDER DP ACT,618.88,LIFEWAYS COMMUNITY CARE LTD (NEW,96733,774168208,People Services,Individualised Support - Private (3rd),5706,B
18,Devon County Council,15/10/2012,CFADDAY30021251,REDACTED UNDER DP ACT,4100,LIFEWAYS COMMUNITY CARE LTD (NEW,96733,774168208,People Services,Individualised Support - Private (3rd),5706,B
18,Devon County Council,15/10/2012,CFADDAY30021252,REDACTED UNDER DP ACT,6623.96,LIFEWAYS COMMUNITY CARE LTD (NEW,96733,774168208,People Services,Individualised Support - Private (3rd),5706,B
18,Devon County Council,15/10/2012,CFADDAY30021253,REDACTED UNDER DP ACT,592.64,LIFEWAYS COMMUNITY CARE LTD (NEW,96733,774168208,People Services,Individualised Support - Private (3rd),5706,B
18,Devon County Council,15/10/2012,CFADDAY30021254,REDACTED UNDER DP ACT,864.64,LIFEWAYS COMMUNITY CARE LTD (NEW,96733,774168208,People Services,Individualised Support - Private (3rd),5706,B
18,Devon County Council,15/10/2012,CFADDAY30021255,REDACTED UNDER DP ACT,5217.24,LIFEWAYS COMMUNITY CARE LTD (NEW,96733,774168208,People Services,Individualised Support - Private (3rd),5706,B
18,Devon County Council,15/10/2012,CFADDAY30021256,REDACTED UNDER DP ACT,3397.32,LIFEWAYS COMMUNITY CARE LTD (NEW,96733,774168208,People Services,Individualised Support - Private (3rd),5706,B
18,Devon County Council,17/10/2012,CFADDAY30021378,REDACTED UNDER DP ACT,2162.2,LIFEWAYS COMMUNITY CARE LTD (NEW,96733,774168208,People Services,Individualised Support - Private (3rd),5706,B
18,Devon County Council,17/10/2012,CFADDAY30021381,REDACTED UNDER DP ACT,2613.48,LIFEWAYS COMMUNITY CARE LTD (NEW,96733,774168208,People Services,Individualised Support - Private (3rd),5706,B
18,Devon County Council,17/10/2012,CFADDAY30021382,REDACTED UNDER DP ACT,3923.08,LIFEWAYS COMMUNITY CARE LTD (NEW,96733,774168208,People Services,Individualised Support - Private (3rd),5706,B
18,Devon County Council,24/10/2012,CFADDAY30021690,REDACTED UNDER DP ACT,700.2,LIFEWAYS COMMUNITY CARE LTD (NEW,96733,774168208,People Services,Individualised Support - Private (3rd),5706,B
18,Devon County Council,24/10/2012,CFADDAY30021691,REDACTED UNDER DP ACT,700.2,LIFEWAYS COMMUNITY CARE LTD (NEW,96733,774168208,People Services,Individualised Support - Private (3rd),5706,B
18,Devon County Council,24/10/2012,CFADDAY30021692,REDACTED UNDER DP ACT,700.2,LIFEWAYS COMMUNITY CARE LTD (NEW,96733,774168208,People Services,Individualised Support - Private (3rd),5706,B
18,Devon County Council,24/10/2012,CFADDAY30021693,REDACTED UNDER DP ACT,700.2,LIFEWAYS COMMUNITY CARE LTD (NEW,96733,774168208,People Services,Individualised Support - Private (3rd),5706,B
18,Devon County Council,24/10/2012,CFADDAY30021695,REDACTED UNDER DP ACT,700.2,LIFEWAYS COMMUNITY CARE LTD (NEW,96733,774168208,People Services,Individualised Support - Private (3rd),5706,B
18,Devon County Council,24/10/2012,CFADDAY30021697,REDACTED UNDER DP ACT,700.2,LIFEWAYS COMMUNITY CARE LTD (NEW,96733,774168208,People Services,Individualised Support - Private (3rd),5706,B
18,Devon County Council,24/10/2012,CFADDAY30021698,REDACTED UNDER DP ACT,1923.48,LIFEWAYS COMMUNITY CARE LTD (NEW,96733,774168208,People Services,Individualised Support - Private (3rd),5706,B
18,Devon County Council,24/10/2012,CFADDAY30021700,REDACTED UNDER DP ACT,700.2,LIFEWAYS COMMUNITY CARE LTD (NEW,96733,774168208,People Services,Individualised Support - Private (3rd),5706,B
18,Devon County Council,24/10/2012,CFADDAY30021702,REDACTED UNDER DP ACT,1251.6,LIFEWAYS COMMUNITY CARE LTD (NEW,96733,774168208,People Services,Individualised Support - Private (3rd),5706,B
18,Devon County Council,29/10/2012,CFADDAY30021785,REDACTED UNDER DP ACT,1590.4,LIFEWAYS COMMUNITY CARE LTD (NEW,96733,774168208,People Services,Individualised Support - Private (3rd),5706,B
18,Devon County Council,31/10/2012,CFADDAY30021947,REDACTED UNDER DP ACT,5519.56,LIFEWAYS COMMUNITY CARE LTD (NEW,96733,774168208,People Services,Individualised Support - Private (3rd),5706,B
18,Devon County Council,09/10/2012,CFADDOM30044301,REDACTED UNDER DP ACT,2573.64,LIFEWAYS COMMUNITY CARE LTD (NEW,96733,774168208,People Services,Care Spot - Private (3rd),5701,B
18,Devon County Council,31/10/2012,CFADDOM30045874,REDACTED UNDER DP ACT,2573.64,LIFEWAYS COMMUNITY CARE LTD (NEW,96733,774168208,People Services,Care Spot - Private (3rd),5701,B
18,Devon County Council,03/10/2012,CFADRES30068633,REDACTED UNDER DP ACT,17202.2,LILACS CARE HOME,88387,,People Services,Care Spot - Private (3rd),5701,B
18,Devon County Council,17/10/2012,CFADRES30069309,REDACTED UNDER DP ACT,16253.62,LILACS CARE HOME,88387,,People Services,Care Spot - Private (3rd),5701,B
18,Devon County Council,31/10/2012,CFADRES30069983,REDACTED UNDER DP ACT,16715.76,LILACS CARE HOME,88387,,People Services,Care Spot - Private (3rd),5701,B
18,Devon County Council,03/10/2012,CFADRES30068804,REDACTED UNDER DP ACT,1110,LINDLEY BD & MM,90647,,People Services,Care Spot - Private (3rd),5701,B
18,Devon County Council,17/10/2012,CFADRES30069480,REDACTED UNDER DP ACT,1110,LINDLEY BD & MM,90647,,People Services,Care Spot - Private (3rd),5701,B
18,Devon County Council,31/10/2012,CFADRES30070154,REDACTED UNDER DP ACT,1110,LINDLEY BD & MM,90647,,People Services,Care Spot - Private (3rd),5701,B
18,Devon County Council,03/10/2012,CFADRES30068735,REDACTED UNDER DP ACT,18226.3,LINDONS CARE HOME_THE,90040,,People Services,Care Spot - Private (3rd),5701,B
18,Devon County Council,17/10/2012,CFADRES30069411,REDACTED UNDER DP ACT,16086.01,LINDONS CARE HOME_THE,90040,,People Services,Care Spot - Private (3rd),5701,B
18,Devon County Council,31/10/2012,CFADRES30070085,REDACTED UNDER DP ACT,16495.98,LINDONS CARE HOME_THE,90040,,People Services,Care Spot - Private (3rd),5701,B
18,Devon County Council,03/10/2012,CFADRES30069080,REDACTED UNDER DP ACT,829.3,LINGALOO,227505,,People Services,Care Spot - Private (3rd),5701,B
18,Devon County Council,17/10/2012,CFADRES30069753,REDACTED UNDER DP ACT,829.3,LINGALOO,227505,,People Services,Care Spot - Private (3rd),5701,B
18,Devon County Council,31/10/2012,CFADRES30070430,REDACTED UNDER DP ACT,829.3,LINGALOO,227505,,People Services,Care Spot - Private (3rd),5701,B
18,Devon County Council,03/10/2012,CFADRES30068945,REDACTED UNDER DP ACT,542.9,LISTER HOUSE,156698,,People Services,Care Spot - Private (3rd),5701,B
18,Devon County Council,17/10/2012,CFADRES30069619,REDACTED UNDER DP ACT,542.9,LISTER HOUSE,156698,,People Services,Care Spot - Private (3rd),5701,B
18,Devon County Council,31/10/2012,CFADRES30070295,REDACTED UNDER DP ACT,542.9,LISTER HOUSE,156698,,People Services,Care Spot - Private (3rd),5701,B
18,Devon County Council,03/10/2012,CFADRES30068821,REDACTED UNDER DP ACT,790.48,LITTLE OLDWAY,90888,,People Services,Care Spot - Private (3rd),5701,B
18,Devon County Council,17/10/2012,CFADRES30069496,REDACTED UNDER DP ACT,790.48,LITTLE OLDWAY,90888,,People Services,Care Spot - Private (3rd),5701,B
18,Devon County Council,31/10/2012,CFADRES30070172,REDACTED UNDER DP ACT,2035.48,LITTLE OLDWAY,90888,,People Services,Care Spot - Private (3rd),5701,B
18,Devon County Council,03/10/2012,CFADRES30069159,REDACTED UNDER DP ACT,900,LITTLEFAIR,266657,,People Services,Care Spot - Private (3rd),5701,B
18,Devon County Council,17/10/2012,CFADRES30069831,REDACTED UNDER DP ACT,900,LITTLEFAIR,266657,,People Services,Care Spot - Private (3rd),5701,B
18,Devon County Council,31/10/2012,CFADRES30070509,REDACTED UNDER DP ACT,900,LITTLEFAIR,266657,,People Services,Care Spot - Private (3rd),5701,B
18,Devon County Council,03/10/2012,CFADRES30069188,REDACTED UNDER DP ACT,952,LLYS Y TYWYSOG CARE HOME,278958,,People Services,Care Spot - Private (3rd),5701,B
18,Devon County Council,17/10/2012,CFADRES30069860,REDACTED UNDER DP ACT,952,LLYS Y TYWYSOG CARE HOME,278958,,People Services,Care Spot - Private (3rd),5701,B
18,Devon County Council,31/10/2012,CFADRES30070538,REDACTED UNDER DP ACT,952,LLYS Y TYWYSOG CARE HOME,278958,,People Services,Care Spot - Private (3rd),5701,B
18,Devon County Council,03/10/2012,CFADRES30068930,REDACTED UNDER DP ACT,574.62,LORNA HOUSE,151321,,People Services,Care Spot - Private (3rd),5701,B
18,Devon County Council,17/10/2012,CFADRES30069604,REDACTED UNDER DP ACT,1002.96,LORNA HOUSE,151321,,People Services,Care Spot - Private (3rd),5701,B
18,Devon County Council,31/10/2012,CFADRES30070280,REDACTED UNDER DP ACT,574.62,LORNA HOUSE,151321,,People Services,Care Spot - Private (3rd),5701,B
18,Devon County Council,03/10/2012,CFADRES30068756,REDACTED UNDER DP ACT,3877.8,LYNDALE CARE LTD,90252,,People Services,Care Spot - Private (3rd),5701,B
18,Devon County Council,17/10/2012,CFADRES30069432,REDACTED UNDER DP ACT,3877.8,LYNDALE CARE LTD,90252,,People Services,Care Spot - Private (3rd),5701,B
18,Devon County Council,31/10/2012,CFADRES30070106,REDACTED UNDER DP ACT,3877.8,LYNDALE CARE LTD,90252,,People Services,Care Spot - Private (3rd),5701,B
18,Devon County Council,31/10/2012,CFADRES30070618,REDACTED UNDER DP ACT,1660,MADEIRA LODGE/MR D H BUTLER TA,297589,,People Services,Care Spot - Private (3rd),5701,B
18,Devon County Council,03/10/2012,CFADRES30068632,REDACTED UNDER DP ACT,11746.88,MAGNOLIA HOUSE,87589,918175019,People Services,Care Spot - Private (3rd),5701,B
18,Devon County Council,03/10/2012,CFADRES30069134,REDACTED UNDER DP ACT,4403.56,MAGNOLIA HOUSE,251047,,People Services,Care Spot - Private (3rd),5701,B
18,Devon County Council,17/10/2012,CFADRES30069308,REDACTED UNDER DP ACT,11746.88,MAGNOLIA HOUSE,87589,918175019,People Services,Care Spot - Private (3rd),5701,B
18,Devon County Council,17/10/2012,CFADRES30069806,REDACTED UNDER DP ACT,6728.56,MAGNOLIA HOUSE,251047,,People Services,Care Spot - Private (3rd),5701,B
18,Devon County Council,31/10/2012,CFADRES30069982,REDACTED UNDER DP ACT,16096.89,MAGNOLIA HOUSE,87589,918175019,People Services,Care Spot - Private (3rd),5701,B
18,Devon County Council,31/10/2012,CFADRES30070484,REDACTED UNDER DP ACT,5453.56,MAGNOLIA HOUSE,251047,,People Services,Care Spot - Private (3rd),5701,B
18,Devon County Council,03/10/2012,CFADRES30069249,REDACTED UNDER DP ACT,2335.48,MAIS HOUSE,294196,,People Services,Care Spot - Private (3rd),5701,B
18,Devon County Council,17/10/2012,CFADRES30069921,REDACTED UNDER DP ACT,1124.2,MAIS HOUSE,294196,,People Services,Care Spot - Private (3rd),5701,B
18,Devon County Council,31/10/2012,CFADRES30070599,REDACTED UNDER DP ACT,1124.2,MAIS HOUSE,294196,,People Services,Care Spot - Private (3rd),5701,B
18,Devon County Council,03/10/2012,CFADRES30069065,REDACTED UNDER DP ACT,4325.68,MALDEN HOUSE,216858,,People Services,Care Spot - Private (3rd),5701,B
18,Devon County Council,17/10/2012,CFADRES30069738,REDACTED UNDER DP ACT,4325.68,MALDEN HOUSE,216858,,People Services,Care Spot - Private (3rd),5701,B
18,Devon County Council,31/10/2012,CFADRES30070415,REDACTED UNDER DP ACT,4325.68,MALDEN HOUSE,216858,,People Services,Care Spot - Private (3rd),5701,B
18,Devon County Council,17/10/2012,FINSSCW30457954,2372,700,MALDEN HOUSE,216858,,People Services,Care Spot - Private (3rd),5701,B
18,Devon County Council,17/10/2012,FINSSCW30457955,2377,500,MALDEN HOUSE,216858,,People Services,Care Spot - Private (3rd),5701,B
18,Devon County Council,03/10/2012,CFADRES30068779,REDACTED UNDER DP ACT,10796.37,MALLANDS CARE LTD,90451,,People Services,Care Spot - Private (3rd),5701,B
18,Devon County Council,17/10/2012,CFADRES30069455,REDACTED UNDER DP ACT,12472.33,MALLANDS CARE LTD,90451,,People Services,Care Spot - Private (3rd),5701,B
18,Devon County Council,31/10/2012,CFADRES30070129,REDACTED UNDER DP ACT,9739.29,MALLANDS CARE LTD,90451,,People Services,Care Spot - Private (3rd),5701,B
18,Devon County Council,03/10/2012,CFADRES30068620,REDACTED UNDER DP ACT,10459.88,MANOR COLLECTION-PUDDAVINE COURT,87306,,People Services,Care Spot - Private (3rd),5701,B
18,Devon County Council,17/10/2012,CFADRES30069296,REDACTED UNDER DP ACT,10459.88,MANOR COLLECTION-PUDDAVINE COURT,87306,,People Services,Care Spot - Private (3rd),5701,B
18,Devon County Council,31/10/2012,CFADRES30069970,REDACTED UNDER DP ACT,10909.88,MANOR COLLECTION-PUDDAVINE COURT,87306,,People Services,Care Spot - Private (3rd),5701,B
18,Devon County Council,17/10/2012,CFADRES30069511,REDACTED UNDER DP ACT,6215.54,MANOR COTTAGE HOTEL,91681,,People Services,Care Spot - Private (3rd),5701,B
18,Devon County Council,31/10/2012,CFADRES30070187,REDACTED UNDER DP ACT,6037.68,MANOR COTTAGE HOTEL,91681,,People Services,Care Spot - Private (3rd),5701,B
18,Devon County Council,03/10/2012,CFADRES30069202,REDACTED UNDER DP ACT,661.6,MANOR HOUSE RESIDENTIAL HOME,283346,,People Services,Care Spot - Private (3rd),5701,B
18,Devon County Council,17/10/2012,CFADRES30069874,REDACTED UNDER DP ACT,661.6,MANOR HOUSE RESIDENTIAL HOME,283346,,People Services,Care Spot - Private (3rd),5701,B
18,Devon County Council,31/10/2012,CFADRES30070552,REDACTED UNDER DP ACT,661.6,MANOR HOUSE RESIDENTIAL HOME,283346,,People Services,Care Spot - Private (3rd),5701,B
18,Devon County Council,03/10/2012,CFADRES30068705,REDACTED UNDER DP ACT,4443.2,MANOR HOUSE THE,89636,,People Services,Care Spot - Private (3rd),5701,B
18,Devon County Council,03/10/2012,CFADRES30068701,REDACTED UNDER DP ACT,2623.94,MANOR LODGE,89617,,People Services,Care Spot - Private (3rd),5701,B
18,Devon County Council,17/10/2012,CFADRES30069378,REDACTED UNDER DP ACT,2623.94,MANOR LODGE,89617,,People Services,Care Spot - Private (3rd),5701,B
18,Devon County Council,31/10/2012,CFADRES30070052,REDACTED UNDER DP ACT,2623.94,MANOR LODGE,89617,,People Services,Care Spot - Private (3rd),5701,B
18,Devon County Council,03/10/2012,CFADRES30068777,REDACTED UNDER DP ACT,8420.22,MANOR THE,90442,,People Services,Care Spot - Private (3rd),5701,B
18,Devon County Council,17/10/2012,CFADRES30069453,REDACTED UNDER DP ACT,5477.05,MANOR THE,90442,,People Services,Care Spot - Private (3rd),5701,B
18,Devon County Council,31/10/2012,CFADRES30070127,REDACTED UNDER DP ACT,6730.62,MANOR THE,90442,,People Services,Care Spot - Private (3rd),5701,B
18,Devon County Council,03/10/2012,CFADRES30069119,REDACTED UNDER DP ACT,2957.83,MARDON HOUSE,243976,,People Services,Care Spot - Private (3rd),5701,B
18,Devon County Council,03/10/2012,CFADRES30069228,REDACTED UNDER DP ACT,3760,MATSON HOUSE,289305,,People Services,Care Spot - Private (3rd),5701,B
18,Devon County Council,17/10/2012,CFADRES30069900,REDACTED UNDER DP ACT,3760,MATSON HOUSE,289305,,People Services,Care Spot - Private (3rd),5701,B
18,Devon County Council,31/10/2012,CFADRES30070578,REDACTED UNDER DP ACT,3760,MATSON HOUSE,289305,,People Services,Care Spot - Private (3rd),5701,B
18,Devon County Council,03/10/2012,CFADRES30068617,REDACTED UNDER DP ACT,2494.69,MCLEOD RC & J,87171,,People Services,Care Spot - Private (3rd),5701,B
18,Devon County Council,17/10/2012,CFADRES30069293,REDACTED UNDER DP ACT,1397.78,MCLEOD RC & J,87171,,People Services,Care Spot - Private (3rd),5701,B
18,Devon County Council,31/10/2012,CFADRES30069967,REDACTED UNDER DP ACT,1397.78,MCLEOD RC & J,87171,,People Services,Care Spot - Private (3rd),5701,B
18,Devon County Council,03/10/2012,CFADRES30068721,REDACTED UNDER DP ACT,6699.1,MCSPADDEN JJ T/A ANCHORAGE GRP,89848,,People Services,Care Spot - Private (3rd),5701,B
18,Devon County Council,17/10/2012,CFADRES30069398,REDACTED UNDER DP ACT,7173.39,MCSPADDEN JJ T/A ANCHORAGE GRP,89848,,People Services,Care Spot - Private (3rd),5701,B
18,Devon County Council,03/10/2012,CFADRES30069146,REDACTED UNDER DP ACT,1149.9,MEADBANK NURSING HOME,259977,,People Services,Care Spot - Private (3rd),5701,B
18,Devon County Council,17/10/2012,CFADRES30069818,REDACTED UNDER DP ACT,1149.9,MEADBANK NURSING HOME,259977,,People Services,Care Spot - Private (3rd),5701,B
18,Devon County Council,31/10/2012,CFADRES30070496,REDACTED UNDER DP ACT,1149.9,MEADBANK NURSING HOME,259977,,People Services,Care Spot - Private (3rd),5701,B
18,Devon County Council,31/10/2012,CFADRES30070544,REDACTED UNDER DP ACT,1567.4,MEADOWCARE HOME,280718,,People Services,Care Spot - Private (3rd),5701,B
18,Devon County Council,03/10/2012,CFADRES30068764,REDACTED UNDER DP ACT,3339.92,MEADOWSIDE,90340,,People Services,Care Spot - Private (3rd),5701,B
18,Devon County Council,31/10/2012,CFADRES30070114,REDACTED UNDER DP ACT,3339.92,MEADOWSIDE,90340,,People Services,Care Spot - Private (3rd),5701,B
18,Devon County Council,03/10/2012,CFADRES30069149,REDACTED UNDER DP ACT,743.22,MENDIP LODGE,261786,,People Services,Care Spot - Private (3rd),5701,B
18,Devon County Council,17/10/2012,CFADRES30069821,REDACTED UNDER DP ACT,743.22,MENDIP LODGE,261786,,People Services,Care Spot - Private (3rd),5701,B
18,Devon County Council,31/10/2012,CFADRES30070499,REDACTED UNDER DP ACT,743.22,MENDIP LODGE,261786,,People Services,Care Spot - Private (3rd),5701,B
18,Devon County Council,03/10/2012,CFADRES30069224,REDACTED UNDER DP ACT,1879.6,METHODIST HOMES - TORRWOOD,288434,,People Services,Care Spot - Private (3rd),5701,B
18,Devon County Council,17/10/2012,CFADRES30069896,REDACTED UNDER DP ACT,1488.6,METHODIST HOMES - TORRWOOD,288434,,People Services,Care Spot - Private (3rd),5701,B
18,Devon County Council,31/10/2012,CFADRES30070574,REDACTED UNDER DP ACT,1488.6,METHODIST HOMES - TORRWOOD,288434,,People Services,Care Spot - Private (3rd),5701,B
18,Devon County Council,03/10/2012,CFADRES30068765,REDACTED UNDER DP ACT,17163.75,METHODIST HOMES FOR THE AGED,90351,,People Services,Care Spot - Private (3rd),5701,B
18,Devon County Council,17/10/2012,CFADRES30069441,REDACTED UNDER DP ACT,9926.03,METHODIST HOMES FOR THE AGED,90351,,People Services,Care Spot - Private (3rd),5701,B
18,Devon County Council,31/10/2012,CFADRES30070115,REDACTED UNDER DP ACT,9871.6,METHODIST HOMES FOR THE AGED,90351,,People Services,Care Spot - Private (3rd),5701,B
18,Devon County Council,03/10/2012,CFADRES30069227,REDACTED UNDER DP ACT,867.44,METHODIST HOMES T/A RICHMOND,289213,,People Services,Care Spot - Private (3rd),5701,B
18,Devon County Council,17/10/2012,CFADRES30069899,REDACTED UNDER DP ACT,867.44,METHODIST HOMES T/A RICHMOND,289213,,People Services,Care Spot - Private (3rd),5701,B
18,Devon County Council,31/10/2012,CFADRES30070577,REDACTED UNDER DP ACT,867.44,METHODIST HOMES T/A RICHMOND,289213,,People Services,Care Spot - Private (3rd),5701,B
18,Devon County Council,03/10/2012,CFADRES30069234,REDACTED UNDER DP ACT,2200,MIDSHIRES HEALTHCARE LTD,291304,,People Services,Care Spot - Private (3rd),5701,B
18,Devon County Council,17/10/2012,CFADRES30069906,REDACTED UNDER DP ACT,2200,MIDSHIRES HEALTHCARE LTD,291304,,People Services,Care Spot - Private (3rd),5701,B
18,Devon County Council,31/10/2012,CFADRES30070584,REDACTED UNDER DP ACT,2200,MIDSHIRES HEALTHCARE LTD,291304,,People Services,Care Spot - Private (3rd),5701,B
18,Devon County Council,03/10/2012,CFADRES30069215,REDACTED UNDER DP ACT,1162,MILL HEATH NURSING HOME,286599,,People Services,Care Spot - Private (3rd),5701,B
18,Devon County Council,17/10/2012,CFADRES30069887,REDACTED UNDER DP ACT,1162,MILL HEATH NURSING HOME,286599,,People Services,Care Spot - Private (3rd),5701,B
18,Devon County Council,31/10/2012,CFADRES30070565,REDACTED UNDER DP ACT,1162,MILL HEATH NURSING HOME,286599,,People Services,Care Spot - Private (3rd),5701,B
18,Devon County Council,03/10/2012,CFADRES30068810,REDACTED UNDER DP ACT,5966.56,MILLS KP&E - DOVE RIDGE,90716,,People Services,Care Spot - Private (3rd),5701,B
18,Devon County Council,17/10/2012,CFADRES30069486,REDACTED UNDER DP ACT,5966.56,MILLS KP&E - DOVE RIDGE,90716,,People Services,Care Spot - Private (3rd),5701,B
18,Devon County Council,31/10/2012,CFADRES30070161,REDACTED UNDER DP ACT,5966.56,MILLS KP&E - DOVE RIDGE,90716,,People Services,Care Spot - Private (3rd),5701,B
18,Devon County Council,03/10/2012,CFADRES30069217,REDACTED UNDER DP ACT,1024.48,MILLWAY HOUSE,286795,,People Services,Care Spot - Private (3rd),5701,B
18,Devon County Council,17/10/2012,CFADRES30069889,REDACTED UNDER DP ACT,1024.48,MILLWAY HOUSE,286795,,People Services,Care Spot - Private (3rd),5701,B
18,Devon County Council,31/10/2012,CFADRES30070567,REDACTED UNDER DP ACT,1024.48,MILLWAY HOUSE,286795,,People Services,Care Spot - Private (3rd),5701,B
18,Devon County Council,03/10/2012,CFADRES30069054,REDACTED UNDER DP ACT,1273.36,MILTON COURT CARE CENTRE,209180,,People Services,Care Spot - Private (3rd),5701,B
18,Devon County Council,17/10/2012,CFADRES30069727,REDACTED UNDER DP ACT,1273.36,MILTON COURT CARE CENTRE,209180,,People Services,Care Spot - Private (3rd),5701,B
18,Devon County Council,31/10/2012,CFADRES30070404,REDACTED UNDER DP ACT,1273.36,MILTON COURT CARE CENTRE,209180,,People Services,Care Spot - Private (3rd),5701,B
18,Devon County Council,03/10/2012,CFADRES30068768,REDACTED UNDER DP ACT,8063.58,MIRAMAR CARE HOME,90376,,People Services,Care Spot - Private (3rd),5701,B
18,Devon County Council,17/10/2012,CFADRES30069444,REDACTED UNDER DP ACT,8063.58,MIRAMAR CARE HOME,90376,,People Services,Care Spot - Private (3rd),5701,B
18,Devon County Council,31/10/2012,CFADRES30070118,REDACTED UNDER DP ACT,8063.58,MIRAMAR CARE HOME,90376,,People Services,Care Spot - Private (3rd),5701,B
18,Devon County Council,03/10/2012,CFADRES30068604,REDACTED UNDER DP ACT,6488.38,MODUS CARE LTD,86872,,People Services,Care Spot - Private (3rd),5701,B
18,Devon County Council,17/10/2012,CYPNMLOC30197444,12/MCL/3156,13024.43,MODUS CARE LTD,86872,,People Services,Residential Care - Private (3rd),5731,B
18,Devon County Council,15/10/2012,CFADDOM30045111,REDACTED UNDER DP ACT,577.5,MOORCARE DEVON LTD,260782,,People Services,Care Spot - Private (3rd),5701,B
18,Devon County Council,15/10/2012,CFADDOM30045112,REDACTED UNDER DP ACT,1155,MOORCARE DEVON LTD,260782,,People Services,Care Spot - Private (3rd),5701,B
18,Devon County Council,03/10/2012,CFADRES30068621,REDACTED UNDER DP ACT,11309.62,MOORS PARK BISHOPSTEIGNTON LTD,87332,,People Services,Care Spot - Private (3rd),5701,B
18,Devon County Council,17/10/2012,CFADRES30069297,REDACTED UNDER DP ACT,11309.62,MOORS PARK BISHOPSTEIGNTON LTD,87332,,People Services,Care Spot - Private (3rd),5701,B
18,Devon County Council,31/10/2012,CFADRES30069971,REDACTED UNDER DP ACT,11309.62,MOORS PARK BISHOPSTEIGNTON LTD,87332,,People Services,Care Spot - Private (3rd),5701,B
18,Devon County Council,31/10/2012,CFADRES30070130,REDACTED UNDER DP ACT,13987.52,MORGAN T/A PENSYLVANIA HOUSE HA&,90452,,People Services,Care Spot - Private (3rd),5701,B
18,Devon County Council,03/10/2012,CFADRES30068882,REDACTED UNDER DP ACT,880.9,MOUNT OLIVET NURSING HOME,109320,,People Services,Care Spot - Private (3rd),5701,B
18,Devon County Council,17/10/2012,CFADRES30069557,REDACTED UNDER DP ACT,880.9,MOUNT OLIVET NURSING HOME,109320,,People Services,Care Spot - Private (3rd),5701,B
18,Devon County Council,03/10/2012,CFADRES30069069,REDACTED UNDER DP ACT,9462.66,MOUNT PLEASANT,219575,,People Services,Care Spot - Private (3rd),5701,B
18,Devon County Council,17/10/2012,CFADRES30069742,REDACTED UNDER DP ACT,9462.66,MOUNT PLEASANT,219575,,People Services,Care Spot - Private (3rd),5701,B
18,Devon County Council,31/10/2012,CFADRES30070419,REDACTED UNDER DP ACT,9699.81,MOUNT PLEASANT,219575,,People Services,Care Spot - Private (3rd),5701,B
18,Devon County Council,10/10/2012,CFADDAY30021007,REDACTED UNDER DP ACT,2000,MOUNT RALEIGH RCH (KALM LIVING),90601,,People Services,Individualised Support - Private (3rd),5706,B
18,Devon County Council,15/10/2012,CFADDAY30021244,REDACTED UNDER DP ACT,1809.88,MOUNT RALEIGH RCH (KALM LIVING),90601,,People Services,Individualised Support - Private (3rd),5706,B
18,Devon County Council,17/10/2012,CFADDAY30021352,REDACTED UNDER DP ACT,1600,MOUNT RALEIGH RCH (KALM LIVING),90601,,People Services,Individualised Support - Private (3rd),5706,B
18,Devon County Council,31/10/2012,CFADDAY30021920,REDACTED UNDER DP ACT,2000,MOUNT RALEIGH RCH (KALM LIVING),90601,,People Services,Individualised Support - Private (3rd),5706,B
18,Devon County Council,24/10/2012,CFADDAY30021730,REDACTED UNDER DP ACT,1484,MULHALL SUE,233997,,People Services,Individualised Support - Private (3rd),5706,B
18,Devon County Council,03/10/2012,CFADRES30069132,REDACTED UNDER DP ACT,800.68,NAPIER LODGE,250489,,People Services,Care Spot - Private (3rd),5701,B
18,Devon County Council,17/10/2012,CFADRES30069804,REDACTED UNDER DP ACT,800.68,NAPIER LODGE,250489,,People Services,Care Spot - Private (3rd),5701,B
18,Devon County Council,31/10/2012,CFADRES30070482,REDACTED UNDER DP ACT,800.68,NAPIER LODGE,250489,,People Services,Care Spot - Private (3rd),5701,B
18,Devon County Council,03/10/2012,CFADRES30068888,REDACTED UNDER DP ACT,2526.8,NATIONAL SOCIETY FOR EPILEPSY,113016,,People Services,Care Spot - Private (3rd),5701,B
18,Devon County Council,17/10/2012,CFADRES30069562,REDACTED UNDER DP ACT,2526.8,NATIONAL SOCIETY FOR EPILEPSY,113016,,People Services,Care Spot - Private (3rd),5701,B
18,Devon County Council,31/10/2012,CFADRES30070237,REDACTED UNDER DP ACT,2526.8,NATIONAL SOCIETY FOR EPILEPSY,113016,,People Services,Care Spot - Private (3rd),5701,B
18,Devon County Council,03/10/2012,CFADRES30068666,REDACTED UNDER DP ACT,1694.58,NAZARETH HOUSE CARE HOME,89117,,People Services,Care Spot - Private (3rd),5701,B
18,Devon County Council,17/10/2012,CFADRES30069342,REDACTED UNDER DP ACT,2565.18,NAZARETH HOUSE CARE HOME,89117,,People Services,Care Spot - Private (3rd),5701,B
18,Devon County Council,31/10/2012,CFADRES30070016,REDACTED UNDER DP ACT,2565.18,NAZARETH HOUSE CARE HOME,89117,,People Services,Care Spot - Private (3rd),5701,B
18,Devon County Council,03/10/2012,CFADRES30068841,REDACTED UNDER DP ACT,8865.1,ND MCCOWEN-SMITH T/A WELLESLEY,93568,974855463,People Services,Care Spot - Private (3rd),5701,B
18,Devon County Council,17/10/2012,CFADRES30069516,REDACTED UNDER DP ACT,8865.1,ND MCCOWEN-SMITH T/A WELLESLEY,93568,974855463,People Services,Care Spot - Private (3rd),5701,B
18,Devon County Council,31/10/2012,CFADRES30070192,REDACTED UNDER DP ACT,8865.1,ND MCCOWEN-SMITH T/A WELLESLEY,93568,974855463,People Services,Care Spot - Private (3rd),5701,B
18,Devon County Council,03/10/2012,CFADRES30069245,REDACTED UNDER DP ACT,900,NEEDWOOD HOUSE NURSING HOME,293114,,People Services,Care Spot - Private (3rd),5701,B
18,Devon County Council,17/10/2012,CFADRES30069917,REDACTED UNDER DP ACT,900,NEEDWOOD HOUSE NURSING HOME,293114,,People Services,Care Spot - Private (3rd),5701,B
18,Devon County Council,31/10/2012,CFADRES30070595,REDACTED UNDER DP ACT,900,NEEDWOOD HOUSE NURSING HOME,293114,,People Services,Care Spot - Private (3rd),5701,B
18,Devon County Council,03/10/2012,CFADRES30068755,REDACTED UNDER DP ACT,8194.79,NEILSON RETIREMENT HOTEL,90214,927360125,People Services,Care Spot - Private (3rd),5701,B
18,Devon County Council,17/10/2012,CFADRES30069431,REDACTED UNDER DP ACT,8965.5,NEILSON RETIREMENT HOTEL,90214,927360125,People Services,Care Spot - Private (3rd),5701,B
18,Devon County Council,31/10/2012,CFADRES30070105,REDACTED UNDER DP ACT,10091.94,NEILSON RETIREMENT HOTEL,90214,927360125,People Services,Care Spot - Private (3rd),5701,B
18,Devon County Council,03/10/2012,CFADRES30069090,REDACTED UNDER DP ACT,820,NEW CENTURY CARE LTD TA CLYDE HS,231150,,People Services,Care Spot - Private (3rd),5701,B
18,Devon County Council,17/10/2012,CFADRES30069763,REDACTED UNDER DP ACT,820,NEW CENTURY CARE LTD TA CLYDE HS,231150,,People Services,Care Spot - Private (3rd),5701,B
18,Devon County Council,31/10/2012,CFADRES30070440,REDACTED UNDER DP ACT,820,NEW CENTURY CARE LTD TA CLYDE HS,231150,,People Services,Care Spot - Private (3rd),5701,B
18,Devon County Council,03/10/2012,CFADRES30068914,REDACTED UNDER DP ACT,3010.18,NEW WITHEVEN,138197,,People Services,Care Spot - Private (3rd),5701,B
18,Devon County Council,17/10/2012,CFADRES30069588,REDACTED UNDER DP ACT,6703.44,NEW WITHEVEN,138197,,People Services,Care Spot - Private (3rd),5701,B
18,Devon County Council,31/10/2012,CFADRES30070264,REDACTED UNDER DP ACT,3580.18,NEW WITHEVEN,138197,,People Services,Care Spot - Private (3rd),5701,B
18,Devon County Council,03/10/2012,CFADRES30068812,REDACTED UNDER DP ACT,7670.06,NEWTON ABBOT/DIST SOC MENTALLY H,90755,,People Services,Care Spot - Private (3rd),5701,B
18,Devon County Council,17/10/2012,CFADRES30069488,REDACTED UNDER DP ACT,7670.06,NEWTON ABBOT/DIST SOC MENTALLY H,90755,,People Services,Care Spot - Private (3rd),5701,B
18,Devon County Council,31/10/2012,CFADRES30070164,REDACTED UNDER DP ACT,7670.06,NEWTON ABBOT/DIST SOC MENTALLY H,90755,,People Services,Care Spot - Private (3rd),5701,B
18,Devon County Council,03/10/2012,CFADRES30068599,REDACTED UNDER DP ACT,1815.36,NIGHTINGALE CARE HOMES,86712,974855659,People Services,Care Spot - Private (3rd),5701,B
18,Devon County Council,17/10/2012,CFADRES30069275,REDACTED UNDER DP ACT,1815.36,NIGHTINGALE CARE HOMES,86712,974855659,People Services,Care Spot - Private (3rd),5701,B
18,Devon County Council,31/10/2012,CFADRES30069949,REDACTED UNDER DP ACT,1815.36,NIGHTINGALE CARE HOMES,86712,974855659,People Services,Care Spot - Private (3rd),5701,B
18,Devon County Council,03/10/2012,CFADRES30068797,REDACTED UNDER DP ACT,3514.81,NIGHTINGALE HOUSE,90603,,People Services,Care Spot - Private (3rd),5701,B
18,Devon County Council,17/10/2012,CFADRES30069473,REDACTED UNDER DP ACT,2729.1,NIGHTINGALE HOUSE,90603,,People Services,Care Spot - Private (3rd),5701,B
18,Devon County Council,31/10/2012,CFADRES30070147,REDACTED UNDER DP ACT,5321.96,NIGHTINGALE HOUSE,90603,,People Services,Care Spot - Private (3rd),5701,B
18,Devon County Council,03/10/2012,CFADRES30069066,REDACTED UNDER DP ACT,2943.33,NIGHTINGALES THE,216973,,People Services,Care Spot - Private (3rd),5701,B
18,Devon County Council,17/10/2012,CFADRES30069739,REDACTED UNDER DP ACT,4240.91,NIGHTINGALES THE,216973,,People Services,Care Spot - Private (3rd),5701,B
18,Devon County Council,31/10/2012,CFADRES30070416,REDACTED UNDER DP ACT,3529.48,NIGHTINGALES THE,216973,,People Services,Care Spot - Private (3rd),5701,B
18,Devon County Council,15/10/2012,CFADDAY30021239,REDACTED UNDER DP ACT,510,NORTHAM LODGE,90377,,People Services,Care Spot - Private (3rd),5701,B
18,Devon County Council,15/10/2012,CFADDAY30021240,REDACTED UNDER DP ACT,1004,NORTHAM LODGE,90377,,People Services,Care Spot - Private (3rd),5701,B
18,Devon County Council,15/10/2012,CFADDAY30021241,REDACTED UNDER DP ACT,1296,NORTHAM LODGE,90377,,People Services,Care Spot - Private (3rd),5701,B
18,Devon County Council,15/10/2012,CFADDAY30021242,REDACTED UNDER DP ACT,1479.6,NORTHAM LODGE,90377,,People Services,Care Spot - Private (3rd),5701,B
